{"text_format":"3","workbook":"xlsx","n_sheets":2,"sheets":["Harmonogram zajęć","Lista zajęć"],"not_rendered":{"defined_names":17},"read":"whole","date_system":"1900"}

{"sheet":"Harmonogram zajęć","index":0,"n_rows":56,"n_cols":9,"rows_kept":56,"merged":[[0,1,1,5],[0,8,1,8]]}
[null,"HARMONOGRAM ZAJĘĆ",{"$nulls":4},"HARMONOGRAM \nPOCZĄTEK","INTERWAŁ","Lista zajęć"]
[{"$nulls":6},"08:00:00","15 MIN"]
[null,"GODZINA","NIEDZIELA","PONIEDZIAŁEK","WTOREK","ŚRODA","CZWARTEK","PIĄTEK","SOBOTA"]
[null,{"$f":"Harmonogram_początek","v":"08:00:00"},{"$f":"IFERROR(INDEX(Lista_zajęć[],MATCH(SUMPRODUCT((Lista_zajęć[DZIEŃ]=Harmonogram_zajęć[[#Headers],[NIEDZIELA]])*(ROUNDDOWN($B4,10)>=ROUNDDOWN(Lista_zajęć[GODZINA ROZPOCZĘCIA],10))*($B4<=Lista_zajęć[GODZINA ZAKOŃCZENIA]),Lista_zajęć[NIEPOWTARZALNE]),Lista_zajęć[NIEPOWTARZALNE],0),2),0)","v":0},{"$f":"IFERROR(INDEX(Lista_zajęć[],MATCH(SUMPRODUCT((Lista_zajęć[DZIEŃ]=Harmonogram_zajęć[[#Headers],[PONIEDZIAŁEK]])*(ROUNDDOWN($B4,10)>=ROUNDDOWN(Lista_zajęć[GODZINA ROZPOCZĘCIA],10))*($B4<=Lista_zajęć[GODZINA ZAKOŃCZENIA]),Lista_zajęć[NIEPOWTARZALNE]),Lista_zajęć[NIEPOWTARZALNE],0),2),0)","v":0},{"$f":"IFERROR(INDEX(Lista_zajęć[],MATCH(SUMPRODUCT((Lista_zajęć[DZIEŃ]=Harmonogram_zajęć[[#Headers],[WTOREK]])*(ROUNDDOWN($B4,10)>=ROUNDDOWN(Lista_zajęć[GODZINA ROZPOCZĘCIA],10))*($B4<=Lista_zajęć[GODZINA ZAKOŃCZENIA]),Lista_zajęć[NIEPOWTARZALNE]),Lista_zajęć[NIEPOWTARZALNE],0),2),0)","v":0},{"$f":"IFERROR(INDEX(Lista_zajęć[],MATCH(SUMPRODUCT((Lista_zajęć[DZIEŃ]=Harmonogram_zajęć[[#Headers],[ŚRODA]])*(ROUNDDOWN($B4,10)>=ROUNDDOWN(Lista_zajęć[GODZINA ROZPOCZĘCIA],10))*($B4<=Lista_zajęć[GODZINA ZAKOŃCZENIA]),Lista_zajęć[NIEPOWTARZALNE]),Lista_zajęć[NIEPOWTARZALNE],0),2),0)","v":0},{"$f":"IFERROR(INDEX(Lista_zajęć[],MATCH(SUMPRODUCT((Lista_zajęć[DZIEŃ]=Harmonogram_zajęć[[#Headers],[CZWARTEK]])*(ROUNDDOWN($B4,10)>=ROUNDDOWN(Lista_zajęć[GODZINA ROZPOCZĘCIA],10))*($B4<=Lista_zajęć[GODZINA ZAKOŃCZENIA]),Lista_zajęć[NIEPOWTARZALNE]),Lista_zajęć[NIEPOWTARZALNE],0),2),0)","v":0},{"$f":"IFERROR(INDEX(Lista_zajęć[],MATCH(SUMPRODUCT((Lista_zajęć[DZIEŃ]=Harmonogram_zajęć[[#Headers],[PIĄTEK]])*(ROUNDDOWN($B4,10)>=ROUNDDOWN(Lista_zajęć[GODZINA ROZPOCZĘCIA],10))*($B4<=Lista_zajęć[GODZINA ZAKOŃCZENIA]),Lista_zajęć[NIEPOWTARZALNE]),Lista_zajęć[NIEPOWTARZALNE],0),2),0)","v":0},{"$f":"IFERROR(INDEX(Lista_zajęć[],MATCH(SUMPRODUCT((Lista_zajęć[DZIEŃ]=Harmonogram_zajęć[[#Headers],[SOBOTA]])*(ROUNDDOWN($B4,10)>=ROUNDDOWN(Lista_zajęć[GODZINA ROZPOCZĘCIA],10))*($B4<=Lista_zajęć[GODZINA ZAKOŃCZENIA]),Lista_zajęć[NIEPOWTARZALNE]),Lista_zajęć[NIEPOWTARZALNE],0),2),0)","v":0}]
[null,{"$f":"B4+Przyrost","v":"08:15:00"},{"$f":"IFERROR(INDEX(Lista_zajęć[],MATCH(SUMPRODUCT((Lista_zajęć[DZIEŃ]=Harmonogram_zajęć[[#Headers],[NIEDZIELA]])*(ROUNDDOWN($B5,10)>=ROUNDDOWN(Lista_zajęć[GODZINA ROZPOCZĘCIA],10))*($B5<=Lista_zajęć[GODZINA ZAKOŃCZENIA]),Lista_zajęć[NIEPOWTARZALNE]),Lista_zajęć[NIEPOWTARZALNE],0),2),0)","v":0},{"$f":"IFERROR(INDEX(Lista_zajęć[],MATCH(SUMPRODUCT((Lista_zajęć[DZIEŃ]=Harmonogram_zajęć[[#Headers],[PONIEDZIAŁEK]])*(ROUNDDOWN($B5,10)>=ROUNDDOWN(Lista_zajęć[GODZINA ROZPOCZĘCIA],10))*($B5<=Lista_zajęć[GODZINA ZAKOŃCZENIA]),Lista_zajęć[NIEPOWTARZALNE]),Lista_zajęć[NIEPOWTARZALNE],0),2),0)","v":"MAT-113"},{"$f":"IFERROR(INDEX(Lista_zajęć[],MATCH(SUMPRODUCT((Lista_zajęć[DZIEŃ]=Harmonogram_zajęć[[#Headers],[WTOREK]])*(ROUNDDOWN($B5,10)>=ROUNDDOWN(Lista_zajęć[GODZINA ROZPOCZĘCIA],10))*($B5<=Lista_zajęć[GODZINA ZAKOŃCZENIA]),Lista_zajęć[NIEPOWTARZALNE]),Lista_zajęć[NIEPOWTARZALNE],0),2),0)","v":0},{"$f":"IFERROR(INDEX(Lista_zajęć[],MATCH(SUMPRODUCT((Lista_zajęć[DZIEŃ]=Harmonogram_zajęć[[#Headers],[ŚRODA]])*(ROUNDDOWN($B5,10)>=ROUNDDOWN(Lista_zajęć[GODZINA ROZPOCZĘCIA],10))*($B5<=Lista_zajęć[GODZINA ZAKOŃCZENIA]),Lista_zajęć[NIEPOWTARZALNE]),Lista_zajęć[NIEPOWTARZALNE],0),2),0)","v":"MAT-113"},{"$f":"IFERROR(INDEX(Lista_zajęć[],MATCH(SUMPRODUCT((Lista_zajęć[DZIEŃ]=Harmonogram_zajęć[[#Headers],[CZWARTEK]])*(ROUNDDOWN($B5,10)>=ROUNDDOWN(Lista_zajęć[GODZINA ROZPOCZĘCIA],10))*($B5<=Lista_zajęć[GODZINA ZAKOŃCZENIA]),Lista_zajęć[NIEPOWTARZALNE]),Lista_zajęć[NIEPOWTARZALNE],0),2),0)","v":0},{"$f":"IFERROR(INDEX(Lista_zajęć[],MATCH(SUMPRODUCT((Lista_zajęć[DZIEŃ]=Harmonogram_zajęć[[#Headers],[PIĄTEK]])*(ROUNDDOWN($B5,10)>=ROUNDDOWN(Lista_zajęć[GODZINA ROZPOCZĘCIA],10))*($B5<=Lista_zajęć[GODZINA ZAKOŃCZENIA]),Lista_zajęć[NIEPOWTARZALNE]),Lista_zajęć[NIEPOWTARZALNE],0),2),0)","v":"MAT-113"},{"$f":"IFERROR(INDEX(Lista_zajęć[],MATCH(SUMPRODUCT((Lista_zajęć[DZIEŃ]=Harmonogram_zajęć[[#Headers],[SOBOTA]])*(ROUNDDOWN($B5,10)>=ROUNDDOWN(Lista_zajęć[GODZINA ROZPOCZĘCIA],10))*($B5<=Lista_zajęć[GODZINA ZAKOŃCZENIA]),Lista_zajęć[NIEPOWTARZALNE]),Lista_zajęć[NIEPOWTARZALNE],0),2),0)","v":0}]
[null,"08:30:00",{"$f":"IFERROR(INDEX(Lista_zajęć[],MATCH(SUMPRODUCT((Lista_zajęć[DZIEŃ]=Harmonogram_zajęć[[#Headers],[NIEDZIELA]])*(ROUNDDOWN($B6,10)>=ROUNDDOWN(Lista_zajęć[GODZINA ROZPOCZĘCIA],10))*($B6<=Lista_zajęć[GODZINA ZAKOŃCZENIA]),Lista_zajęć[NIEPOWTARZALNE]),Lista_zajęć[NIEPOWTARZALNE],0),2),0)","v":0},{"$f":"IFERROR(INDEX(Lista_zajęć[],MATCH(SUMPRODUCT((Lista_zajęć[DZIEŃ]=Harmonogram_zajęć[[#Headers],[PONIEDZIAŁEK]])*(ROUNDDOWN($B6,10)>=ROUNDDOWN(Lista_zajęć[GODZINA ROZPOCZĘCIA],10))*($B6<=Lista_zajęć[GODZINA ZAKOŃCZENIA]),Lista_zajęć[NIEPOWTARZALNE]),Lista_zajęć[NIEPOWTARZALNE],0),2),0)","v":"MAT-113"},{"$f":"IFERROR(INDEX(Lista_zajęć[],MATCH(SUMPRODUCT((Lista_zajęć[DZIEŃ]=Harmonogram_zajęć[[#Headers],[WTOREK]])*(ROUNDDOWN($B6,10)>=ROUNDDOWN(Lista_zajęć[GODZINA ROZPOCZĘCIA],10))*($B6<=Lista_zajęć[GODZINA ZAKOŃCZENIA]),Lista_zajęć[NIEPOWTARZALNE]),Lista_zajęć[NIEPOWTARZALNE],0),2),0)","v":0},{"$f":"IFERROR(INDEX(Lista_zajęć[],MATCH(SUMPRODUCT((Lista_zajęć[DZIEŃ]=Harmonogram_zajęć[[#Headers],[ŚRODA]])*(ROUNDDOWN($B6,10)>=ROUNDDOWN(Lista_zajęć[GODZINA ROZPOCZĘCIA],10))*($B6<=Lista_zajęć[GODZINA ZAKOŃCZENIA]),Lista_zajęć[NIEPOWTARZALNE]),Lista_zajęć[NIEPOWTARZALNE],0),2),0)","v":"MAT-113"},{"$f":"IFERROR(INDEX(Lista_zajęć[],MATCH(SUMPRODUCT((Lista_zajęć[DZIEŃ]=Harmonogram_zajęć[[#Headers],[CZWARTEK]])*(ROUNDDOWN($B6,10)>=ROUNDDOWN(Lista_zajęć[GODZINA ROZPOCZĘCIA],10))*($B6<=Lista_zajęć[GODZINA ZAKOŃCZENIA]),Lista_zajęć[NIEPOWTARZALNE]),Lista_zajęć[NIEPOWTARZALNE],0),2),0)","v":0},{"$f":"IFERROR(INDEX(Lista_zajęć[],MATCH(SUMPRODUCT((Lista_zajęć[DZIEŃ]=Harmonogram_zajęć[[#Headers],[PIĄTEK]])*(ROUNDDOWN($B6,10)>=ROUNDDOWN(Lista_zajęć[GODZINA ROZPOCZĘCIA],10))*($B6<=Lista_zajęć[GODZINA ZAKOŃCZENIA]),Lista_zajęć[NIEPOWTARZALNE]),Lista_zajęć[NIEPOWTARZALNE],0),2),0)","v":"MAT-113"},{"$f":"IFERROR(INDEX(Lista_zajęć[],MATCH(SUMPRODUCT((Lista_zajęć[DZIEŃ]=Harmonogram_zajęć[[#Headers],[SOBOTA]])*(ROUNDDOWN($B6,10)>=ROUNDDOWN(Lista_zajęć[GODZINA ROZPOCZĘCIA],10))*($B6<=Lista_zajęć[GODZINA ZAKOŃCZENIA]),Lista_zajęć[NIEPOWTARZALNE]),Lista_zajęć[NIEPOWTARZALNE],0),2),0)","v":0}]
[null,"08:45:00",{"$f":"IFERROR(INDEX(Lista_zajęć[],MATCH(SUMPRODUCT((Lista_zajęć[DZIEŃ]=Harmonogram_zajęć[[#Headers],[NIEDZIELA]])*(ROUNDDOWN($B7,10)>=ROUNDDOWN(Lista_zajęć[GODZINA ROZPOCZĘCIA],10))*($B7<=Lista_zajęć[GODZINA ZAKOŃCZENIA]),Lista_zajęć[NIEPOWTARZALNE]),Lista_zajęć[NIEPOWTARZALNE],0),2),0)","v":0},{"$f":"IFERROR(INDEX(Lista_zajęć[],MATCH(SUMPRODUCT((Lista_zajęć[DZIEŃ]=Harmonogram_zajęć[[#Headers],[PONIEDZIAŁEK]])*(ROUNDDOWN($B7,10)>=ROUNDDOWN(Lista_zajęć[GODZINA ROZPOCZĘCIA],10))*($B7<=Lista_zajęć[GODZINA ZAKOŃCZENIA]),Lista_zajęć[NIEPOWTARZALNE]),Lista_zajęć[NIEPOWTARZALNE],0),2),0)","v":"MAT-113"},{"$f":"IFERROR(INDEX(Lista_zajęć[],MATCH(SUMPRODUCT((Lista_zajęć[DZIEŃ]=Harmonogram_zajęć[[#Headers],[WTOREK]])*(ROUNDDOWN($B7,10)>=ROUNDDOWN(Lista_zajęć[GODZINA ROZPOCZĘCIA],10))*($B7<=Lista_zajęć[GODZINA ZAKOŃCZENIA]),Lista_zajęć[NIEPOWTARZALNE]),Lista_zajęć[NIEPOWTARZALNE],0),2),0)","v":0},{"$f":"IFERROR(INDEX(Lista_zajęć[],MATCH(SUMPRODUCT((Lista_zajęć[DZIEŃ]=Harmonogram_zajęć[[#Headers],[ŚRODA]])*(ROUNDDOWN($B7,10)>=ROUNDDOWN(Lista_zajęć[GODZINA ROZPOCZĘCIA],10))*($B7<=Lista_zajęć[GODZINA ZAKOŃCZENIA]),Lista_zajęć[NIEPOWTARZALNE]),Lista_zajęć[NIEPOWTARZALNE],0),2),0)","v":"MAT-113"},{"$f":"IFERROR(INDEX(Lista_zajęć[],MATCH(SUMPRODUCT((Lista_zajęć[DZIEŃ]=Harmonogram_zajęć[[#Headers],[CZWARTEK]])*(ROUNDDOWN($B7,10)>=ROUNDDOWN(Lista_zajęć[GODZINA ROZPOCZĘCIA],10))*($B7<=Lista_zajęć[GODZINA ZAKOŃCZENIA]),Lista_zajęć[NIEPOWTARZALNE]),Lista_zajęć[NIEPOWTARZALNE],0),2),0)","v":0},{"$f":"IFERROR(INDEX(Lista_zajęć[],MATCH(SUMPRODUCT((Lista_zajęć[DZIEŃ]=Harmonogram_zajęć[[#Headers],[PIĄTEK]])*(ROUNDDOWN($B7,10)>=ROUNDDOWN(Lista_zajęć[GODZINA ROZPOCZĘCIA],10))*($B7<=Lista_zajęć[GODZINA ZAKOŃCZENIA]),Lista_zajęć[NIEPOWTARZALNE]),Lista_zajęć[NIEPOWTARZALNE],0),2),0)","v":"MAT-113"},{"$f":"IFERROR(INDEX(Lista_zajęć[],MATCH(SUMPRODUCT((Lista_zajęć[DZIEŃ]=Harmonogram_zajęć[[#Headers],[SOBOTA]])*(ROUNDDOWN($B7,10)>=ROUNDDOWN(Lista_zajęć[GODZINA ROZPOCZĘCIA],10))*($B7<=Lista_zajęć[GODZINA ZAKOŃCZENIA]),Lista_zajęć[NIEPOWTARZALNE]),Lista_zajęć[NIEPOWTARZALNE],0),2),0)","v":0}]
[null,"09:00:00",{"$f":"IFERROR(INDEX(Lista_zajęć[],MATCH(SUMPRODUCT((Lista_zajęć[DZIEŃ]=Harmonogram_zajęć[[#Headers],[NIEDZIELA]])*(ROUNDDOWN($B8,10)>=ROUNDDOWN(Lista_zajęć[GODZINA ROZPOCZĘCIA],10))*($B8<=Lista_zajęć[GODZINA ZAKOŃCZENIA]),Lista_zajęć[NIEPOWTARZALNE]),Lista_zajęć[NIEPOWTARZALNE],0),2),0)","v":0},{"$f":"IFERROR(INDEX(Lista_zajęć[],MATCH(SUMPRODUCT((Lista_zajęć[DZIEŃ]=Harmonogram_zajęć[[#Headers],[PONIEDZIAŁEK]])*(ROUNDDOWN($B8,10)>=ROUNDDOWN(Lista_zajęć[GODZINA ROZPOCZĘCIA],10))*($B8<=Lista_zajęć[GODZINA ZAKOŃCZENIA]),Lista_zajęć[NIEPOWTARZALNE]),Lista_zajęć[NIEPOWTARZALNE],0),2),0)","v":"MAT-113"},{"$f":"IFERROR(INDEX(Lista_zajęć[],MATCH(SUMPRODUCT((Lista_zajęć[DZIEŃ]=Harmonogram_zajęć[[#Headers],[WTOREK]])*(ROUNDDOWN($B8,10)>=ROUNDDOWN(Lista_zajęć[GODZINA ROZPOCZĘCIA],10))*($B8<=Lista_zajęć[GODZINA ZAKOŃCZENIA]),Lista_zajęć[NIEPOWTARZALNE]),Lista_zajęć[NIEPOWTARZALNE],0),2),0)","v":0},{"$f":"IFERROR(INDEX(Lista_zajęć[],MATCH(SUMPRODUCT((Lista_zajęć[DZIEŃ]=Harmonogram_zajęć[[#Headers],[ŚRODA]])*(ROUNDDOWN($B8,10)>=ROUNDDOWN(Lista_zajęć[GODZINA ROZPOCZĘCIA],10))*($B8<=Lista_zajęć[GODZINA ZAKOŃCZENIA]),Lista_zajęć[NIEPOWTARZALNE]),Lista_zajęć[NIEPOWTARZALNE],0),2),0)","v":"MAT-113"},{"$f":"IFERROR(INDEX(Lista_zajęć[],MATCH(SUMPRODUCT((Lista_zajęć[DZIEŃ]=Harmonogram_zajęć[[#Headers],[CZWARTEK]])*(ROUNDDOWN($B8,10)>=ROUNDDOWN(Lista_zajęć[GODZINA ROZPOCZĘCIA],10))*($B8<=Lista_zajęć[GODZINA ZAKOŃCZENIA]),Lista_zajęć[NIEPOWTARZALNE]),Lista_zajęć[NIEPOWTARZALNE],0),2),0)","v":0},{"$f":"IFERROR(INDEX(Lista_zajęć[],MATCH(SUMPRODUCT((Lista_zajęć[DZIEŃ]=Harmonogram_zajęć[[#Headers],[PIĄTEK]])*(ROUNDDOWN($B8,10)>=ROUNDDOWN(Lista_zajęć[GODZINA ROZPOCZĘCIA],10))*($B8<=Lista_zajęć[GODZINA ZAKOŃCZENIA]),Lista_zajęć[NIEPOWTARZALNE]),Lista_zajęć[NIEPOWTARZALNE],0),2),0)","v":"MAT-113"},{"$f":"IFERROR(INDEX(Lista_zajęć[],MATCH(SUMPRODUCT((Lista_zajęć[DZIEŃ]=Harmonogram_zajęć[[#Headers],[SOBOTA]])*(ROUNDDOWN($B8,10)>=ROUNDDOWN(Lista_zajęć[GODZINA ROZPOCZĘCIA],10))*($B8<=Lista_zajęć[GODZINA ZAKOŃCZENIA]),Lista_zajęć[NIEPOWTARZALNE]),Lista_zajęć[NIEPOWTARZALNE],0),2),0)","v":0}]
[null,"09:15:00",{"$f":"IFERROR(INDEX(Lista_zajęć[],MATCH(SUMPRODUCT((Lista_zajęć[DZIEŃ]=Harmonogram_zajęć[[#Headers],[NIEDZIELA]])*(ROUNDDOWN($B9,10)>=ROUNDDOWN(Lista_zajęć[GODZINA ROZPOCZĘCIA],10))*($B9<=Lista_zajęć[GODZINA ZAKOŃCZENIA]),Lista_zajęć[NIEPOWTARZALNE]),Lista_zajęć[NIEPOWTARZALNE],0),2),0)","v":0},{"$f":"IFERROR(INDEX(Lista_zajęć[],MATCH(SUMPRODUCT((Lista_zajęć[DZIEŃ]=Harmonogram_zajęć[[#Headers],[PONIEDZIAŁEK]])*(ROUNDDOWN($B9,10)>=ROUNDDOWN(Lista_zajęć[GODZINA ROZPOCZĘCIA],10))*($B9<=Lista_zajęć[GODZINA ZAKOŃCZENIA]),Lista_zajęć[NIEPOWTARZALNE]),Lista_zajęć[NIEPOWTARZALNE],0),2),0)","v":"MAT-113"},{"$f":"IFERROR(INDEX(Lista_zajęć[],MATCH(SUMPRODUCT((Lista_zajęć[DZIEŃ]=Harmonogram_zajęć[[#Headers],[WTOREK]])*(ROUNDDOWN($B9,10)>=ROUNDDOWN(Lista_zajęć[GODZINA ROZPOCZĘCIA],10))*($B9<=Lista_zajęć[GODZINA ZAKOŃCZENIA]),Lista_zajęć[NIEPOWTARZALNE]),Lista_zajęć[NIEPOWTARZALNE],0),2),0)","v":0},{"$f":"IFERROR(INDEX(Lista_zajęć[],MATCH(SUMPRODUCT((Lista_zajęć[DZIEŃ]=Harmonogram_zajęć[[#Headers],[ŚRODA]])*(ROUNDDOWN($B9,10)>=ROUNDDOWN(Lista_zajęć[GODZINA ROZPOCZĘCIA],10))*($B9<=Lista_zajęć[GODZINA ZAKOŃCZENIA]),Lista_zajęć[NIEPOWTARZALNE]),Lista_zajęć[NIEPOWTARZALNE],0),2),0)","v":"MAT-113"},{"$f":"IFERROR(INDEX(Lista_zajęć[],MATCH(SUMPRODUCT((Lista_zajęć[DZIEŃ]=Harmonogram_zajęć[[#Headers],[CZWARTEK]])*(ROUNDDOWN($B9,10)>=ROUNDDOWN(Lista_zajęć[GODZINA ROZPOCZĘCIA],10))*($B9<=Lista_zajęć[GODZINA ZAKOŃCZENIA]),Lista_zajęć[NIEPOWTARZALNE]),Lista_zajęć[NIEPOWTARZALNE],0),2),0)","v":0},{"$f":"IFERROR(INDEX(Lista_zajęć[],MATCH(SUMPRODUCT((Lista_zajęć[DZIEŃ]=Harmonogram_zajęć[[#Headers],[PIĄTEK]])*(ROUNDDOWN($B9,10)>=ROUNDDOWN(Lista_zajęć[GODZINA ROZPOCZĘCIA],10))*($B9<=Lista_zajęć[GODZINA ZAKOŃCZENIA]),Lista_zajęć[NIEPOWTARZALNE]),Lista_zajęć[NIEPOWTARZALNE],0),2),0)","v":"MAT-113"},{"$f":"IFERROR(INDEX(Lista_zajęć[],MATCH(SUMPRODUCT((Lista_zajęć[DZIEŃ]=Harmonogram_zajęć[[#Headers],[SOBOTA]])*(ROUNDDOWN($B9,10)>=ROUNDDOWN(Lista_zajęć[GODZINA ROZPOCZĘCIA],10))*($B9<=Lista_zajęć[GODZINA ZAKOŃCZENIA]),Lista_zajęć[NIEPOWTARZALNE]),Lista_zajęć[NIEPOWTARZALNE],0),2),0)","v":0}]
[null,{"$f":"B9+Przyrost","v":"09:30:00"},{"$f":"IFERROR(INDEX(Lista_zajęć[],MATCH(SUMPRODUCT((Lista_zajęć[DZIEŃ]=Harmonogram_zajęć[[#Headers],[NIEDZIELA]])*(ROUNDDOWN($B10,10)>=ROUNDDOWN(Lista_zajęć[GODZINA ROZPOCZĘCIA],10))*($B10<=Lista_zajęć[GODZINA ZAKOŃCZENIA]),Lista_zajęć[NIEPOWTARZALNE]),Lista_zajęć[NIEPOWTARZALNE],0),2),0)","v":0},{"$f":"IFERROR(INDEX(Lista_zajęć[],MATCH(SUMPRODUCT((Lista_zajęć[DZIEŃ]=Harmonogram_zajęć[[#Headers],[PONIEDZIAŁEK]])*(ROUNDDOWN($B10,10)>=ROUNDDOWN(Lista_zajęć[GODZINA ROZPOCZĘCIA],10))*($B10<=Lista_zajęć[GODZINA ZAKOŃCZENIA]),Lista_zajęć[NIEPOWTARZALNE]),Lista_zajęć[NIEPOWTARZALNE],0),2),0)","v":0},{"$f":"IFERROR(INDEX(Lista_zajęć[],MATCH(SUMPRODUCT((Lista_zajęć[DZIEŃ]=Harmonogram_zajęć[[#Headers],[WTOREK]])*(ROUNDDOWN($B10,10)>=ROUNDDOWN(Lista_zajęć[GODZINA ROZPOCZĘCIA],10))*($B10<=Lista_zajęć[GODZINA ZAKOŃCZENIA]),Lista_zajęć[NIEPOWTARZALNE]),Lista_zajęć[NIEPOWTARZALNE],0),2),0)","v":0},{"$f":"IFERROR(INDEX(Lista_zajęć[],MATCH(SUMPRODUCT((Lista_zajęć[DZIEŃ]=Harmonogram_zajęć[[#Headers],[ŚRODA]])*(ROUNDDOWN($B10,10)>=ROUNDDOWN(Lista_zajęć[GODZINA ROZPOCZĘCIA],10))*($B10<=Lista_zajęć[GODZINA ZAKOŃCZENIA]),Lista_zajęć[NIEPOWTARZALNE]),Lista_zajęć[NIEPOWTARZALNE],0),2),0)","v":0},{"$f":"IFERROR(INDEX(Lista_zajęć[],MATCH(SUMPRODUCT((Lista_zajęć[DZIEŃ]=Harmonogram_zajęć[[#Headers],[CZWARTEK]])*(ROUNDDOWN($B10,10)>=ROUNDDOWN(Lista_zajęć[GODZINA ROZPOCZĘCIA],10))*($B10<=Lista_zajęć[GODZINA ZAKOŃCZENIA]),Lista_zajęć[NIEPOWTARZALNE]),Lista_zajęć[NIEPOWTARZALNE],0),2),0)","v":0},{"$f":"IFERROR(INDEX(Lista_zajęć[],MATCH(SUMPRODUCT((Lista_zajęć[DZIEŃ]=Harmonogram_zajęć[[#Headers],[PIĄTEK]])*(ROUNDDOWN($B10,10)>=ROUNDDOWN(Lista_zajęć[GODZINA ROZPOCZĘCIA],10))*($B10<=Lista_zajęć[GODZINA ZAKOŃCZENIA]),Lista_zajęć[NIEPOWTARZALNE]),Lista_zajęć[NIEPOWTARZALNE],0),2),0)","v":0},{"$f":"IFERROR(INDEX(Lista_zajęć[],MATCH(SUMPRODUCT((Lista_zajęć[DZIEŃ]=Harmonogram_zajęć[[#Headers],[SOBOTA]])*(ROUNDDOWN($B10,10)>=ROUNDDOWN(Lista_zajęć[GODZINA ROZPOCZĘCIA],10))*($B10<=Lista_zajęć[GODZINA ZAKOŃCZENIA]),Lista_zajęć[NIEPOWTARZALNE]),Lista_zajęć[NIEPOWTARZALNE],0),2),0)","v":0}]
[null,"09:45:00",{"$f":"IFERROR(INDEX(Lista_zajęć[],MATCH(SUMPRODUCT((Lista_zajęć[DZIEŃ]=Harmonogram_zajęć[[#Headers],[NIEDZIELA]])*(ROUNDDOWN($B11,10)>=ROUNDDOWN(Lista_zajęć[GODZINA ROZPOCZĘCIA],10))*($B11<=Lista_zajęć[GODZINA ZAKOŃCZENIA]),Lista_zajęć[NIEPOWTARZALNE]),Lista_zajęć[NIEPOWTARZALNE],0),2),0)","v":0},{"$f":"IFERROR(INDEX(Lista_zajęć[],MATCH(SUMPRODUCT((Lista_zajęć[DZIEŃ]=Harmonogram_zajęć[[#Headers],[PONIEDZIAŁEK]])*(ROUNDDOWN($B11,10)>=ROUNDDOWN(Lista_zajęć[GODZINA ROZPOCZĘCIA],10))*($B11<=Lista_zajęć[GODZINA ZAKOŃCZENIA]),Lista_zajęć[NIEPOWTARZALNE]),Lista_zajęć[NIEPOWTARZALNE],0),2),0)","v":0},{"$f":"IFERROR(INDEX(Lista_zajęć[],MATCH(SUMPRODUCT((Lista_zajęć[DZIEŃ]=Harmonogram_zajęć[[#Headers],[WTOREK]])*(ROUNDDOWN($B11,10)>=ROUNDDOWN(Lista_zajęć[GODZINA ROZPOCZĘCIA],10))*($B11<=Lista_zajęć[GODZINA ZAKOŃCZENIA]),Lista_zajęć[NIEPOWTARZALNE]),Lista_zajęć[NIEPOWTARZALNE],0),2),0)","v":0},{"$f":"IFERROR(INDEX(Lista_zajęć[],MATCH(SUMPRODUCT((Lista_zajęć[DZIEŃ]=Harmonogram_zajęć[[#Headers],[ŚRODA]])*(ROUNDDOWN($B11,10)>=ROUNDDOWN(Lista_zajęć[GODZINA ROZPOCZĘCIA],10))*($B11<=Lista_zajęć[GODZINA ZAKOŃCZENIA]),Lista_zajęć[NIEPOWTARZALNE]),Lista_zajęć[NIEPOWTARZALNE],0),2),0)","v":0},{"$f":"IFERROR(INDEX(Lista_zajęć[],MATCH(SUMPRODUCT((Lista_zajęć[DZIEŃ]=Harmonogram_zajęć[[#Headers],[CZWARTEK]])*(ROUNDDOWN($B11,10)>=ROUNDDOWN(Lista_zajęć[GODZINA ROZPOCZĘCIA],10))*($B11<=Lista_zajęć[GODZINA ZAKOŃCZENIA]),Lista_zajęć[NIEPOWTARZALNE]),Lista_zajęć[NIEPOWTARZALNE],0),2),0)","v":0},{"$f":"IFERROR(INDEX(Lista_zajęć[],MATCH(SUMPRODUCT((Lista_zajęć[DZIEŃ]=Harmonogram_zajęć[[#Headers],[PIĄTEK]])*(ROUNDDOWN($B11,10)>=ROUNDDOWN(Lista_zajęć[GODZINA ROZPOCZĘCIA],10))*($B11<=Lista_zajęć[GODZINA ZAKOŃCZENIA]),Lista_zajęć[NIEPOWTARZALNE]),Lista_zajęć[NIEPOWTARZALNE],0),2),0)","v":0},{"$f":"IFERROR(INDEX(Lista_zajęć[],MATCH(SUMPRODUCT((Lista_zajęć[DZIEŃ]=Harmonogram_zajęć[[#Headers],[SOBOTA]])*(ROUNDDOWN($B11,10)>=ROUNDDOWN(Lista_zajęć[GODZINA ROZPOCZĘCIA],10))*($B11<=Lista_zajęć[GODZINA ZAKOŃCZENIA]),Lista_zajęć[NIEPOWTARZALNE]),Lista_zajęć[NIEPOWTARZALNE],0),2),0)","v":0}]
[null,"10:00:00",{"$f":"IFERROR(INDEX(Lista_zajęć[],MATCH(SUMPRODUCT((Lista_zajęć[DZIEŃ]=Harmonogram_zajęć[[#Headers],[NIEDZIELA]])*(ROUNDDOWN($B12,10)>=ROUNDDOWN(Lista_zajęć[GODZINA ROZPOCZĘCIA],10))*($B12<=Lista_zajęć[GODZINA ZAKOŃCZENIA]),Lista_zajęć[NIEPOWTARZALNE]),Lista_zajęć[NIEPOWTARZALNE],0),2),0)","v":0},{"$f":"IFERROR(INDEX(Lista_zajęć[],MATCH(SUMPRODUCT((Lista_zajęć[DZIEŃ]=Harmonogram_zajęć[[#Headers],[PONIEDZIAŁEK]])*(ROUNDDOWN($B12,10)>=ROUNDDOWN(Lista_zajęć[GODZINA ROZPOCZĘCIA],10))*($B12<=Lista_zajęć[GODZINA ZAKOŃCZENIA]),Lista_zajęć[NIEPOWTARZALNE]),Lista_zajęć[NIEPOWTARZALNE],0),2),0)","v":0},{"$f":"IFERROR(INDEX(Lista_zajęć[],MATCH(SUMPRODUCT((Lista_zajęć[DZIEŃ]=Harmonogram_zajęć[[#Headers],[WTOREK]])*(ROUNDDOWN($B12,10)>=ROUNDDOWN(Lista_zajęć[GODZINA ROZPOCZĘCIA],10))*($B12<=Lista_zajęć[GODZINA ZAKOŃCZENIA]),Lista_zajęć[NIEPOWTARZALNE]),Lista_zajęć[NIEPOWTARZALNE],0),2),0)","v":0},{"$f":"IFERROR(INDEX(Lista_zajęć[],MATCH(SUMPRODUCT((Lista_zajęć[DZIEŃ]=Harmonogram_zajęć[[#Headers],[ŚRODA]])*(ROUNDDOWN($B12,10)>=ROUNDDOWN(Lista_zajęć[GODZINA ROZPOCZĘCIA],10))*($B12<=Lista_zajęć[GODZINA ZAKOŃCZENIA]),Lista_zajęć[NIEPOWTARZALNE]),Lista_zajęć[NIEPOWTARZALNE],0),2),0)","v":0},{"$f":"IFERROR(INDEX(Lista_zajęć[],MATCH(SUMPRODUCT((Lista_zajęć[DZIEŃ]=Harmonogram_zajęć[[#Headers],[CZWARTEK]])*(ROUNDDOWN($B12,10)>=ROUNDDOWN(Lista_zajęć[GODZINA ROZPOCZĘCIA],10))*($B12<=Lista_zajęć[GODZINA ZAKOŃCZENIA]),Lista_zajęć[NIEPOWTARZALNE]),Lista_zajęć[NIEPOWTARZALNE],0),2),0)","v":0},{"$f":"IFERROR(INDEX(Lista_zajęć[],MATCH(SUMPRODUCT((Lista_zajęć[DZIEŃ]=Harmonogram_zajęć[[#Headers],[PIĄTEK]])*(ROUNDDOWN($B12,10)>=ROUNDDOWN(Lista_zajęć[GODZINA ROZPOCZĘCIA],10))*($B12<=Lista_zajęć[GODZINA ZAKOŃCZENIA]),Lista_zajęć[NIEPOWTARZALNE]),Lista_zajęć[NIEPOWTARZALNE],0),2),0)","v":0},{"$f":"IFERROR(INDEX(Lista_zajęć[],MATCH(SUMPRODUCT((Lista_zajęć[DZIEŃ]=Harmonogram_zajęć[[#Headers],[SOBOTA]])*(ROUNDDOWN($B12,10)>=ROUNDDOWN(Lista_zajęć[GODZINA ROZPOCZĘCIA],10))*($B12<=Lista_zajęć[GODZINA ZAKOŃCZENIA]),Lista_zajęć[NIEPOWTARZALNE]),Lista_zajęć[NIEPOWTARZALNE],0),2),0)","v":0}]
[null,"10:15:00",{"$f":"IFERROR(INDEX(Lista_zajęć[],MATCH(SUMPRODUCT((Lista_zajęć[DZIEŃ]=Harmonogram_zajęć[[#Headers],[NIEDZIELA]])*(ROUNDDOWN($B13,10)>=ROUNDDOWN(Lista_zajęć[GODZINA ROZPOCZĘCIA],10))*($B13<=Lista_zajęć[GODZINA ZAKOŃCZENIA]),Lista_zajęć[NIEPOWTARZALNE]),Lista_zajęć[NIEPOWTARZALNE],0),2),0)","v":0},{"$f":"IFERROR(INDEX(Lista_zajęć[],MATCH(SUMPRODUCT((Lista_zajęć[DZIEŃ]=Harmonogram_zajęć[[#Headers],[PONIEDZIAŁEK]])*(ROUNDDOWN($B13,10)>=ROUNDDOWN(Lista_zajęć[GODZINA ROZPOCZĘCIA],10))*($B13<=Lista_zajęć[GODZINA ZAKOŃCZENIA]),Lista_zajęć[NIEPOWTARZALNE]),Lista_zajęć[NIEPOWTARZALNE],0),2),0)","v":0},{"$f":"IFERROR(INDEX(Lista_zajęć[],MATCH(SUMPRODUCT((Lista_zajęć[DZIEŃ]=Harmonogram_zajęć[[#Headers],[WTOREK]])*(ROUNDDOWN($B13,10)>=ROUNDDOWN(Lista_zajęć[GODZINA ROZPOCZĘCIA],10))*($B13<=Lista_zajęć[GODZINA ZAKOŃCZENIA]),Lista_zajęć[NIEPOWTARZALNE]),Lista_zajęć[NIEPOWTARZALNE],0),2),0)","v":0},{"$f":"IFERROR(INDEX(Lista_zajęć[],MATCH(SUMPRODUCT((Lista_zajęć[DZIEŃ]=Harmonogram_zajęć[[#Headers],[ŚRODA]])*(ROUNDDOWN($B13,10)>=ROUNDDOWN(Lista_zajęć[GODZINA ROZPOCZĘCIA],10))*($B13<=Lista_zajęć[GODZINA ZAKOŃCZENIA]),Lista_zajęć[NIEPOWTARZALNE]),Lista_zajęć[NIEPOWTARZALNE],0),2),0)","v":0},{"$f":"IFERROR(INDEX(Lista_zajęć[],MATCH(SUMPRODUCT((Lista_zajęć[DZIEŃ]=Harmonogram_zajęć[[#Headers],[CZWARTEK]])*(ROUNDDOWN($B13,10)>=ROUNDDOWN(Lista_zajęć[GODZINA ROZPOCZĘCIA],10))*($B13<=Lista_zajęć[GODZINA ZAKOŃCZENIA]),Lista_zajęć[NIEPOWTARZALNE]),Lista_zajęć[NIEPOWTARZALNE],0),2),0)","v":0},{"$f":"IFERROR(INDEX(Lista_zajęć[],MATCH(SUMPRODUCT((Lista_zajęć[DZIEŃ]=Harmonogram_zajęć[[#Headers],[PIĄTEK]])*(ROUNDDOWN($B13,10)>=ROUNDDOWN(Lista_zajęć[GODZINA ROZPOCZĘCIA],10))*($B13<=Lista_zajęć[GODZINA ZAKOŃCZENIA]),Lista_zajęć[NIEPOWTARZALNE]),Lista_zajęć[NIEPOWTARZALNE],0),2),0)","v":0},{"$f":"IFERROR(INDEX(Lista_zajęć[],MATCH(SUMPRODUCT((Lista_zajęć[DZIEŃ]=Harmonogram_zajęć[[#Headers],[SOBOTA]])*(ROUNDDOWN($B13,10)>=ROUNDDOWN(Lista_zajęć[GODZINA ROZPOCZĘCIA],10))*($B13<=Lista_zajęć[GODZINA ZAKOŃCZENIA]),Lista_zajęć[NIEPOWTARZALNE]),Lista_zajęć[NIEPOWTARZALNE],0),2),0)","v":0}]
[null,"10:30:00",{"$f":"IFERROR(INDEX(Lista_zajęć[],MATCH(SUMPRODUCT((Lista_zajęć[DZIEŃ]=Harmonogram_zajęć[[#Headers],[NIEDZIELA]])*(ROUNDDOWN($B14,10)>=ROUNDDOWN(Lista_zajęć[GODZINA ROZPOCZĘCIA],10))*($B14<=Lista_zajęć[GODZINA ZAKOŃCZENIA]),Lista_zajęć[NIEPOWTARZALNE]),Lista_zajęć[NIEPOWTARZALNE],0),2),0)","v":0},{"$f":"IFERROR(INDEX(Lista_zajęć[],MATCH(SUMPRODUCT((Lista_zajęć[DZIEŃ]=Harmonogram_zajęć[[#Headers],[PONIEDZIAŁEK]])*(ROUNDDOWN($B14,10)>=ROUNDDOWN(Lista_zajęć[GODZINA ROZPOCZĘCIA],10))*($B14<=Lista_zajęć[GODZINA ZAKOŃCZENIA]),Lista_zajęć[NIEPOWTARZALNE]),Lista_zajęć[NIEPOWTARZALNE],0),2),0)","v":0},{"$f":"IFERROR(INDEX(Lista_zajęć[],MATCH(SUMPRODUCT((Lista_zajęć[DZIEŃ]=Harmonogram_zajęć[[#Headers],[WTOREK]])*(ROUNDDOWN($B14,10)>=ROUNDDOWN(Lista_zajęć[GODZINA ROZPOCZĘCIA],10))*($B14<=Lista_zajęć[GODZINA ZAKOŃCZENIA]),Lista_zajęć[NIEPOWTARZALNE]),Lista_zajęć[NIEPOWTARZALNE],0),2),0)","v":0},{"$f":"IFERROR(INDEX(Lista_zajęć[],MATCH(SUMPRODUCT((Lista_zajęć[DZIEŃ]=Harmonogram_zajęć[[#Headers],[ŚRODA]])*(ROUNDDOWN($B14,10)>=ROUNDDOWN(Lista_zajęć[GODZINA ROZPOCZĘCIA],10))*($B14<=Lista_zajęć[GODZINA ZAKOŃCZENIA]),Lista_zajęć[NIEPOWTARZALNE]),Lista_zajęć[NIEPOWTARZALNE],0),2),0)","v":0},{"$f":"IFERROR(INDEX(Lista_zajęć[],MATCH(SUMPRODUCT((Lista_zajęć[DZIEŃ]=Harmonogram_zajęć[[#Headers],[CZWARTEK]])*(ROUNDDOWN($B14,10)>=ROUNDDOWN(Lista_zajęć[GODZINA ROZPOCZĘCIA],10))*($B14<=Lista_zajęć[GODZINA ZAKOŃCZENIA]),Lista_zajęć[NIEPOWTARZALNE]),Lista_zajęć[NIEPOWTARZALNE],0),2),0)","v":0},{"$f":"IFERROR(INDEX(Lista_zajęć[],MATCH(SUMPRODUCT((Lista_zajęć[DZIEŃ]=Harmonogram_zajęć[[#Headers],[PIĄTEK]])*(ROUNDDOWN($B14,10)>=ROUNDDOWN(Lista_zajęć[GODZINA ROZPOCZĘCIA],10))*($B14<=Lista_zajęć[GODZINA ZAKOŃCZENIA]),Lista_zajęć[NIEPOWTARZALNE]),Lista_zajęć[NIEPOWTARZALNE],0),2),0)","v":0},{"$f":"IFERROR(INDEX(Lista_zajęć[],MATCH(SUMPRODUCT((Lista_zajęć[DZIEŃ]=Harmonogram_zajęć[[#Headers],[SOBOTA]])*(ROUNDDOWN($B14,10)>=ROUNDDOWN(Lista_zajęć[GODZINA ROZPOCZĘCIA],10))*($B14<=Lista_zajęć[GODZINA ZAKOŃCZENIA]),Lista_zajęć[NIEPOWTARZALNE]),Lista_zajęć[NIEPOWTARZALNE],0),2),0)","v":0}]
[null,"10:45:00",{"$f":"IFERROR(INDEX(Lista_zajęć[],MATCH(SUMPRODUCT((Lista_zajęć[DZIEŃ]=Harmonogram_zajęć[[#Headers],[NIEDZIELA]])*(ROUNDDOWN($B15,10)>=ROUNDDOWN(Lista_zajęć[GODZINA ROZPOCZĘCIA],10))*($B15<=Lista_zajęć[GODZINA ZAKOŃCZENIA]),Lista_zajęć[NIEPOWTARZALNE]),Lista_zajęć[NIEPOWTARZALNE],0),2),0)","v":0},{"$f":"IFERROR(INDEX(Lista_zajęć[],MATCH(SUMPRODUCT((Lista_zajęć[DZIEŃ]=Harmonogram_zajęć[[#Headers],[PONIEDZIAŁEK]])*(ROUNDDOWN($B15,10)>=ROUNDDOWN(Lista_zajęć[GODZINA ROZPOCZĘCIA],10))*($B15<=Lista_zajęć[GODZINA ZAKOŃCZENIA]),Lista_zajęć[NIEPOWTARZALNE]),Lista_zajęć[NIEPOWTARZALNE],0),2),0)","v":0},{"$f":"IFERROR(INDEX(Lista_zajęć[],MATCH(SUMPRODUCT((Lista_zajęć[DZIEŃ]=Harmonogram_zajęć[[#Headers],[WTOREK]])*(ROUNDDOWN($B15,10)>=ROUNDDOWN(Lista_zajęć[GODZINA ROZPOCZĘCIA],10))*($B15<=Lista_zajęć[GODZINA ZAKOŃCZENIA]),Lista_zajęć[NIEPOWTARZALNE]),Lista_zajęć[NIEPOWTARZALNE],0),2),0)","v":0},{"$f":"IFERROR(INDEX(Lista_zajęć[],MATCH(SUMPRODUCT((Lista_zajęć[DZIEŃ]=Harmonogram_zajęć[[#Headers],[ŚRODA]])*(ROUNDDOWN($B15,10)>=ROUNDDOWN(Lista_zajęć[GODZINA ROZPOCZĘCIA],10))*($B15<=Lista_zajęć[GODZINA ZAKOŃCZENIA]),Lista_zajęć[NIEPOWTARZALNE]),Lista_zajęć[NIEPOWTARZALNE],0),2),0)","v":0},{"$f":"IFERROR(INDEX(Lista_zajęć[],MATCH(SUMPRODUCT((Lista_zajęć[DZIEŃ]=Harmonogram_zajęć[[#Headers],[CZWARTEK]])*(ROUNDDOWN($B15,10)>=ROUNDDOWN(Lista_zajęć[GODZINA ROZPOCZĘCIA],10))*($B15<=Lista_zajęć[GODZINA ZAKOŃCZENIA]),Lista_zajęć[NIEPOWTARZALNE]),Lista_zajęć[NIEPOWTARZALNE],0),2),0)","v":0},{"$f":"IFERROR(INDEX(Lista_zajęć[],MATCH(SUMPRODUCT((Lista_zajęć[DZIEŃ]=Harmonogram_zajęć[[#Headers],[PIĄTEK]])*(ROUNDDOWN($B15,10)>=ROUNDDOWN(Lista_zajęć[GODZINA ROZPOCZĘCIA],10))*($B15<=Lista_zajęć[GODZINA ZAKOŃCZENIA]),Lista_zajęć[NIEPOWTARZALNE]),Lista_zajęć[NIEPOWTARZALNE],0),2),0)","v":0},{"$f":"IFERROR(INDEX(Lista_zajęć[],MATCH(SUMPRODUCT((Lista_zajęć[DZIEŃ]=Harmonogram_zajęć[[#Headers],[SOBOTA]])*(ROUNDDOWN($B15,10)>=ROUNDDOWN(Lista_zajęć[GODZINA ROZPOCZĘCIA],10))*($B15<=Lista_zajęć[GODZINA ZAKOŃCZENIA]),Lista_zajęć[NIEPOWTARZALNE]),Lista_zajęć[NIEPOWTARZALNE],0),2),0)","v":0}]
[null,"11:00:00",{"$f":"IFERROR(INDEX(Lista_zajęć[],MATCH(SUMPRODUCT((Lista_zajęć[DZIEŃ]=Harmonogram_zajęć[[#Headers],[NIEDZIELA]])*(ROUNDDOWN($B16,10)>=ROUNDDOWN(Lista_zajęć[GODZINA ROZPOCZĘCIA],10))*($B16<=Lista_zajęć[GODZINA ZAKOŃCZENIA]),Lista_zajęć[NIEPOWTARZALNE]),Lista_zajęć[NIEPOWTARZALNE],0),2),0)","v":0},{"$f":"IFERROR(INDEX(Lista_zajęć[],MATCH(SUMPRODUCT((Lista_zajęć[DZIEŃ]=Harmonogram_zajęć[[#Headers],[PONIEDZIAŁEK]])*(ROUNDDOWN($B16,10)>=ROUNDDOWN(Lista_zajęć[GODZINA ROZPOCZĘCIA],10))*($B16<=Lista_zajęć[GODZINA ZAKOŃCZENIA]),Lista_zajęć[NIEPOWTARZALNE]),Lista_zajęć[NIEPOWTARZALNE],0),2),0)","v":0},{"$f":"IFERROR(INDEX(Lista_zajęć[],MATCH(SUMPRODUCT((Lista_zajęć[DZIEŃ]=Harmonogram_zajęć[[#Headers],[WTOREK]])*(ROUNDDOWN($B16,10)>=ROUNDDOWN(Lista_zajęć[GODZINA ROZPOCZĘCIA],10))*($B16<=Lista_zajęć[GODZINA ZAKOŃCZENIA]),Lista_zajęć[NIEPOWTARZALNE]),Lista_zajęć[NIEPOWTARZALNE],0),2),0)","v":"WF-295"},{"$f":"IFERROR(INDEX(Lista_zajęć[],MATCH(SUMPRODUCT((Lista_zajęć[DZIEŃ]=Harmonogram_zajęć[[#Headers],[ŚRODA]])*(ROUNDDOWN($B16,10)>=ROUNDDOWN(Lista_zajęć[GODZINA ROZPOCZĘCIA],10))*($B16<=Lista_zajęć[GODZINA ZAKOŃCZENIA]),Lista_zajęć[NIEPOWTARZALNE]),Lista_zajęć[NIEPOWTARZALNE],0),2),0)","v":0},{"$f":"IFERROR(INDEX(Lista_zajęć[],MATCH(SUMPRODUCT((Lista_zajęć[DZIEŃ]=Harmonogram_zajęć[[#Headers],[CZWARTEK]])*(ROUNDDOWN($B16,10)>=ROUNDDOWN(Lista_zajęć[GODZINA ROZPOCZĘCIA],10))*($B16<=Lista_zajęć[GODZINA ZAKOŃCZENIA]),Lista_zajęć[NIEPOWTARZALNE]),Lista_zajęć[NIEPOWTARZALNE],0),2),0)","v":"WF-295"},{"$f":"IFERROR(INDEX(Lista_zajęć[],MATCH(SUMPRODUCT((Lista_zajęć[DZIEŃ]=Harmonogram_zajęć[[#Headers],[PIĄTEK]])*(ROUNDDOWN($B16,10)>=ROUNDDOWN(Lista_zajęć[GODZINA ROZPOCZĘCIA],10))*($B16<=Lista_zajęć[GODZINA ZAKOŃCZENIA]),Lista_zajęć[NIEPOWTARZALNE]),Lista_zajęć[NIEPOWTARZALNE],0),2),0)","v":0},{"$f":"IFERROR(INDEX(Lista_zajęć[],MATCH(SUMPRODUCT((Lista_zajęć[DZIEŃ]=Harmonogram_zajęć[[#Headers],[SOBOTA]])*(ROUNDDOWN($B16,10)>=ROUNDDOWN(Lista_zajęć[GODZINA ROZPOCZĘCIA],10))*($B16<=Lista_zajęć[GODZINA ZAKOŃCZENIA]),Lista_zajęć[NIEPOWTARZALNE]),Lista_zajęć[NIEPOWTARZALNE],0),2),0)","v":0}]
[null,"11:15:00",{"$f":"IFERROR(INDEX(Lista_zajęć[],MATCH(SUMPRODUCT((Lista_zajęć[DZIEŃ]=Harmonogram_zajęć[[#Headers],[NIEDZIELA]])*(ROUNDDOWN($B17,10)>=ROUNDDOWN(Lista_zajęć[GODZINA ROZPOCZĘCIA],10))*($B17<=Lista_zajęć[GODZINA ZAKOŃCZENIA]),Lista_zajęć[NIEPOWTARZALNE]),Lista_zajęć[NIEPOWTARZALNE],0),2),0)","v":0},{"$f":"IFERROR(INDEX(Lista_zajęć[],MATCH(SUMPRODUCT((Lista_zajęć[DZIEŃ]=Harmonogram_zajęć[[#Headers],[PONIEDZIAŁEK]])*(ROUNDDOWN($B17,10)>=ROUNDDOWN(Lista_zajęć[GODZINA ROZPOCZĘCIA],10))*($B17<=Lista_zajęć[GODZINA ZAKOŃCZENIA]),Lista_zajęć[NIEPOWTARZALNE]),Lista_zajęć[NIEPOWTARZALNE],0),2),0)","v":0},{"$f":"IFERROR(INDEX(Lista_zajęć[],MATCH(SUMPRODUCT((Lista_zajęć[DZIEŃ]=Harmonogram_zajęć[[#Headers],[WTOREK]])*(ROUNDDOWN($B17,10)>=ROUNDDOWN(Lista_zajęć[GODZINA ROZPOCZĘCIA],10))*($B17<=Lista_zajęć[GODZINA ZAKOŃCZENIA]),Lista_zajęć[NIEPOWTARZALNE]),Lista_zajęć[NIEPOWTARZALNE],0),2),0)","v":"WF-295"},{"$f":"IFERROR(INDEX(Lista_zajęć[],MATCH(SUMPRODUCT((Lista_zajęć[DZIEŃ]=Harmonogram_zajęć[[#Headers],[ŚRODA]])*(ROUNDDOWN($B17,10)>=ROUNDDOWN(Lista_zajęć[GODZINA ROZPOCZĘCIA],10))*($B17<=Lista_zajęć[GODZINA ZAKOŃCZENIA]),Lista_zajęć[NIEPOWTARZALNE]),Lista_zajęć[NIEPOWTARZALNE],0),2),0)","v":0},{"$f":"IFERROR(INDEX(Lista_zajęć[],MATCH(SUMPRODUCT((Lista_zajęć[DZIEŃ]=Harmonogram_zajęć[[#Headers],[CZWARTEK]])*(ROUNDDOWN($B17,10)>=ROUNDDOWN(Lista_zajęć[GODZINA ROZPOCZĘCIA],10))*($B17<=Lista_zajęć[GODZINA ZAKOŃCZENIA]),Lista_zajęć[NIEPOWTARZALNE]),Lista_zajęć[NIEPOWTARZALNE],0),2),0)","v":"WF-295"},{"$f":"IFERROR(INDEX(Lista_zajęć[],MATCH(SUMPRODUCT((Lista_zajęć[DZIEŃ]=Harmonogram_zajęć[[#Headers],[PIĄTEK]])*(ROUNDDOWN($B17,10)>=ROUNDDOWN(Lista_zajęć[GODZINA ROZPOCZĘCIA],10))*($B17<=Lista_zajęć[GODZINA ZAKOŃCZENIA]),Lista_zajęć[NIEPOWTARZALNE]),Lista_zajęć[NIEPOWTARZALNE],0),2),0)","v":0},{"$f":"IFERROR(INDEX(Lista_zajęć[],MATCH(SUMPRODUCT((Lista_zajęć[DZIEŃ]=Harmonogram_zajęć[[#Headers],[SOBOTA]])*(ROUNDDOWN($B17,10)>=ROUNDDOWN(Lista_zajęć[GODZINA ROZPOCZĘCIA],10))*($B17<=Lista_zajęć[GODZINA ZAKOŃCZENIA]),Lista_zajęć[NIEPOWTARZALNE]),Lista_zajęć[NIEPOWTARZALNE],0),2),0)","v":0}]
[null,"11:30:00",{"$f":"IFERROR(INDEX(Lista_zajęć[],MATCH(SUMPRODUCT((Lista_zajęć[DZIEŃ]=Harmonogram_zajęć[[#Headers],[NIEDZIELA]])*(ROUNDDOWN($B18,10)>=ROUNDDOWN(Lista_zajęć[GODZINA ROZPOCZĘCIA],10))*($B18<=Lista_zajęć[GODZINA ZAKOŃCZENIA]),Lista_zajęć[NIEPOWTARZALNE]),Lista_zajęć[NIEPOWTARZALNE],0),2),0)","v":0},{"$f":"IFERROR(INDEX(Lista_zajęć[],MATCH(SUMPRODUCT((Lista_zajęć[DZIEŃ]=Harmonogram_zajęć[[#Headers],[PONIEDZIAŁEK]])*(ROUNDDOWN($B18,10)>=ROUNDDOWN(Lista_zajęć[GODZINA ROZPOCZĘCIA],10))*($B18<=Lista_zajęć[GODZINA ZAKOŃCZENIA]),Lista_zajęć[NIEPOWTARZALNE]),Lista_zajęć[NIEPOWTARZALNE],0),2),0)","v":0},{"$f":"IFERROR(INDEX(Lista_zajęć[],MATCH(SUMPRODUCT((Lista_zajęć[DZIEŃ]=Harmonogram_zajęć[[#Headers],[WTOREK]])*(ROUNDDOWN($B18,10)>=ROUNDDOWN(Lista_zajęć[GODZINA ROZPOCZĘCIA],10))*($B18<=Lista_zajęć[GODZINA ZAKOŃCZENIA]),Lista_zajęć[NIEPOWTARZALNE]),Lista_zajęć[NIEPOWTARZALNE],0),2),0)","v":"WF-295"},{"$f":"IFERROR(INDEX(Lista_zajęć[],MATCH(SUMPRODUCT((Lista_zajęć[DZIEŃ]=Harmonogram_zajęć[[#Headers],[ŚRODA]])*(ROUNDDOWN($B18,10)>=ROUNDDOWN(Lista_zajęć[GODZINA ROZPOCZĘCIA],10))*($B18<=Lista_zajęć[GODZINA ZAKOŃCZENIA]),Lista_zajęć[NIEPOWTARZALNE]),Lista_zajęć[NIEPOWTARZALNE],0),2),0)","v":0},{"$f":"IFERROR(INDEX(Lista_zajęć[],MATCH(SUMPRODUCT((Lista_zajęć[DZIEŃ]=Harmonogram_zajęć[[#Headers],[CZWARTEK]])*(ROUNDDOWN($B18,10)>=ROUNDDOWN(Lista_zajęć[GODZINA ROZPOCZĘCIA],10))*($B18<=Lista_zajęć[GODZINA ZAKOŃCZENIA]),Lista_zajęć[NIEPOWTARZALNE]),Lista_zajęć[NIEPOWTARZALNE],0),2),0)","v":"WF-295"},{"$f":"IFERROR(INDEX(Lista_zajęć[],MATCH(SUMPRODUCT((Lista_zajęć[DZIEŃ]=Harmonogram_zajęć[[#Headers],[PIĄTEK]])*(ROUNDDOWN($B18,10)>=ROUNDDOWN(Lista_zajęć[GODZINA ROZPOCZĘCIA],10))*($B18<=Lista_zajęć[GODZINA ZAKOŃCZENIA]),Lista_zajęć[NIEPOWTARZALNE]),Lista_zajęć[NIEPOWTARZALNE],0),2),0)","v":0},{"$f":"IFERROR(INDEX(Lista_zajęć[],MATCH(SUMPRODUCT((Lista_zajęć[DZIEŃ]=Harmonogram_zajęć[[#Headers],[SOBOTA]])*(ROUNDDOWN($B18,10)>=ROUNDDOWN(Lista_zajęć[GODZINA ROZPOCZĘCIA],10))*($B18<=Lista_zajęć[GODZINA ZAKOŃCZENIA]),Lista_zajęć[NIEPOWTARZALNE]),Lista_zajęć[NIEPOWTARZALNE],0),2),0)","v":0}]
[null,"11:45:00",{"$f":"IFERROR(INDEX(Lista_zajęć[],MATCH(SUMPRODUCT((Lista_zajęć[DZIEŃ]=Harmonogram_zajęć[[#Headers],[NIEDZIELA]])*(ROUNDDOWN($B19,10)>=ROUNDDOWN(Lista_zajęć[GODZINA ROZPOCZĘCIA],10))*($B19<=Lista_zajęć[GODZINA ZAKOŃCZENIA]),Lista_zajęć[NIEPOWTARZALNE]),Lista_zajęć[NIEPOWTARZALNE],0),2),0)","v":0},{"$f":"IFERROR(INDEX(Lista_zajęć[],MATCH(SUMPRODUCT((Lista_zajęć[DZIEŃ]=Harmonogram_zajęć[[#Headers],[PONIEDZIAŁEK]])*(ROUNDDOWN($B19,10)>=ROUNDDOWN(Lista_zajęć[GODZINA ROZPOCZĘCIA],10))*($B19<=Lista_zajęć[GODZINA ZAKOŃCZENIA]),Lista_zajęć[NIEPOWTARZALNE]),Lista_zajęć[NIEPOWTARZALNE],0),2),0)","v":0},{"$f":"IFERROR(INDEX(Lista_zajęć[],MATCH(SUMPRODUCT((Lista_zajęć[DZIEŃ]=Harmonogram_zajęć[[#Headers],[WTOREK]])*(ROUNDDOWN($B19,10)>=ROUNDDOWN(Lista_zajęć[GODZINA ROZPOCZĘCIA],10))*($B19<=Lista_zajęć[GODZINA ZAKOŃCZENIA]),Lista_zajęć[NIEPOWTARZALNE]),Lista_zajęć[NIEPOWTARZALNE],0),2),0)","v":"WF-295"},{"$f":"IFERROR(INDEX(Lista_zajęć[],MATCH(SUMPRODUCT((Lista_zajęć[DZIEŃ]=Harmonogram_zajęć[[#Headers],[ŚRODA]])*(ROUNDDOWN($B19,10)>=ROUNDDOWN(Lista_zajęć[GODZINA ROZPOCZĘCIA],10))*($B19<=Lista_zajęć[GODZINA ZAKOŃCZENIA]),Lista_zajęć[NIEPOWTARZALNE]),Lista_zajęć[NIEPOWTARZALNE],0),2),0)","v":0},{"$f":"IFERROR(INDEX(Lista_zajęć[],MATCH(SUMPRODUCT((Lista_zajęć[DZIEŃ]=Harmonogram_zajęć[[#Headers],[CZWARTEK]])*(ROUNDDOWN($B19,10)>=ROUNDDOWN(Lista_zajęć[GODZINA ROZPOCZĘCIA],10))*($B19<=Lista_zajęć[GODZINA ZAKOŃCZENIA]),Lista_zajęć[NIEPOWTARZALNE]),Lista_zajęć[NIEPOWTARZALNE],0),2),0)","v":"WF-295"},{"$f":"IFERROR(INDEX(Lista_zajęć[],MATCH(SUMPRODUCT((Lista_zajęć[DZIEŃ]=Harmonogram_zajęć[[#Headers],[PIĄTEK]])*(ROUNDDOWN($B19,10)>=ROUNDDOWN(Lista_zajęć[GODZINA ROZPOCZĘCIA],10))*($B19<=Lista_zajęć[GODZINA ZAKOŃCZENIA]),Lista_zajęć[NIEPOWTARZALNE]),Lista_zajęć[NIEPOWTARZALNE],0),2),0)","v":0},{"$f":"IFERROR(INDEX(Lista_zajęć[],MATCH(SUMPRODUCT((Lista_zajęć[DZIEŃ]=Harmonogram_zajęć[[#Headers],[SOBOTA]])*(ROUNDDOWN($B19,10)>=ROUNDDOWN(Lista_zajęć[GODZINA ROZPOCZĘCIA],10))*($B19<=Lista_zajęć[GODZINA ZAKOŃCZENIA]),Lista_zajęć[NIEPOWTARZALNE]),Lista_zajęć[NIEPOWTARZALNE],0),2),0)","v":0}]
[null,"12:00:00",{"$f":"IFERROR(INDEX(Lista_zajęć[],MATCH(SUMPRODUCT((Lista_zajęć[DZIEŃ]=Harmonogram_zajęć[[#Headers],[NIEDZIELA]])*(ROUNDDOWN($B20,10)>=ROUNDDOWN(Lista_zajęć[GODZINA ROZPOCZĘCIA],10))*($B20<=Lista_zajęć[GODZINA ZAKOŃCZENIA]),Lista_zajęć[NIEPOWTARZALNE]),Lista_zajęć[NIEPOWTARZALNE],0),2),0)","v":0},{"$f":"IFERROR(INDEX(Lista_zajęć[],MATCH(SUMPRODUCT((Lista_zajęć[DZIEŃ]=Harmonogram_zajęć[[#Headers],[PONIEDZIAŁEK]])*(ROUNDDOWN($B20,10)>=ROUNDDOWN(Lista_zajęć[GODZINA ROZPOCZĘCIA],10))*($B20<=Lista_zajęć[GODZINA ZAKOŃCZENIA]),Lista_zajęć[NIEPOWTARZALNE]),Lista_zajęć[NIEPOWTARZALNE],0),2),0)","v":0},{"$f":"IFERROR(INDEX(Lista_zajęć[],MATCH(SUMPRODUCT((Lista_zajęć[DZIEŃ]=Harmonogram_zajęć[[#Headers],[WTOREK]])*(ROUNDDOWN($B20,10)>=ROUNDDOWN(Lista_zajęć[GODZINA ROZPOCZĘCIA],10))*($B20<=Lista_zajęć[GODZINA ZAKOŃCZENIA]),Lista_zajęć[NIEPOWTARZALNE]),Lista_zajęć[NIEPOWTARZALNE],0),2),0)","v":"WF-295"},{"$f":"IFERROR(INDEX(Lista_zajęć[],MATCH(SUMPRODUCT((Lista_zajęć[DZIEŃ]=Harmonogram_zajęć[[#Headers],[ŚRODA]])*(ROUNDDOWN($B20,10)>=ROUNDDOWN(Lista_zajęć[GODZINA ROZPOCZĘCIA],10))*($B20<=Lista_zajęć[GODZINA ZAKOŃCZENIA]),Lista_zajęć[NIEPOWTARZALNE]),Lista_zajęć[NIEPOWTARZALNE],0),2),0)","v":0},{"$f":"IFERROR(INDEX(Lista_zajęć[],MATCH(SUMPRODUCT((Lista_zajęć[DZIEŃ]=Harmonogram_zajęć[[#Headers],[CZWARTEK]])*(ROUNDDOWN($B20,10)>=ROUNDDOWN(Lista_zajęć[GODZINA ROZPOCZĘCIA],10))*($B20<=Lista_zajęć[GODZINA ZAKOŃCZENIA]),Lista_zajęć[NIEPOWTARZALNE]),Lista_zajęć[NIEPOWTARZALNE],0),2),0)","v":"WF-295"},{"$f":"IFERROR(INDEX(Lista_zajęć[],MATCH(SUMPRODUCT((Lista_zajęć[DZIEŃ]=Harmonogram_zajęć[[#Headers],[PIĄTEK]])*(ROUNDDOWN($B20,10)>=ROUNDDOWN(Lista_zajęć[GODZINA ROZPOCZĘCIA],10))*($B20<=Lista_zajęć[GODZINA ZAKOŃCZENIA]),Lista_zajęć[NIEPOWTARZALNE]),Lista_zajęć[NIEPOWTARZALNE],0),2),0)","v":0},{"$f":"IFERROR(INDEX(Lista_zajęć[],MATCH(SUMPRODUCT((Lista_zajęć[DZIEŃ]=Harmonogram_zajęć[[#Headers],[SOBOTA]])*(ROUNDDOWN($B20,10)>=ROUNDDOWN(Lista_zajęć[GODZINA ROZPOCZĘCIA],10))*($B20<=Lista_zajęć[GODZINA ZAKOŃCZENIA]),Lista_zajęć[NIEPOWTARZALNE]),Lista_zajęć[NIEPOWTARZALNE],0),2),0)","v":0}]
[null,"12:15:00",{"$f":"IFERROR(INDEX(Lista_zajęć[],MATCH(SUMPRODUCT((Lista_zajęć[DZIEŃ]=Harmonogram_zajęć[[#Headers],[NIEDZIELA]])*(ROUNDDOWN($B21,10)>=ROUNDDOWN(Lista_zajęć[GODZINA ROZPOCZĘCIA],10))*($B21<=Lista_zajęć[GODZINA ZAKOŃCZENIA]),Lista_zajęć[NIEPOWTARZALNE]),Lista_zajęć[NIEPOWTARZALNE],0),2),0)","v":0},{"$f":"IFERROR(INDEX(Lista_zajęć[],MATCH(SUMPRODUCT((Lista_zajęć[DZIEŃ]=Harmonogram_zajęć[[#Headers],[PONIEDZIAŁEK]])*(ROUNDDOWN($B21,10)>=ROUNDDOWN(Lista_zajęć[GODZINA ROZPOCZĘCIA],10))*($B21<=Lista_zajęć[GODZINA ZAKOŃCZENIA]),Lista_zajęć[NIEPOWTARZALNE]),Lista_zajęć[NIEPOWTARZALNE],0),2),0)","v":0},{"$f":"IFERROR(INDEX(Lista_zajęć[],MATCH(SUMPRODUCT((Lista_zajęć[DZIEŃ]=Harmonogram_zajęć[[#Headers],[WTOREK]])*(ROUNDDOWN($B21,10)>=ROUNDDOWN(Lista_zajęć[GODZINA ROZPOCZĘCIA],10))*($B21<=Lista_zajęć[GODZINA ZAKOŃCZENIA]),Lista_zajęć[NIEPOWTARZALNE]),Lista_zajęć[NIEPOWTARZALNE],0),2),0)","v":0},{"$f":"IFERROR(INDEX(Lista_zajęć[],MATCH(SUMPRODUCT((Lista_zajęć[DZIEŃ]=Harmonogram_zajęć[[#Headers],[ŚRODA]])*(ROUNDDOWN($B21,10)>=ROUNDDOWN(Lista_zajęć[GODZINA ROZPOCZĘCIA],10))*($B21<=Lista_zajęć[GODZINA ZAKOŃCZENIA]),Lista_zajęć[NIEPOWTARZALNE]),Lista_zajęć[NIEPOWTARZALNE],0),2),0)","v":0},{"$f":"IFERROR(INDEX(Lista_zajęć[],MATCH(SUMPRODUCT((Lista_zajęć[DZIEŃ]=Harmonogram_zajęć[[#Headers],[CZWARTEK]])*(ROUNDDOWN($B21,10)>=ROUNDDOWN(Lista_zajęć[GODZINA ROZPOCZĘCIA],10))*($B21<=Lista_zajęć[GODZINA ZAKOŃCZENIA]),Lista_zajęć[NIEPOWTARZALNE]),Lista_zajęć[NIEPOWTARZALNE],0),2),0)","v":0},{"$f":"IFERROR(INDEX(Lista_zajęć[],MATCH(SUMPRODUCT((Lista_zajęć[DZIEŃ]=Harmonogram_zajęć[[#Headers],[PIĄTEK]])*(ROUNDDOWN($B21,10)>=ROUNDDOWN(Lista_zajęć[GODZINA ROZPOCZĘCIA],10))*($B21<=Lista_zajęć[GODZINA ZAKOŃCZENIA]),Lista_zajęć[NIEPOWTARZALNE]),Lista_zajęć[NIEPOWTARZALNE],0),2),0)","v":0},{"$f":"IFERROR(INDEX(Lista_zajęć[],MATCH(SUMPRODUCT((Lista_zajęć[DZIEŃ]=Harmonogram_zajęć[[#Headers],[SOBOTA]])*(ROUNDDOWN($B21,10)>=ROUNDDOWN(Lista_zajęć[GODZINA ROZPOCZĘCIA],10))*($B21<=Lista_zajęć[GODZINA ZAKOŃCZENIA]),Lista_zajęć[NIEPOWTARZALNE]),Lista_zajęć[NIEPOWTARZALNE],0),2),0)","v":0}]
[null,"12:30:00",{"$f":"IFERROR(INDEX(Lista_zajęć[],MATCH(SUMPRODUCT((Lista_zajęć[DZIEŃ]=Harmonogram_zajęć[[#Headers],[NIEDZIELA]])*(ROUNDDOWN($B22,10)>=ROUNDDOWN(Lista_zajęć[GODZINA ROZPOCZĘCIA],10))*($B22<=Lista_zajęć[GODZINA ZAKOŃCZENIA]),Lista_zajęć[NIEPOWTARZALNE]),Lista_zajęć[NIEPOWTARZALNE],0),2),0)","v":0},{"$f":"IFERROR(INDEX(Lista_zajęć[],MATCH(SUMPRODUCT((Lista_zajęć[DZIEŃ]=Harmonogram_zajęć[[#Headers],[PONIEDZIAŁEK]])*(ROUNDDOWN($B22,10)>=ROUNDDOWN(Lista_zajęć[GODZINA ROZPOCZĘCIA],10))*($B22<=Lista_zajęć[GODZINA ZAKOŃCZENIA]),Lista_zajęć[NIEPOWTARZALNE]),Lista_zajęć[NIEPOWTARZALNE],0),2),0)","v":0},{"$f":"IFERROR(INDEX(Lista_zajęć[],MATCH(SUMPRODUCT((Lista_zajęć[DZIEŃ]=Harmonogram_zajęć[[#Headers],[WTOREK]])*(ROUNDDOWN($B22,10)>=ROUNDDOWN(Lista_zajęć[GODZINA ROZPOCZĘCIA],10))*($B22<=Lista_zajęć[GODZINA ZAKOŃCZENIA]),Lista_zajęć[NIEPOWTARZALNE]),Lista_zajęć[NIEPOWTARZALNE],0),2),0)","v":0},{"$f":"IFERROR(INDEX(Lista_zajęć[],MATCH(SUMPRODUCT((Lista_zajęć[DZIEŃ]=Harmonogram_zajęć[[#Headers],[ŚRODA]])*(ROUNDDOWN($B22,10)>=ROUNDDOWN(Lista_zajęć[GODZINA ROZPOCZĘCIA],10))*($B22<=Lista_zajęć[GODZINA ZAKOŃCZENIA]),Lista_zajęć[NIEPOWTARZALNE]),Lista_zajęć[NIEPOWTARZALNE],0),2),0)","v":0},{"$f":"IFERROR(INDEX(Lista_zajęć[],MATCH(SUMPRODUCT((Lista_zajęć[DZIEŃ]=Harmonogram_zajęć[[#Headers],[CZWARTEK]])*(ROUNDDOWN($B22,10)>=ROUNDDOWN(Lista_zajęć[GODZINA ROZPOCZĘCIA],10))*($B22<=Lista_zajęć[GODZINA ZAKOŃCZENIA]),Lista_zajęć[NIEPOWTARZALNE]),Lista_zajęć[NIEPOWTARZALNE],0),2),0)","v":0},{"$f":"IFERROR(INDEX(Lista_zajęć[],MATCH(SUMPRODUCT((Lista_zajęć[DZIEŃ]=Harmonogram_zajęć[[#Headers],[PIĄTEK]])*(ROUNDDOWN($B22,10)>=ROUNDDOWN(Lista_zajęć[GODZINA ROZPOCZĘCIA],10))*($B22<=Lista_zajęć[GODZINA ZAKOŃCZENIA]),Lista_zajęć[NIEPOWTARZALNE]),Lista_zajęć[NIEPOWTARZALNE],0),2),0)","v":0},{"$f":"IFERROR(INDEX(Lista_zajęć[],MATCH(SUMPRODUCT((Lista_zajęć[DZIEŃ]=Harmonogram_zajęć[[#Headers],[SOBOTA]])*(ROUNDDOWN($B22,10)>=ROUNDDOWN(Lista_zajęć[GODZINA ROZPOCZĘCIA],10))*($B22<=Lista_zajęć[GODZINA ZAKOŃCZENIA]),Lista_zajęć[NIEPOWTARZALNE]),Lista_zajęć[NIEPOWTARZALNE],0),2),0)","v":0}]
[null,"12:45:00",{"$f":"IFERROR(INDEX(Lista_zajęć[],MATCH(SUMPRODUCT((Lista_zajęć[DZIEŃ]=Harmonogram_zajęć[[#Headers],[NIEDZIELA]])*(ROUNDDOWN($B23,10)>=ROUNDDOWN(Lista_zajęć[GODZINA ROZPOCZĘCIA],10))*($B23<=Lista_zajęć[GODZINA ZAKOŃCZENIA]),Lista_zajęć[NIEPOWTARZALNE]),Lista_zajęć[NIEPOWTARZALNE],0),2),0)","v":0},{"$f":"IFERROR(INDEX(Lista_zajęć[],MATCH(SUMPRODUCT((Lista_zajęć[DZIEŃ]=Harmonogram_zajęć[[#Headers],[PONIEDZIAŁEK]])*(ROUNDDOWN($B23,10)>=ROUNDDOWN(Lista_zajęć[GODZINA ROZPOCZĘCIA],10))*($B23<=Lista_zajęć[GODZINA ZAKOŃCZENIA]),Lista_zajęć[NIEPOWTARZALNE]),Lista_zajęć[NIEPOWTARZALNE],0),2),0)","v":0},{"$f":"IFERROR(INDEX(Lista_zajęć[],MATCH(SUMPRODUCT((Lista_zajęć[DZIEŃ]=Harmonogram_zajęć[[#Headers],[WTOREK]])*(ROUNDDOWN($B23,10)>=ROUNDDOWN(Lista_zajęć[GODZINA ROZPOCZĘCIA],10))*($B23<=Lista_zajęć[GODZINA ZAKOŃCZENIA]),Lista_zajęć[NIEPOWTARZALNE]),Lista_zajęć[NIEPOWTARZALNE],0),2),0)","v":0},{"$f":"IFERROR(INDEX(Lista_zajęć[],MATCH(SUMPRODUCT((Lista_zajęć[DZIEŃ]=Harmonogram_zajęć[[#Headers],[ŚRODA]])*(ROUNDDOWN($B23,10)>=ROUNDDOWN(Lista_zajęć[GODZINA ROZPOCZĘCIA],10))*($B23<=Lista_zajęć[GODZINA ZAKOŃCZENIA]),Lista_zajęć[NIEPOWTARZALNE]),Lista_zajęć[NIEPOWTARZALNE],0),2),0)","v":0},{"$f":"IFERROR(INDEX(Lista_zajęć[],MATCH(SUMPRODUCT((Lista_zajęć[DZIEŃ]=Harmonogram_zajęć[[#Headers],[CZWARTEK]])*(ROUNDDOWN($B23,10)>=ROUNDDOWN(Lista_zajęć[GODZINA ROZPOCZĘCIA],10))*($B23<=Lista_zajęć[GODZINA ZAKOŃCZENIA]),Lista_zajęć[NIEPOWTARZALNE]),Lista_zajęć[NIEPOWTARZALNE],0),2),0)","v":0},{"$f":"IFERROR(INDEX(Lista_zajęć[],MATCH(SUMPRODUCT((Lista_zajęć[DZIEŃ]=Harmonogram_zajęć[[#Headers],[PIĄTEK]])*(ROUNDDOWN($B23,10)>=ROUNDDOWN(Lista_zajęć[GODZINA ROZPOCZĘCIA],10))*($B23<=Lista_zajęć[GODZINA ZAKOŃCZENIA]),Lista_zajęć[NIEPOWTARZALNE]),Lista_zajęć[NIEPOWTARZALNE],0),2),0)","v":0},{"$f":"IFERROR(INDEX(Lista_zajęć[],MATCH(SUMPRODUCT((Lista_zajęć[DZIEŃ]=Harmonogram_zajęć[[#Headers],[SOBOTA]])*(ROUNDDOWN($B23,10)>=ROUNDDOWN(Lista_zajęć[GODZINA ROZPOCZĘCIA],10))*($B23<=Lista_zajęć[GODZINA ZAKOŃCZENIA]),Lista_zajęć[NIEPOWTARZALNE]),Lista_zajęć[NIEPOWTARZALNE],0),2),0)","v":0}]
[null,"13:00:00",{"$f":"IFERROR(INDEX(Lista_zajęć[],MATCH(SUMPRODUCT((Lista_zajęć[DZIEŃ]=Harmonogram_zajęć[[#Headers],[NIEDZIELA]])*(ROUNDDOWN($B24,10)>=ROUNDDOWN(Lista_zajęć[GODZINA ROZPOCZĘCIA],10))*($B24<=Lista_zajęć[GODZINA ZAKOŃCZENIA]),Lista_zajęć[NIEPOWTARZALNE]),Lista_zajęć[NIEPOWTARZALNE],0),2),0)","v":0},{"$f":"IFERROR(INDEX(Lista_zajęć[],MATCH(SUMPRODUCT((Lista_zajęć[DZIEŃ]=Harmonogram_zajęć[[#Headers],[PONIEDZIAŁEK]])*(ROUNDDOWN($B24,10)>=ROUNDDOWN(Lista_zajęć[GODZINA ROZPOCZĘCIA],10))*($B24<=Lista_zajęć[GODZINA ZAKOŃCZENIA]),Lista_zajęć[NIEPOWTARZALNE]),Lista_zajęć[NIEPOWTARZALNE],0),2),0)","v":"TE-121"},{"$f":"IFERROR(INDEX(Lista_zajęć[],MATCH(SUMPRODUCT((Lista_zajęć[DZIEŃ]=Harmonogram_zajęć[[#Headers],[WTOREK]])*(ROUNDDOWN($B24,10)>=ROUNDDOWN(Lista_zajęć[GODZINA ROZPOCZĘCIA],10))*($B24<=Lista_zajęć[GODZINA ZAKOŃCZENIA]),Lista_zajęć[NIEPOWTARZALNE]),Lista_zajęć[NIEPOWTARZALNE],0),2),0)","v":0},{"$f":"IFERROR(INDEX(Lista_zajęć[],MATCH(SUMPRODUCT((Lista_zajęć[DZIEŃ]=Harmonogram_zajęć[[#Headers],[ŚRODA]])*(ROUNDDOWN($B24,10)>=ROUNDDOWN(Lista_zajęć[GODZINA ROZPOCZĘCIA],10))*($B24<=Lista_zajęć[GODZINA ZAKOŃCZENIA]),Lista_zajęć[NIEPOWTARZALNE]),Lista_zajęć[NIEPOWTARZALNE],0),2),0)","v":"TE-121"},{"$f":"IFERROR(INDEX(Lista_zajęć[],MATCH(SUMPRODUCT((Lista_zajęć[DZIEŃ]=Harmonogram_zajęć[[#Headers],[CZWARTEK]])*(ROUNDDOWN($B24,10)>=ROUNDDOWN(Lista_zajęć[GODZINA ROZPOCZĘCIA],10))*($B24<=Lista_zajęć[GODZINA ZAKOŃCZENIA]),Lista_zajęć[NIEPOWTARZALNE]),Lista_zajęć[NIEPOWTARZALNE],0),2),0)","v":0},{"$f":"IFERROR(INDEX(Lista_zajęć[],MATCH(SUMPRODUCT((Lista_zajęć[DZIEŃ]=Harmonogram_zajęć[[#Headers],[PIĄTEK]])*(ROUNDDOWN($B24,10)>=ROUNDDOWN(Lista_zajęć[GODZINA ROZPOCZĘCIA],10))*($B24<=Lista_zajęć[GODZINA ZAKOŃCZENIA]),Lista_zajęć[NIEPOWTARZALNE]),Lista_zajęć[NIEPOWTARZALNE],0),2),0)","v":0},{"$f":"IFERROR(INDEX(Lista_zajęć[],MATCH(SUMPRODUCT((Lista_zajęć[DZIEŃ]=Harmonogram_zajęć[[#Headers],[SOBOTA]])*(ROUNDDOWN($B24,10)>=ROUNDDOWN(Lista_zajęć[GODZINA ROZPOCZĘCIA],10))*($B24<=Lista_zajęć[GODZINA ZAKOŃCZENIA]),Lista_zajęć[NIEPOWTARZALNE]),Lista_zajęć[NIEPOWTARZALNE],0),2),0)","v":0}]
[null,"13:15:00",{"$f":"IFERROR(INDEX(Lista_zajęć[],MATCH(SUMPRODUCT((Lista_zajęć[DZIEŃ]=Harmonogram_zajęć[[#Headers],[NIEDZIELA]])*(ROUNDDOWN($B25,10)>=ROUNDDOWN(Lista_zajęć[GODZINA ROZPOCZĘCIA],10))*($B25<=Lista_zajęć[GODZINA ZAKOŃCZENIA]),Lista_zajęć[NIEPOWTARZALNE]),Lista_zajęć[NIEPOWTARZALNE],0),2),0)","v":0},{"$f":"IFERROR(INDEX(Lista_zajęć[],MATCH(SUMPRODUCT((Lista_zajęć[DZIEŃ]=Harmonogram_zajęć[[#Headers],[PONIEDZIAŁEK]])*(ROUNDDOWN($B25,10)>=ROUNDDOWN(Lista_zajęć[GODZINA ROZPOCZĘCIA],10))*($B25<=Lista_zajęć[GODZINA ZAKOŃCZENIA]),Lista_zajęć[NIEPOWTARZALNE]),Lista_zajęć[NIEPOWTARZALNE],0),2),0)","v":"TE-121"},{"$f":"IFERROR(INDEX(Lista_zajęć[],MATCH(SUMPRODUCT((Lista_zajęć[DZIEŃ]=Harmonogram_zajęć[[#Headers],[WTOREK]])*(ROUNDDOWN($B25,10)>=ROUNDDOWN(Lista_zajęć[GODZINA ROZPOCZĘCIA],10))*($B25<=Lista_zajęć[GODZINA ZAKOŃCZENIA]),Lista_zajęć[NIEPOWTARZALNE]),Lista_zajęć[NIEPOWTARZALNE],0),2),0)","v":0},{"$f":"IFERROR(INDEX(Lista_zajęć[],MATCH(SUMPRODUCT((Lista_zajęć[DZIEŃ]=Harmonogram_zajęć[[#Headers],[ŚRODA]])*(ROUNDDOWN($B25,10)>=ROUNDDOWN(Lista_zajęć[GODZINA ROZPOCZĘCIA],10))*($B25<=Lista_zajęć[GODZINA ZAKOŃCZENIA]),Lista_zajęć[NIEPOWTARZALNE]),Lista_zajęć[NIEPOWTARZALNE],0),2),0)","v":"TE-121"},{"$f":"IFERROR(INDEX(Lista_zajęć[],MATCH(SUMPRODUCT((Lista_zajęć[DZIEŃ]=Harmonogram_zajęć[[#Headers],[CZWARTEK]])*(ROUNDDOWN($B25,10)>=ROUNDDOWN(Lista_zajęć[GODZINA ROZPOCZĘCIA],10))*($B25<=Lista_zajęć[GODZINA ZAKOŃCZENIA]),Lista_zajęć[NIEPOWTARZALNE]),Lista_zajęć[NIEPOWTARZALNE],0),2),0)","v":0},{"$f":"IFERROR(INDEX(Lista_zajęć[],MATCH(SUMPRODUCT((Lista_zajęć[DZIEŃ]=Harmonogram_zajęć[[#Headers],[PIĄTEK]])*(ROUNDDOWN($B25,10)>=ROUNDDOWN(Lista_zajęć[GODZINA ROZPOCZĘCIA],10))*($B25<=Lista_zajęć[GODZINA ZAKOŃCZENIA]),Lista_zajęć[NIEPOWTARZALNE]),Lista_zajęć[NIEPOWTARZALNE],0),2),0)","v":0},{"$f":"IFERROR(INDEX(Lista_zajęć[],MATCH(SUMPRODUCT((Lista_zajęć[DZIEŃ]=Harmonogram_zajęć[[#Headers],[SOBOTA]])*(ROUNDDOWN($B25,10)>=ROUNDDOWN(Lista_zajęć[GODZINA ROZPOCZĘCIA],10))*($B25<=Lista_zajęć[GODZINA ZAKOŃCZENIA]),Lista_zajęć[NIEPOWTARZALNE]),Lista_zajęć[NIEPOWTARZALNE],0),2),0)","v":0}]
[null,"13:30:00",{"$f":"IFERROR(INDEX(Lista_zajęć[],MATCH(SUMPRODUCT((Lista_zajęć[DZIEŃ]=Harmonogram_zajęć[[#Headers],[NIEDZIELA]])*(ROUNDDOWN($B26,10)>=ROUNDDOWN(Lista_zajęć[GODZINA ROZPOCZĘCIA],10))*($B26<=Lista_zajęć[GODZINA ZAKOŃCZENIA]),Lista_zajęć[NIEPOWTARZALNE]),Lista_zajęć[NIEPOWTARZALNE],0),2),0)","v":0},{"$f":"IFERROR(INDEX(Lista_zajęć[],MATCH(SUMPRODUCT((Lista_zajęć[DZIEŃ]=Harmonogram_zajęć[[#Headers],[PONIEDZIAŁEK]])*(ROUNDDOWN($B26,10)>=ROUNDDOWN(Lista_zajęć[GODZINA ROZPOCZĘCIA],10))*($B26<=Lista_zajęć[GODZINA ZAKOŃCZENIA]),Lista_zajęć[NIEPOWTARZALNE]),Lista_zajęć[NIEPOWTARZALNE],0),2),0)","v":"TE-121"},{"$f":"IFERROR(INDEX(Lista_zajęć[],MATCH(SUMPRODUCT((Lista_zajęć[DZIEŃ]=Harmonogram_zajęć[[#Headers],[WTOREK]])*(ROUNDDOWN($B26,10)>=ROUNDDOWN(Lista_zajęć[GODZINA ROZPOCZĘCIA],10))*($B26<=Lista_zajęć[GODZINA ZAKOŃCZENIA]),Lista_zajęć[NIEPOWTARZALNE]),Lista_zajęć[NIEPOWTARZALNE],0),2),0)","v":0},{"$f":"IFERROR(INDEX(Lista_zajęć[],MATCH(SUMPRODUCT((Lista_zajęć[DZIEŃ]=Harmonogram_zajęć[[#Headers],[ŚRODA]])*(ROUNDDOWN($B26,10)>=ROUNDDOWN(Lista_zajęć[GODZINA ROZPOCZĘCIA],10))*($B26<=Lista_zajęć[GODZINA ZAKOŃCZENIA]),Lista_zajęć[NIEPOWTARZALNE]),Lista_zajęć[NIEPOWTARZALNE],0),2),0)","v":"TE-121"},{"$f":"IFERROR(INDEX(Lista_zajęć[],MATCH(SUMPRODUCT((Lista_zajęć[DZIEŃ]=Harmonogram_zajęć[[#Headers],[CZWARTEK]])*(ROUNDDOWN($B26,10)>=ROUNDDOWN(Lista_zajęć[GODZINA ROZPOCZĘCIA],10))*($B26<=Lista_zajęć[GODZINA ZAKOŃCZENIA]),Lista_zajęć[NIEPOWTARZALNE]),Lista_zajęć[NIEPOWTARZALNE],0),2),0)","v":0},{"$f":"IFERROR(INDEX(Lista_zajęć[],MATCH(SUMPRODUCT((Lista_zajęć[DZIEŃ]=Harmonogram_zajęć[[#Headers],[PIĄTEK]])*(ROUNDDOWN($B26,10)>=ROUNDDOWN(Lista_zajęć[GODZINA ROZPOCZĘCIA],10))*($B26<=Lista_zajęć[GODZINA ZAKOŃCZENIA]),Lista_zajęć[NIEPOWTARZALNE]),Lista_zajęć[NIEPOWTARZALNE],0),2),0)","v":0},{"$f":"IFERROR(INDEX(Lista_zajęć[],MATCH(SUMPRODUCT((Lista_zajęć[DZIEŃ]=Harmonogram_zajęć[[#Headers],[SOBOTA]])*(ROUNDDOWN($B26,10)>=ROUNDDOWN(Lista_zajęć[GODZINA ROZPOCZĘCIA],10))*($B26<=Lista_zajęć[GODZINA ZAKOŃCZENIA]),Lista_zajęć[NIEPOWTARZALNE]),Lista_zajęć[NIEPOWTARZALNE],0),2),0)","v":0}]
[null,"13:45:00",{"$f":"IFERROR(INDEX(Lista_zajęć[],MATCH(SUMPRODUCT((Lista_zajęć[DZIEŃ]=Harmonogram_zajęć[[#Headers],[NIEDZIELA]])*(ROUNDDOWN($B27,10)>=ROUNDDOWN(Lista_zajęć[GODZINA ROZPOCZĘCIA],10))*($B27<=Lista_zajęć[GODZINA ZAKOŃCZENIA]),Lista_zajęć[NIEPOWTARZALNE]),Lista_zajęć[NIEPOWTARZALNE],0),2),0)","v":0},{"$f":"IFERROR(INDEX(Lista_zajęć[],MATCH(SUMPRODUCT((Lista_zajęć[DZIEŃ]=Harmonogram_zajęć[[#Headers],[PONIEDZIAŁEK]])*(ROUNDDOWN($B27,10)>=ROUNDDOWN(Lista_zajęć[GODZINA ROZPOCZĘCIA],10))*($B27<=Lista_zajęć[GODZINA ZAKOŃCZENIA]),Lista_zajęć[NIEPOWTARZALNE]),Lista_zajęć[NIEPOWTARZALNE],0),2),0)","v":"TE-121"},{"$f":"IFERROR(INDEX(Lista_zajęć[],MATCH(SUMPRODUCT((Lista_zajęć[DZIEŃ]=Harmonogram_zajęć[[#Headers],[WTOREK]])*(ROUNDDOWN($B27,10)>=ROUNDDOWN(Lista_zajęć[GODZINA ROZPOCZĘCIA],10))*($B27<=Lista_zajęć[GODZINA ZAKOŃCZENIA]),Lista_zajęć[NIEPOWTARZALNE]),Lista_zajęć[NIEPOWTARZALNE],0),2),0)","v":0},{"$f":"IFERROR(INDEX(Lista_zajęć[],MATCH(SUMPRODUCT((Lista_zajęć[DZIEŃ]=Harmonogram_zajęć[[#Headers],[ŚRODA]])*(ROUNDDOWN($B27,10)>=ROUNDDOWN(Lista_zajęć[GODZINA ROZPOCZĘCIA],10))*($B27<=Lista_zajęć[GODZINA ZAKOŃCZENIA]),Lista_zajęć[NIEPOWTARZALNE]),Lista_zajęć[NIEPOWTARZALNE],0),2),0)","v":"TE-121"},{"$f":"IFERROR(INDEX(Lista_zajęć[],MATCH(SUMPRODUCT((Lista_zajęć[DZIEŃ]=Harmonogram_zajęć[[#Headers],[CZWARTEK]])*(ROUNDDOWN($B27,10)>=ROUNDDOWN(Lista_zajęć[GODZINA ROZPOCZĘCIA],10))*($B27<=Lista_zajęć[GODZINA ZAKOŃCZENIA]),Lista_zajęć[NIEPOWTARZALNE]),Lista_zajęć[NIEPOWTARZALNE],0),2),0)","v":0},{"$f":"IFERROR(INDEX(Lista_zajęć[],MATCH(SUMPRODUCT((Lista_zajęć[DZIEŃ]=Harmonogram_zajęć[[#Headers],[PIĄTEK]])*(ROUNDDOWN($B27,10)>=ROUNDDOWN(Lista_zajęć[GODZINA ROZPOCZĘCIA],10))*($B27<=Lista_zajęć[GODZINA ZAKOŃCZENIA]),Lista_zajęć[NIEPOWTARZALNE]),Lista_zajęć[NIEPOWTARZALNE],0),2),0)","v":0},{"$f":"IFERROR(INDEX(Lista_zajęć[],MATCH(SUMPRODUCT((Lista_zajęć[DZIEŃ]=Harmonogram_zajęć[[#Headers],[SOBOTA]])*(ROUNDDOWN($B27,10)>=ROUNDDOWN(Lista_zajęć[GODZINA ROZPOCZĘCIA],10))*($B27<=Lista_zajęć[GODZINA ZAKOŃCZENIA]),Lista_zajęć[NIEPOWTARZALNE]),Lista_zajęć[NIEPOWTARZALNE],0),2),0)","v":0}]
[null,"14:00:00",{"$f":"IFERROR(INDEX(Lista_zajęć[],MATCH(SUMPRODUCT((Lista_zajęć[DZIEŃ]=Harmonogram_zajęć[[#Headers],[NIEDZIELA]])*(ROUNDDOWN($B28,10)>=ROUNDDOWN(Lista_zajęć[GODZINA ROZPOCZĘCIA],10))*($B28<=Lista_zajęć[GODZINA ZAKOŃCZENIA]),Lista_zajęć[NIEPOWTARZALNE]),Lista_zajęć[NIEPOWTARZALNE],0),2),0)","v":0},{"$f":"IFERROR(INDEX(Lista_zajęć[],MATCH(SUMPRODUCT((Lista_zajęć[DZIEŃ]=Harmonogram_zajęć[[#Headers],[PONIEDZIAŁEK]])*(ROUNDDOWN($B28,10)>=ROUNDDOWN(Lista_zajęć[GODZINA ROZPOCZĘCIA],10))*($B28<=Lista_zajęć[GODZINA ZAKOŃCZENIA]),Lista_zajęć[NIEPOWTARZALNE]),Lista_zajęć[NIEPOWTARZALNE],0),2),0)","v":"TE-121"},{"$f":"IFERROR(INDEX(Lista_zajęć[],MATCH(SUMPRODUCT((Lista_zajęć[DZIEŃ]=Harmonogram_zajęć[[#Headers],[WTOREK]])*(ROUNDDOWN($B28,10)>=ROUNDDOWN(Lista_zajęć[GODZINA ROZPOCZĘCIA],10))*($B28<=Lista_zajęć[GODZINA ZAKOŃCZENIA]),Lista_zajęć[NIEPOWTARZALNE]),Lista_zajęć[NIEPOWTARZALNE],0),2),0)","v":0},{"$f":"IFERROR(INDEX(Lista_zajęć[],MATCH(SUMPRODUCT((Lista_zajęć[DZIEŃ]=Harmonogram_zajęć[[#Headers],[ŚRODA]])*(ROUNDDOWN($B28,10)>=ROUNDDOWN(Lista_zajęć[GODZINA ROZPOCZĘCIA],10))*($B28<=Lista_zajęć[GODZINA ZAKOŃCZENIA]),Lista_zajęć[NIEPOWTARZALNE]),Lista_zajęć[NIEPOWTARZALNE],0),2),0)","v":"TE-121"},{"$f":"IFERROR(INDEX(Lista_zajęć[],MATCH(SUMPRODUCT((Lista_zajęć[DZIEŃ]=Harmonogram_zajęć[[#Headers],[CZWARTEK]])*(ROUNDDOWN($B28,10)>=ROUNDDOWN(Lista_zajęć[GODZINA ROZPOCZĘCIA],10))*($B28<=Lista_zajęć[GODZINA ZAKOŃCZENIA]),Lista_zajęć[NIEPOWTARZALNE]),Lista_zajęć[NIEPOWTARZALNE],0),2),0)","v":0},{"$f":"IFERROR(INDEX(Lista_zajęć[],MATCH(SUMPRODUCT((Lista_zajęć[DZIEŃ]=Harmonogram_zajęć[[#Headers],[PIĄTEK]])*(ROUNDDOWN($B28,10)>=ROUNDDOWN(Lista_zajęć[GODZINA ROZPOCZĘCIA],10))*($B28<=Lista_zajęć[GODZINA ZAKOŃCZENIA]),Lista_zajęć[NIEPOWTARZALNE]),Lista_zajęć[NIEPOWTARZALNE],0),2),0)","v":0},{"$f":"IFERROR(INDEX(Lista_zajęć[],MATCH(SUMPRODUCT((Lista_zajęć[DZIEŃ]=Harmonogram_zajęć[[#Headers],[SOBOTA]])*(ROUNDDOWN($B28,10)>=ROUNDDOWN(Lista_zajęć[GODZINA ROZPOCZĘCIA],10))*($B28<=Lista_zajęć[GODZINA ZAKOŃCZENIA]),Lista_zajęć[NIEPOWTARZALNE]),Lista_zajęć[NIEPOWTARZALNE],0),2),0)","v":0}]
[null,"14:15:00",{"$f":"IFERROR(INDEX(Lista_zajęć[],MATCH(SUMPRODUCT((Lista_zajęć[DZIEŃ]=Harmonogram_zajęć[[#Headers],[NIEDZIELA]])*(ROUNDDOWN($B29,10)>=ROUNDDOWN(Lista_zajęć[GODZINA ROZPOCZĘCIA],10))*($B29<=Lista_zajęć[GODZINA ZAKOŃCZENIA]),Lista_zajęć[NIEPOWTARZALNE]),Lista_zajęć[NIEPOWTARZALNE],0),2),0)","v":0},{"$f":"IFERROR(INDEX(Lista_zajęć[],MATCH(SUMPRODUCT((Lista_zajęć[DZIEŃ]=Harmonogram_zajęć[[#Headers],[PONIEDZIAŁEK]])*(ROUNDDOWN($B29,10)>=ROUNDDOWN(Lista_zajęć[GODZINA ROZPOCZĘCIA],10))*($B29<=Lista_zajęć[GODZINA ZAKOŃCZENIA]),Lista_zajęć[NIEPOWTARZALNE]),Lista_zajęć[NIEPOWTARZALNE],0),2),0)","v":0},{"$f":"IFERROR(INDEX(Lista_zajęć[],MATCH(SUMPRODUCT((Lista_zajęć[DZIEŃ]=Harmonogram_zajęć[[#Headers],[WTOREK]])*(ROUNDDOWN($B29,10)>=ROUNDDOWN(Lista_zajęć[GODZINA ROZPOCZĘCIA],10))*($B29<=Lista_zajęć[GODZINA ZAKOŃCZENIA]),Lista_zajęć[NIEPOWTARZALNE]),Lista_zajęć[NIEPOWTARZALNE],0),2),0)","v":0},{"$f":"IFERROR(INDEX(Lista_zajęć[],MATCH(SUMPRODUCT((Lista_zajęć[DZIEŃ]=Harmonogram_zajęć[[#Headers],[ŚRODA]])*(ROUNDDOWN($B29,10)>=ROUNDDOWN(Lista_zajęć[GODZINA ROZPOCZĘCIA],10))*($B29<=Lista_zajęć[GODZINA ZAKOŃCZENIA]),Lista_zajęć[NIEPOWTARZALNE]),Lista_zajęć[NIEPOWTARZALNE],0),2),0)","v":0},{"$f":"IFERROR(INDEX(Lista_zajęć[],MATCH(SUMPRODUCT((Lista_zajęć[DZIEŃ]=Harmonogram_zajęć[[#Headers],[CZWARTEK]])*(ROUNDDOWN($B29,10)>=ROUNDDOWN(Lista_zajęć[GODZINA ROZPOCZĘCIA],10))*($B29<=Lista_zajęć[GODZINA ZAKOŃCZENIA]),Lista_zajęć[NIEPOWTARZALNE]),Lista_zajęć[NIEPOWTARZALNE],0),2),0)","v":0},{"$f":"IFERROR(INDEX(Lista_zajęć[],MATCH(SUMPRODUCT((Lista_zajęć[DZIEŃ]=Harmonogram_zajęć[[#Headers],[PIĄTEK]])*(ROUNDDOWN($B29,10)>=ROUNDDOWN(Lista_zajęć[GODZINA ROZPOCZĘCIA],10))*($B29<=Lista_zajęć[GODZINA ZAKOŃCZENIA]),Lista_zajęć[NIEPOWTARZALNE]),Lista_zajęć[NIEPOWTARZALNE],0),2),0)","v":0},{"$f":"IFERROR(INDEX(Lista_zajęć[],MATCH(SUMPRODUCT((Lista_zajęć[DZIEŃ]=Harmonogram_zajęć[[#Headers],[SOBOTA]])*(ROUNDDOWN($B29,10)>=ROUNDDOWN(Lista_zajęć[GODZINA ROZPOCZĘCIA],10))*($B29<=Lista_zajęć[GODZINA ZAKOŃCZENIA]),Lista_zajęć[NIEPOWTARZALNE]),Lista_zajęć[NIEPOWTARZALNE],0),2),0)","v":0}]
[null,"14:30:00",{"$f":"IFERROR(INDEX(Lista_zajęć[],MATCH(SUMPRODUCT((Lista_zajęć[DZIEŃ]=Harmonogram_zajęć[[#Headers],[NIEDZIELA]])*(ROUNDDOWN($B30,10)>=ROUNDDOWN(Lista_zajęć[GODZINA ROZPOCZĘCIA],10))*($B30<=Lista_zajęć[GODZINA ZAKOŃCZENIA]),Lista_zajęć[NIEPOWTARZALNE]),Lista_zajęć[NIEPOWTARZALNE],0),2),0)","v":0},{"$f":"IFERROR(INDEX(Lista_zajęć[],MATCH(SUMPRODUCT((Lista_zajęć[DZIEŃ]=Harmonogram_zajęć[[#Headers],[PONIEDZIAŁEK]])*(ROUNDDOWN($B30,10)>=ROUNDDOWN(Lista_zajęć[GODZINA ROZPOCZĘCIA],10))*($B30<=Lista_zajęć[GODZINA ZAKOŃCZENIA]),Lista_zajęć[NIEPOWTARZALNE]),Lista_zajęć[NIEPOWTARZALNE],0),2),0)","v":0},{"$f":"IFERROR(INDEX(Lista_zajęć[],MATCH(SUMPRODUCT((Lista_zajęć[DZIEŃ]=Harmonogram_zajęć[[#Headers],[WTOREK]])*(ROUNDDOWN($B30,10)>=ROUNDDOWN(Lista_zajęć[GODZINA ROZPOCZĘCIA],10))*($B30<=Lista_zajęć[GODZINA ZAKOŃCZENIA]),Lista_zajęć[NIEPOWTARZALNE]),Lista_zajęć[NIEPOWTARZALNE],0),2),0)","v":0},{"$f":"IFERROR(INDEX(Lista_zajęć[],MATCH(SUMPRODUCT((Lista_zajęć[DZIEŃ]=Harmonogram_zajęć[[#Headers],[ŚRODA]])*(ROUNDDOWN($B30,10)>=ROUNDDOWN(Lista_zajęć[GODZINA ROZPOCZĘCIA],10))*($B30<=Lista_zajęć[GODZINA ZAKOŃCZENIA]),Lista_zajęć[NIEPOWTARZALNE]),Lista_zajęć[NIEPOWTARZALNE],0),2),0)","v":0},{"$f":"IFERROR(INDEX(Lista_zajęć[],MATCH(SUMPRODUCT((Lista_zajęć[DZIEŃ]=Harmonogram_zajęć[[#Headers],[CZWARTEK]])*(ROUNDDOWN($B30,10)>=ROUNDDOWN(Lista_zajęć[GODZINA ROZPOCZĘCIA],10))*($B30<=Lista_zajęć[GODZINA ZAKOŃCZENIA]),Lista_zajęć[NIEPOWTARZALNE]),Lista_zajęć[NIEPOWTARZALNE],0),2),0)","v":0},{"$f":"IFERROR(INDEX(Lista_zajęć[],MATCH(SUMPRODUCT((Lista_zajęć[DZIEŃ]=Harmonogram_zajęć[[#Headers],[PIĄTEK]])*(ROUNDDOWN($B30,10)>=ROUNDDOWN(Lista_zajęć[GODZINA ROZPOCZĘCIA],10))*($B30<=Lista_zajęć[GODZINA ZAKOŃCZENIA]),Lista_zajęć[NIEPOWTARZALNE]),Lista_zajęć[NIEPOWTARZALNE],0),2),0)","v":0},{"$f":"IFERROR(INDEX(Lista_zajęć[],MATCH(SUMPRODUCT((Lista_zajęć[DZIEŃ]=Harmonogram_zajęć[[#Headers],[SOBOTA]])*(ROUNDDOWN($B30,10)>=ROUNDDOWN(Lista_zajęć[GODZINA ROZPOCZĘCIA],10))*($B30<=Lista_zajęć[GODZINA ZAKOŃCZENIA]),Lista_zajęć[NIEPOWTARZALNE]),Lista_zajęć[NIEPOWTARZALNE],0),2),0)","v":0}]
[null,"14:45:00",{"$f":"IFERROR(INDEX(Lista_zajęć[],MATCH(SUMPRODUCT((Lista_zajęć[DZIEŃ]=Harmonogram_zajęć[[#Headers],[NIEDZIELA]])*(ROUNDDOWN($B31,10)>=ROUNDDOWN(Lista_zajęć[GODZINA ROZPOCZĘCIA],10))*($B31<=Lista_zajęć[GODZINA ZAKOŃCZENIA]),Lista_zajęć[NIEPOWTARZALNE]),Lista_zajęć[NIEPOWTARZALNE],0),2),0)","v":0},{"$f":"IFERROR(INDEX(Lista_zajęć[],MATCH(SUMPRODUCT((Lista_zajęć[DZIEŃ]=Harmonogram_zajęć[[#Headers],[PONIEDZIAŁEK]])*(ROUNDDOWN($B31,10)>=ROUNDDOWN(Lista_zajęć[GODZINA ROZPOCZĘCIA],10))*($B31<=Lista_zajęć[GODZINA ZAKOŃCZENIA]),Lista_zajęć[NIEPOWTARZALNE]),Lista_zajęć[NIEPOWTARZALNE],0),2),0)","v":0},{"$f":"IFERROR(INDEX(Lista_zajęć[],MATCH(SUMPRODUCT((Lista_zajęć[DZIEŃ]=Harmonogram_zajęć[[#Headers],[WTOREK]])*(ROUNDDOWN($B31,10)>=ROUNDDOWN(Lista_zajęć[GODZINA ROZPOCZĘCIA],10))*($B31<=Lista_zajęć[GODZINA ZAKOŃCZENIA]),Lista_zajęć[NIEPOWTARZALNE]),Lista_zajęć[NIEPOWTARZALNE],0),2),0)","v":0},{"$f":"IFERROR(INDEX(Lista_zajęć[],MATCH(SUMPRODUCT((Lista_zajęć[DZIEŃ]=Harmonogram_zajęć[[#Headers],[ŚRODA]])*(ROUNDDOWN($B31,10)>=ROUNDDOWN(Lista_zajęć[GODZINA ROZPOCZĘCIA],10))*($B31<=Lista_zajęć[GODZINA ZAKOŃCZENIA]),Lista_zajęć[NIEPOWTARZALNE]),Lista_zajęć[NIEPOWTARZALNE],0),2),0)","v":0},{"$f":"IFERROR(INDEX(Lista_zajęć[],MATCH(SUMPRODUCT((Lista_zajęć[DZIEŃ]=Harmonogram_zajęć[[#Headers],[CZWARTEK]])*(ROUNDDOWN($B31,10)>=ROUNDDOWN(Lista_zajęć[GODZINA ROZPOCZĘCIA],10))*($B31<=Lista_zajęć[GODZINA ZAKOŃCZENIA]),Lista_zajęć[NIEPOWTARZALNE]),Lista_zajęć[NIEPOWTARZALNE],0),2),0)","v":0},{"$f":"IFERROR(INDEX(Lista_zajęć[],MATCH(SUMPRODUCT((Lista_zajęć[DZIEŃ]=Harmonogram_zajęć[[#Headers],[PIĄTEK]])*(ROUNDDOWN($B31,10)>=ROUNDDOWN(Lista_zajęć[GODZINA ROZPOCZĘCIA],10))*($B31<=Lista_zajęć[GODZINA ZAKOŃCZENIA]),Lista_zajęć[NIEPOWTARZALNE]),Lista_zajęć[NIEPOWTARZALNE],0),2),0)","v":0},{"$f":"IFERROR(INDEX(Lista_zajęć[],MATCH(SUMPRODUCT((Lista_zajęć[DZIEŃ]=Harmonogram_zajęć[[#Headers],[SOBOTA]])*(ROUNDDOWN($B31,10)>=ROUNDDOWN(Lista_zajęć[GODZINA ROZPOCZĘCIA],10))*($B31<=Lista_zajęć[GODZINA ZAKOŃCZENIA]),Lista_zajęć[NIEPOWTARZALNE]),Lista_zajęć[NIEPOWTARZALNE],0),2),0)","v":0}]
[null,"15:00:00",{"$f":"IFERROR(INDEX(Lista_zajęć[],MATCH(SUMPRODUCT((Lista_zajęć[DZIEŃ]=Harmonogram_zajęć[[#Headers],[NIEDZIELA]])*(ROUNDDOWN($B32,10)>=ROUNDDOWN(Lista_zajęć[GODZINA ROZPOCZĘCIA],10))*($B32<=Lista_zajęć[GODZINA ZAKOŃCZENIA]),Lista_zajęć[NIEPOWTARZALNE]),Lista_zajęć[NIEPOWTARZALNE],0),2),0)","v":0},{"$f":"IFERROR(INDEX(Lista_zajęć[],MATCH(SUMPRODUCT((Lista_zajęć[DZIEŃ]=Harmonogram_zajęć[[#Headers],[PONIEDZIAŁEK]])*(ROUNDDOWN($B32,10)>=ROUNDDOWN(Lista_zajęć[GODZINA ROZPOCZĘCIA],10))*($B32<=Lista_zajęć[GODZINA ZAKOŃCZENIA]),Lista_zajęć[NIEPOWTARZALNE]),Lista_zajęć[NIEPOWTARZALNE],0),2),0)","v":0},{"$f":"IFERROR(INDEX(Lista_zajęć[],MATCH(SUMPRODUCT((Lista_zajęć[DZIEŃ]=Harmonogram_zajęć[[#Headers],[WTOREK]])*(ROUNDDOWN($B32,10)>=ROUNDDOWN(Lista_zajęć[GODZINA ROZPOCZĘCIA],10))*($B32<=Lista_zajęć[GODZINA ZAKOŃCZENIA]),Lista_zajęć[NIEPOWTARZALNE]),Lista_zajęć[NIEPOWTARZALNE],0),2),0)","v":0},{"$f":"IFERROR(INDEX(Lista_zajęć[],MATCH(SUMPRODUCT((Lista_zajęć[DZIEŃ]=Harmonogram_zajęć[[#Headers],[ŚRODA]])*(ROUNDDOWN($B32,10)>=ROUNDDOWN(Lista_zajęć[GODZINA ROZPOCZĘCIA],10))*($B32<=Lista_zajęć[GODZINA ZAKOŃCZENIA]),Lista_zajęć[NIEPOWTARZALNE]),Lista_zajęć[NIEPOWTARZALNE],0),2),0)","v":0},{"$f":"IFERROR(INDEX(Lista_zajęć[],MATCH(SUMPRODUCT((Lista_zajęć[DZIEŃ]=Harmonogram_zajęć[[#Headers],[CZWARTEK]])*(ROUNDDOWN($B32,10)>=ROUNDDOWN(Lista_zajęć[GODZINA ROZPOCZĘCIA],10))*($B32<=Lista_zajęć[GODZINA ZAKOŃCZENIA]),Lista_zajęć[NIEPOWTARZALNE]),Lista_zajęć[NIEPOWTARZALNE],0),2),0)","v":0},{"$f":"IFERROR(INDEX(Lista_zajęć[],MATCH(SUMPRODUCT((Lista_zajęć[DZIEŃ]=Harmonogram_zajęć[[#Headers],[PIĄTEK]])*(ROUNDDOWN($B32,10)>=ROUNDDOWN(Lista_zajęć[GODZINA ROZPOCZĘCIA],10))*($B32<=Lista_zajęć[GODZINA ZAKOŃCZENIA]),Lista_zajęć[NIEPOWTARZALNE]),Lista_zajęć[NIEPOWTARZALNE],0),2),0)","v":0},{"$f":"IFERROR(INDEX(Lista_zajęć[],MATCH(SUMPRODUCT((Lista_zajęć[DZIEŃ]=Harmonogram_zajęć[[#Headers],[SOBOTA]])*(ROUNDDOWN($B32,10)>=ROUNDDOWN(Lista_zajęć[GODZINA ROZPOCZĘCIA],10))*($B32<=Lista_zajęć[GODZINA ZAKOŃCZENIA]),Lista_zajęć[NIEPOWTARZALNE]),Lista_zajęć[NIEPOWTARZALNE],0),2),0)","v":0}]
[null,"15:15:00",{"$f":"IFERROR(INDEX(Lista_zajęć[],MATCH(SUMPRODUCT((Lista_zajęć[DZIEŃ]=Harmonogram_zajęć[[#Headers],[NIEDZIELA]])*(ROUNDDOWN($B33,10)>=ROUNDDOWN(Lista_zajęć[GODZINA ROZPOCZĘCIA],10))*($B33<=Lista_zajęć[GODZINA ZAKOŃCZENIA]),Lista_zajęć[NIEPOWTARZALNE]),Lista_zajęć[NIEPOWTARZALNE],0),2),0)","v":0},{"$f":"IFERROR(INDEX(Lista_zajęć[],MATCH(SUMPRODUCT((Lista_zajęć[DZIEŃ]=Harmonogram_zajęć[[#Headers],[PONIEDZIAŁEK]])*(ROUNDDOWN($B33,10)>=ROUNDDOWN(Lista_zajęć[GODZINA ROZPOCZĘCIA],10))*($B33<=Lista_zajęć[GODZINA ZAKOŃCZENIA]),Lista_zajęć[NIEPOWTARZALNE]),Lista_zajęć[NIEPOWTARZALNE],0),2),0)","v":0},{"$f":"IFERROR(INDEX(Lista_zajęć[],MATCH(SUMPRODUCT((Lista_zajęć[DZIEŃ]=Harmonogram_zajęć[[#Headers],[WTOREK]])*(ROUNDDOWN($B33,10)>=ROUNDDOWN(Lista_zajęć[GODZINA ROZPOCZĘCIA],10))*($B33<=Lista_zajęć[GODZINA ZAKOŃCZENIA]),Lista_zajęć[NIEPOWTARZALNE]),Lista_zajęć[NIEPOWTARZALNE],0),2),0)","v":0},{"$f":"IFERROR(INDEX(Lista_zajęć[],MATCH(SUMPRODUCT((Lista_zajęć[DZIEŃ]=Harmonogram_zajęć[[#Headers],[ŚRODA]])*(ROUNDDOWN($B33,10)>=ROUNDDOWN(Lista_zajęć[GODZINA ROZPOCZĘCIA],10))*($B33<=Lista_zajęć[GODZINA ZAKOŃCZENIA]),Lista_zajęć[NIEPOWTARZALNE]),Lista_zajęć[NIEPOWTARZALNE],0),2),0)","v":0},{"$f":"IFERROR(INDEX(Lista_zajęć[],MATCH(SUMPRODUCT((Lista_zajęć[DZIEŃ]=Harmonogram_zajęć[[#Headers],[CZWARTEK]])*(ROUNDDOWN($B33,10)>=ROUNDDOWN(Lista_zajęć[GODZINA ROZPOCZĘCIA],10))*($B33<=Lista_zajęć[GODZINA ZAKOŃCZENIA]),Lista_zajęć[NIEPOWTARZALNE]),Lista_zajęć[NIEPOWTARZALNE],0),2),0)","v":0},{"$f":"IFERROR(INDEX(Lista_zajęć[],MATCH(SUMPRODUCT((Lista_zajęć[DZIEŃ]=Harmonogram_zajęć[[#Headers],[PIĄTEK]])*(ROUNDDOWN($B33,10)>=ROUNDDOWN(Lista_zajęć[GODZINA ROZPOCZĘCIA],10))*($B33<=Lista_zajęć[GODZINA ZAKOŃCZENIA]),Lista_zajęć[NIEPOWTARZALNE]),Lista_zajęć[NIEPOWTARZALNE],0),2),0)","v":0},{"$f":"IFERROR(INDEX(Lista_zajęć[],MATCH(SUMPRODUCT((Lista_zajęć[DZIEŃ]=Harmonogram_zajęć[[#Headers],[SOBOTA]])*(ROUNDDOWN($B33,10)>=ROUNDDOWN(Lista_zajęć[GODZINA ROZPOCZĘCIA],10))*($B33<=Lista_zajęć[GODZINA ZAKOŃCZENIA]),Lista_zajęć[NIEPOWTARZALNE]),Lista_zajęć[NIEPOWTARZALNE],0),2),0)","v":0}]
[null,"15:30:00",{"$f":"IFERROR(INDEX(Lista_zajęć[],MATCH(SUMPRODUCT((Lista_zajęć[DZIEŃ]=Harmonogram_zajęć[[#Headers],[NIEDZIELA]])*(ROUNDDOWN($B34,10)>=ROUNDDOWN(Lista_zajęć[GODZINA ROZPOCZĘCIA],10))*($B34<=Lista_zajęć[GODZINA ZAKOŃCZENIA]),Lista_zajęć[NIEPOWTARZALNE]),Lista_zajęć[NIEPOWTARZALNE],0),2),0)","v":0},{"$f":"IFERROR(INDEX(Lista_zajęć[],MATCH(SUMPRODUCT((Lista_zajęć[DZIEŃ]=Harmonogram_zajęć[[#Headers],[PONIEDZIAŁEK]])*(ROUNDDOWN($B34,10)>=ROUNDDOWN(Lista_zajęć[GODZINA ROZPOCZĘCIA],10))*($B34<=Lista_zajęć[GODZINA ZAKOŃCZENIA]),Lista_zajęć[NIEPOWTARZALNE]),Lista_zajęć[NIEPOWTARZALNE],0),2),0)","v":0},{"$f":"IFERROR(INDEX(Lista_zajęć[],MATCH(SUMPRODUCT((Lista_zajęć[DZIEŃ]=Harmonogram_zajęć[[#Headers],[WTOREK]])*(ROUNDDOWN($B34,10)>=ROUNDDOWN(Lista_zajęć[GODZINA ROZPOCZĘCIA],10))*($B34<=Lista_zajęć[GODZINA ZAKOŃCZENIA]),Lista_zajęć[NIEPOWTARZALNE]),Lista_zajęć[NIEPOWTARZALNE],0),2),0)","v":0},{"$f":"IFERROR(INDEX(Lista_zajęć[],MATCH(SUMPRODUCT((Lista_zajęć[DZIEŃ]=Harmonogram_zajęć[[#Headers],[ŚRODA]])*(ROUNDDOWN($B34,10)>=ROUNDDOWN(Lista_zajęć[GODZINA ROZPOCZĘCIA],10))*($B34<=Lista_zajęć[GODZINA ZAKOŃCZENIA]),Lista_zajęć[NIEPOWTARZALNE]),Lista_zajęć[NIEPOWTARZALNE],0),2),0)","v":0},{"$f":"IFERROR(INDEX(Lista_zajęć[],MATCH(SUMPRODUCT((Lista_zajęć[DZIEŃ]=Harmonogram_zajęć[[#Headers],[CZWARTEK]])*(ROUNDDOWN($B34,10)>=ROUNDDOWN(Lista_zajęć[GODZINA ROZPOCZĘCIA],10))*($B34<=Lista_zajęć[GODZINA ZAKOŃCZENIA]),Lista_zajęć[NIEPOWTARZALNE]),Lista_zajęć[NIEPOWTARZALNE],0),2),0)","v":0},{"$f":"IFERROR(INDEX(Lista_zajęć[],MATCH(SUMPRODUCT((Lista_zajęć[DZIEŃ]=Harmonogram_zajęć[[#Headers],[PIĄTEK]])*(ROUNDDOWN($B34,10)>=ROUNDDOWN(Lista_zajęć[GODZINA ROZPOCZĘCIA],10))*($B34<=Lista_zajęć[GODZINA ZAKOŃCZENIA]),Lista_zajęć[NIEPOWTARZALNE]),Lista_zajęć[NIEPOWTARZALNE],0),2),0)","v":0},{"$f":"IFERROR(INDEX(Lista_zajęć[],MATCH(SUMPRODUCT((Lista_zajęć[DZIEŃ]=Harmonogram_zajęć[[#Headers],[SOBOTA]])*(ROUNDDOWN($B34,10)>=ROUNDDOWN(Lista_zajęć[GODZINA ROZPOCZĘCIA],10))*($B34<=Lista_zajęć[GODZINA ZAKOŃCZENIA]),Lista_zajęć[NIEPOWTARZALNE]),Lista_zajęć[NIEPOWTARZALNE],0),2),0)","v":0}]
[null,"15:45:00",{"$f":"IFERROR(INDEX(Lista_zajęć[],MATCH(SUMPRODUCT((Lista_zajęć[DZIEŃ]=Harmonogram_zajęć[[#Headers],[NIEDZIELA]])*(ROUNDDOWN($B35,10)>=ROUNDDOWN(Lista_zajęć[GODZINA ROZPOCZĘCIA],10))*($B35<=Lista_zajęć[GODZINA ZAKOŃCZENIA]),Lista_zajęć[NIEPOWTARZALNE]),Lista_zajęć[NIEPOWTARZALNE],0),2),0)","v":0},{"$f":"IFERROR(INDEX(Lista_zajęć[],MATCH(SUMPRODUCT((Lista_zajęć[DZIEŃ]=Harmonogram_zajęć[[#Headers],[PONIEDZIAŁEK]])*(ROUNDDOWN($B35,10)>=ROUNDDOWN(Lista_zajęć[GODZINA ROZPOCZĘCIA],10))*($B35<=Lista_zajęć[GODZINA ZAKOŃCZENIA]),Lista_zajęć[NIEPOWTARZALNE]),Lista_zajęć[NIEPOWTARZALNE],0),2),0)","v":0},{"$f":"IFERROR(INDEX(Lista_zajęć[],MATCH(SUMPRODUCT((Lista_zajęć[DZIEŃ]=Harmonogram_zajęć[[#Headers],[WTOREK]])*(ROUNDDOWN($B35,10)>=ROUNDDOWN(Lista_zajęć[GODZINA ROZPOCZĘCIA],10))*($B35<=Lista_zajęć[GODZINA ZAKOŃCZENIA]),Lista_zajęć[NIEPOWTARZALNE]),Lista_zajęć[NIEPOWTARZALNE],0),2),0)","v":0},{"$f":"IFERROR(INDEX(Lista_zajęć[],MATCH(SUMPRODUCT((Lista_zajęć[DZIEŃ]=Harmonogram_zajęć[[#Headers],[ŚRODA]])*(ROUNDDOWN($B35,10)>=ROUNDDOWN(Lista_zajęć[GODZINA ROZPOCZĘCIA],10))*($B35<=Lista_zajęć[GODZINA ZAKOŃCZENIA]),Lista_zajęć[NIEPOWTARZALNE]),Lista_zajęć[NIEPOWTARZALNE],0),2),0)","v":0},{"$f":"IFERROR(INDEX(Lista_zajęć[],MATCH(SUMPRODUCT((Lista_zajęć[DZIEŃ]=Harmonogram_zajęć[[#Headers],[CZWARTEK]])*(ROUNDDOWN($B35,10)>=ROUNDDOWN(Lista_zajęć[GODZINA ROZPOCZĘCIA],10))*($B35<=Lista_zajęć[GODZINA ZAKOŃCZENIA]),Lista_zajęć[NIEPOWTARZALNE]),Lista_zajęć[NIEPOWTARZALNE],0),2),0)","v":0},{"$f":"IFERROR(INDEX(Lista_zajęć[],MATCH(SUMPRODUCT((Lista_zajęć[DZIEŃ]=Harmonogram_zajęć[[#Headers],[PIĄTEK]])*(ROUNDDOWN($B35,10)>=ROUNDDOWN(Lista_zajęć[GODZINA ROZPOCZĘCIA],10))*($B35<=Lista_zajęć[GODZINA ZAKOŃCZENIA]),Lista_zajęć[NIEPOWTARZALNE]),Lista_zajęć[NIEPOWTARZALNE],0),2),0)","v":0},{"$f":"IFERROR(INDEX(Lista_zajęć[],MATCH(SUMPRODUCT((Lista_zajęć[DZIEŃ]=Harmonogram_zajęć[[#Headers],[SOBOTA]])*(ROUNDDOWN($B35,10)>=ROUNDDOWN(Lista_zajęć[GODZINA ROZPOCZĘCIA],10))*($B35<=Lista_zajęć[GODZINA ZAKOŃCZENIA]),Lista_zajęć[NIEPOWTARZALNE]),Lista_zajęć[NIEPOWTARZALNE],0),2),0)","v":0}]
[null,"16:00:00",{"$f":"IFERROR(INDEX(Lista_zajęć[],MATCH(SUMPRODUCT((Lista_zajęć[DZIEŃ]=Harmonogram_zajęć[[#Headers],[NIEDZIELA]])*(ROUNDDOWN($B36,10)>=ROUNDDOWN(Lista_zajęć[GODZINA ROZPOCZĘCIA],10))*($B36<=Lista_zajęć[GODZINA ZAKOŃCZENIA]),Lista_zajęć[NIEPOWTARZALNE]),Lista_zajęć[NIEPOWTARZALNE],0),2),0)","v":0},{"$f":"IFERROR(INDEX(Lista_zajęć[],MATCH(SUMPRODUCT((Lista_zajęć[DZIEŃ]=Harmonogram_zajęć[[#Headers],[PONIEDZIAŁEK]])*(ROUNDDOWN($B36,10)>=ROUNDDOWN(Lista_zajęć[GODZINA ROZPOCZĘCIA],10))*($B36<=Lista_zajęć[GODZINA ZAKOŃCZENIA]),Lista_zajęć[NIEPOWTARZALNE]),Lista_zajęć[NIEPOWTARZALNE],0),2),0)","v":"PU-111"},{"$f":"IFERROR(INDEX(Lista_zajęć[],MATCH(SUMPRODUCT((Lista_zajęć[DZIEŃ]=Harmonogram_zajęć[[#Headers],[WTOREK]])*(ROUNDDOWN($B36,10)>=ROUNDDOWN(Lista_zajęć[GODZINA ROZPOCZĘCIA],10))*($B36<=Lista_zajęć[GODZINA ZAKOŃCZENIA]),Lista_zajęć[NIEPOWTARZALNE]),Lista_zajęć[NIEPOWTARZALNE],0),2),0)","v":0},{"$f":"IFERROR(INDEX(Lista_zajęć[],MATCH(SUMPRODUCT((Lista_zajęć[DZIEŃ]=Harmonogram_zajęć[[#Headers],[ŚRODA]])*(ROUNDDOWN($B36,10)>=ROUNDDOWN(Lista_zajęć[GODZINA ROZPOCZĘCIA],10))*($B36<=Lista_zajęć[GODZINA ZAKOŃCZENIA]),Lista_zajęć[NIEPOWTARZALNE]),Lista_zajęć[NIEPOWTARZALNE],0),2),0)","v":0},{"$f":"IFERROR(INDEX(Lista_zajęć[],MATCH(SUMPRODUCT((Lista_zajęć[DZIEŃ]=Harmonogram_zajęć[[#Headers],[CZWARTEK]])*(ROUNDDOWN($B36,10)>=ROUNDDOWN(Lista_zajęć[GODZINA ROZPOCZĘCIA],10))*($B36<=Lista_zajęć[GODZINA ZAKOŃCZENIA]),Lista_zajęć[NIEPOWTARZALNE]),Lista_zajęć[NIEPOWTARZALNE],0),2),0)","v":0},{"$f":"IFERROR(INDEX(Lista_zajęć[],MATCH(SUMPRODUCT((Lista_zajęć[DZIEŃ]=Harmonogram_zajęć[[#Headers],[PIĄTEK]])*(ROUNDDOWN($B36,10)>=ROUNDDOWN(Lista_zajęć[GODZINA ROZPOCZĘCIA],10))*($B36<=Lista_zajęć[GODZINA ZAKOŃCZENIA]),Lista_zajęć[NIEPOWTARZALNE]),Lista_zajęć[NIEPOWTARZALNE],0),2),0)","v":0},{"$f":"IFERROR(INDEX(Lista_zajęć[],MATCH(SUMPRODUCT((Lista_zajęć[DZIEŃ]=Harmonogram_zajęć[[#Headers],[SOBOTA]])*(ROUNDDOWN($B36,10)>=ROUNDDOWN(Lista_zajęć[GODZINA ROZPOCZĘCIA],10))*($B36<=Lista_zajęć[GODZINA ZAKOŃCZENIA]),Lista_zajęć[NIEPOWTARZALNE]),Lista_zajęć[NIEPOWTARZALNE],0),2),0)","v":0}]
[null,{"$f":"B36+Przyrost","v":"16:15:00"},{"$f":"IFERROR(INDEX(Lista_zajęć[],MATCH(SUMPRODUCT((Lista_zajęć[DZIEŃ]=Harmonogram_zajęć[[#Headers],[NIEDZIELA]])*(ROUNDDOWN($B37,10)>=ROUNDDOWN(Lista_zajęć[GODZINA ROZPOCZĘCIA],10))*($B37<=Lista_zajęć[GODZINA ZAKOŃCZENIA]),Lista_zajęć[NIEPOWTARZALNE]),Lista_zajęć[NIEPOWTARZALNE],0),2),0)","v":0},{"$f":"IFERROR(INDEX(Lista_zajęć[],MATCH(SUMPRODUCT((Lista_zajęć[DZIEŃ]=Harmonogram_zajęć[[#Headers],[PONIEDZIAŁEK]])*(ROUNDDOWN($B37,10)>=ROUNDDOWN(Lista_zajęć[GODZINA ROZPOCZĘCIA],10))*($B37<=Lista_zajęć[GODZINA ZAKOŃCZENIA]),Lista_zajęć[NIEPOWTARZALNE]),Lista_zajęć[NIEPOWTARZALNE],0),2),0)","v":"PU-111"},{"$f":"IFERROR(INDEX(Lista_zajęć[],MATCH(SUMPRODUCT((Lista_zajęć[DZIEŃ]=Harmonogram_zajęć[[#Headers],[WTOREK]])*(ROUNDDOWN($B37,10)>=ROUNDDOWN(Lista_zajęć[GODZINA ROZPOCZĘCIA],10))*($B37<=Lista_zajęć[GODZINA ZAKOŃCZENIA]),Lista_zajęć[NIEPOWTARZALNE]),Lista_zajęć[NIEPOWTARZALNE],0),2),0)","v":0},{"$f":"IFERROR(INDEX(Lista_zajęć[],MATCH(SUMPRODUCT((Lista_zajęć[DZIEŃ]=Harmonogram_zajęć[[#Headers],[ŚRODA]])*(ROUNDDOWN($B37,10)>=ROUNDDOWN(Lista_zajęć[GODZINA ROZPOCZĘCIA],10))*($B37<=Lista_zajęć[GODZINA ZAKOŃCZENIA]),Lista_zajęć[NIEPOWTARZALNE]),Lista_zajęć[NIEPOWTARZALNE],0),2),0)","v":0},{"$f":"IFERROR(INDEX(Lista_zajęć[],MATCH(SUMPRODUCT((Lista_zajęć[DZIEŃ]=Harmonogram_zajęć[[#Headers],[CZWARTEK]])*(ROUNDDOWN($B37,10)>=ROUNDDOWN(Lista_zajęć[GODZINA ROZPOCZĘCIA],10))*($B37<=Lista_zajęć[GODZINA ZAKOŃCZENIA]),Lista_zajęć[NIEPOWTARZALNE]),Lista_zajęć[NIEPOWTARZALNE],0),2),0)","v":0},{"$f":"IFERROR(INDEX(Lista_zajęć[],MATCH(SUMPRODUCT((Lista_zajęć[DZIEŃ]=Harmonogram_zajęć[[#Headers],[PIĄTEK]])*(ROUNDDOWN($B37,10)>=ROUNDDOWN(Lista_zajęć[GODZINA ROZPOCZĘCIA],10))*($B37<=Lista_zajęć[GODZINA ZAKOŃCZENIA]),Lista_zajęć[NIEPOWTARZALNE]),Lista_zajęć[NIEPOWTARZALNE],0),2),0)","v":0},{"$f":"IFERROR(INDEX(Lista_zajęć[],MATCH(SUMPRODUCT((Lista_zajęć[DZIEŃ]=Harmonogram_zajęć[[#Headers],[SOBOTA]])*(ROUNDDOWN($B37,10)>=ROUNDDOWN(Lista_zajęć[GODZINA ROZPOCZĘCIA],10))*($B37<=Lista_zajęć[GODZINA ZAKOŃCZENIA]),Lista_zajęć[NIEPOWTARZALNE]),Lista_zajęć[NIEPOWTARZALNE],0),2),0)","v":0}]
[null,"16:30:00",{"$f":"IFERROR(INDEX(Lista_zajęć[],MATCH(SUMPRODUCT((Lista_zajęć[DZIEŃ]=Harmonogram_zajęć[[#Headers],[NIEDZIELA]])*(ROUNDDOWN($B38,10)>=ROUNDDOWN(Lista_zajęć[GODZINA ROZPOCZĘCIA],10))*($B38<=Lista_zajęć[GODZINA ZAKOŃCZENIA]),Lista_zajęć[NIEPOWTARZALNE]),Lista_zajęć[NIEPOWTARZALNE],0),2),0)","v":0},{"$f":"IFERROR(INDEX(Lista_zajęć[],MATCH(SUMPRODUCT((Lista_zajęć[DZIEŃ]=Harmonogram_zajęć[[#Headers],[PONIEDZIAŁEK]])*(ROUNDDOWN($B38,10)>=ROUNDDOWN(Lista_zajęć[GODZINA ROZPOCZĘCIA],10))*($B38<=Lista_zajęć[GODZINA ZAKOŃCZENIA]),Lista_zajęć[NIEPOWTARZALNE]),Lista_zajęć[NIEPOWTARZALNE],0),2),0)","v":"PU-111"},{"$f":"IFERROR(INDEX(Lista_zajęć[],MATCH(SUMPRODUCT((Lista_zajęć[DZIEŃ]=Harmonogram_zajęć[[#Headers],[WTOREK]])*(ROUNDDOWN($B38,10)>=ROUNDDOWN(Lista_zajęć[GODZINA ROZPOCZĘCIA],10))*($B38<=Lista_zajęć[GODZINA ZAKOŃCZENIA]),Lista_zajęć[NIEPOWTARZALNE]),Lista_zajęć[NIEPOWTARZALNE],0),2),0)","v":0},{"$f":"IFERROR(INDEX(Lista_zajęć[],MATCH(SUMPRODUCT((Lista_zajęć[DZIEŃ]=Harmonogram_zajęć[[#Headers],[ŚRODA]])*(ROUNDDOWN($B38,10)>=ROUNDDOWN(Lista_zajęć[GODZINA ROZPOCZĘCIA],10))*($B38<=Lista_zajęć[GODZINA ZAKOŃCZENIA]),Lista_zajęć[NIEPOWTARZALNE]),Lista_zajęć[NIEPOWTARZALNE],0),2),0)","v":0},{"$f":"IFERROR(INDEX(Lista_zajęć[],MATCH(SUMPRODUCT((Lista_zajęć[DZIEŃ]=Harmonogram_zajęć[[#Headers],[CZWARTEK]])*(ROUNDDOWN($B38,10)>=ROUNDDOWN(Lista_zajęć[GODZINA ROZPOCZĘCIA],10))*($B38<=Lista_zajęć[GODZINA ZAKOŃCZENIA]),Lista_zajęć[NIEPOWTARZALNE]),Lista_zajęć[NIEPOWTARZALNE],0),2),0)","v":0},{"$f":"IFERROR(INDEX(Lista_zajęć[],MATCH(SUMPRODUCT((Lista_zajęć[DZIEŃ]=Harmonogram_zajęć[[#Headers],[PIĄTEK]])*(ROUNDDOWN($B38,10)>=ROUNDDOWN(Lista_zajęć[GODZINA ROZPOCZĘCIA],10))*($B38<=Lista_zajęć[GODZINA ZAKOŃCZENIA]),Lista_zajęć[NIEPOWTARZALNE]),Lista_zajęć[NIEPOWTARZALNE],0),2),0)","v":0},{"$f":"IFERROR(INDEX(Lista_zajęć[],MATCH(SUMPRODUCT((Lista_zajęć[DZIEŃ]=Harmonogram_zajęć[[#Headers],[SOBOTA]])*(ROUNDDOWN($B38,10)>=ROUNDDOWN(Lista_zajęć[GODZINA ROZPOCZĘCIA],10))*($B38<=Lista_zajęć[GODZINA ZAKOŃCZENIA]),Lista_zajęć[NIEPOWTARZALNE]),Lista_zajęć[NIEPOWTARZALNE],0),2),0)","v":0}]
[null,"16:45:00",{"$f":"IFERROR(INDEX(Lista_zajęć[],MATCH(SUMPRODUCT((Lista_zajęć[DZIEŃ]=Harmonogram_zajęć[[#Headers],[NIEDZIELA]])*(ROUNDDOWN($B39,10)>=ROUNDDOWN(Lista_zajęć[GODZINA ROZPOCZĘCIA],10))*($B39<=Lista_zajęć[GODZINA ZAKOŃCZENIA]),Lista_zajęć[NIEPOWTARZALNE]),Lista_zajęć[NIEPOWTARZALNE],0),2),0)","v":0},{"$f":"IFERROR(INDEX(Lista_zajęć[],MATCH(SUMPRODUCT((Lista_zajęć[DZIEŃ]=Harmonogram_zajęć[[#Headers],[PONIEDZIAŁEK]])*(ROUNDDOWN($B39,10)>=ROUNDDOWN(Lista_zajęć[GODZINA ROZPOCZĘCIA],10))*($B39<=Lista_zajęć[GODZINA ZAKOŃCZENIA]),Lista_zajęć[NIEPOWTARZALNE]),Lista_zajęć[NIEPOWTARZALNE],0),2),0)","v":"PU-111"},{"$f":"IFERROR(INDEX(Lista_zajęć[],MATCH(SUMPRODUCT((Lista_zajęć[DZIEŃ]=Harmonogram_zajęć[[#Headers],[WTOREK]])*(ROUNDDOWN($B39,10)>=ROUNDDOWN(Lista_zajęć[GODZINA ROZPOCZĘCIA],10))*($B39<=Lista_zajęć[GODZINA ZAKOŃCZENIA]),Lista_zajęć[NIEPOWTARZALNE]),Lista_zajęć[NIEPOWTARZALNE],0),2),0)","v":0},{"$f":"IFERROR(INDEX(Lista_zajęć[],MATCH(SUMPRODUCT((Lista_zajęć[DZIEŃ]=Harmonogram_zajęć[[#Headers],[ŚRODA]])*(ROUNDDOWN($B39,10)>=ROUNDDOWN(Lista_zajęć[GODZINA ROZPOCZĘCIA],10))*($B39<=Lista_zajęć[GODZINA ZAKOŃCZENIA]),Lista_zajęć[NIEPOWTARZALNE]),Lista_zajęć[NIEPOWTARZALNE],0),2),0)","v":0},{"$f":"IFERROR(INDEX(Lista_zajęć[],MATCH(SUMPRODUCT((Lista_zajęć[DZIEŃ]=Harmonogram_zajęć[[#Headers],[CZWARTEK]])*(ROUNDDOWN($B39,10)>=ROUNDDOWN(Lista_zajęć[GODZINA ROZPOCZĘCIA],10))*($B39<=Lista_zajęć[GODZINA ZAKOŃCZENIA]),Lista_zajęć[NIEPOWTARZALNE]),Lista_zajęć[NIEPOWTARZALNE],0),2),0)","v":0},{"$f":"IFERROR(INDEX(Lista_zajęć[],MATCH(SUMPRODUCT((Lista_zajęć[DZIEŃ]=Harmonogram_zajęć[[#Headers],[PIĄTEK]])*(ROUNDDOWN($B39,10)>=ROUNDDOWN(Lista_zajęć[GODZINA ROZPOCZĘCIA],10))*($B39<=Lista_zajęć[GODZINA ZAKOŃCZENIA]),Lista_zajęć[NIEPOWTARZALNE]),Lista_zajęć[NIEPOWTARZALNE],0),2),0)","v":0},{"$f":"IFERROR(INDEX(Lista_zajęć[],MATCH(SUMPRODUCT((Lista_zajęć[DZIEŃ]=Harmonogram_zajęć[[#Headers],[SOBOTA]])*(ROUNDDOWN($B39,10)>=ROUNDDOWN(Lista_zajęć[GODZINA ROZPOCZĘCIA],10))*($B39<=Lista_zajęć[GODZINA ZAKOŃCZENIA]),Lista_zajęć[NIEPOWTARZALNE]),Lista_zajęć[NIEPOWTARZALNE],0),2),0)","v":0}]
[null,"17:00:00",{"$f":"IFERROR(INDEX(Lista_zajęć[],MATCH(SUMPRODUCT((Lista_zajęć[DZIEŃ]=Harmonogram_zajęć[[#Headers],[NIEDZIELA]])*(ROUNDDOWN($B40,10)>=ROUNDDOWN(Lista_zajęć[GODZINA ROZPOCZĘCIA],10))*($B40<=Lista_zajęć[GODZINA ZAKOŃCZENIA]),Lista_zajęć[NIEPOWTARZALNE]),Lista_zajęć[NIEPOWTARZALNE],0),2),0)","v":0},{"$f":"IFERROR(INDEX(Lista_zajęć[],MATCH(SUMPRODUCT((Lista_zajęć[DZIEŃ]=Harmonogram_zajęć[[#Headers],[PONIEDZIAŁEK]])*(ROUNDDOWN($B40,10)>=ROUNDDOWN(Lista_zajęć[GODZINA ROZPOCZĘCIA],10))*($B40<=Lista_zajęć[GODZINA ZAKOŃCZENIA]),Lista_zajęć[NIEPOWTARZALNE]),Lista_zajęć[NIEPOWTARZALNE],0),2),0)","v":"PU-111"},{"$f":"IFERROR(INDEX(Lista_zajęć[],MATCH(SUMPRODUCT((Lista_zajęć[DZIEŃ]=Harmonogram_zajęć[[#Headers],[WTOREK]])*(ROUNDDOWN($B40,10)>=ROUNDDOWN(Lista_zajęć[GODZINA ROZPOCZĘCIA],10))*($B40<=Lista_zajęć[GODZINA ZAKOŃCZENIA]),Lista_zajęć[NIEPOWTARZALNE]),Lista_zajęć[NIEPOWTARZALNE],0),2),0)","v":0},{"$f":"IFERROR(INDEX(Lista_zajęć[],MATCH(SUMPRODUCT((Lista_zajęć[DZIEŃ]=Harmonogram_zajęć[[#Headers],[ŚRODA]])*(ROUNDDOWN($B40,10)>=ROUNDDOWN(Lista_zajęć[GODZINA ROZPOCZĘCIA],10))*($B40<=Lista_zajęć[GODZINA ZAKOŃCZENIA]),Lista_zajęć[NIEPOWTARZALNE]),Lista_zajęć[NIEPOWTARZALNE],0),2),0)","v":0},{"$f":"IFERROR(INDEX(Lista_zajęć[],MATCH(SUMPRODUCT((Lista_zajęć[DZIEŃ]=Harmonogram_zajęć[[#Headers],[CZWARTEK]])*(ROUNDDOWN($B40,10)>=ROUNDDOWN(Lista_zajęć[GODZINA ROZPOCZĘCIA],10))*($B40<=Lista_zajęć[GODZINA ZAKOŃCZENIA]),Lista_zajęć[NIEPOWTARZALNE]),Lista_zajęć[NIEPOWTARZALNE],0),2),0)","v":0},{"$f":"IFERROR(INDEX(Lista_zajęć[],MATCH(SUMPRODUCT((Lista_zajęć[DZIEŃ]=Harmonogram_zajęć[[#Headers],[PIĄTEK]])*(ROUNDDOWN($B40,10)>=ROUNDDOWN(Lista_zajęć[GODZINA ROZPOCZĘCIA],10))*($B40<=Lista_zajęć[GODZINA ZAKOŃCZENIA]),Lista_zajęć[NIEPOWTARZALNE]),Lista_zajęć[NIEPOWTARZALNE],0),2),0)","v":0},{"$f":"IFERROR(INDEX(Lista_zajęć[],MATCH(SUMPRODUCT((Lista_zajęć[DZIEŃ]=Harmonogram_zajęć[[#Headers],[SOBOTA]])*(ROUNDDOWN($B40,10)>=ROUNDDOWN(Lista_zajęć[GODZINA ROZPOCZĘCIA],10))*($B40<=Lista_zajęć[GODZINA ZAKOŃCZENIA]),Lista_zajęć[NIEPOWTARZALNE]),Lista_zajęć[NIEPOWTARZALNE],0),2),0)","v":0}]
[null,"17:15:00",{"$f":"IFERROR(INDEX(Lista_zajęć[],MATCH(SUMPRODUCT((Lista_zajęć[DZIEŃ]=Harmonogram_zajęć[[#Headers],[NIEDZIELA]])*(ROUNDDOWN($B41,10)>=ROUNDDOWN(Lista_zajęć[GODZINA ROZPOCZĘCIA],10))*($B41<=Lista_zajęć[GODZINA ZAKOŃCZENIA]),Lista_zajęć[NIEPOWTARZALNE]),Lista_zajęć[NIEPOWTARZALNE],0),2),0)","v":0},{"$f":"IFERROR(INDEX(Lista_zajęć[],MATCH(SUMPRODUCT((Lista_zajęć[DZIEŃ]=Harmonogram_zajęć[[#Headers],[PONIEDZIAŁEK]])*(ROUNDDOWN($B41,10)>=ROUNDDOWN(Lista_zajęć[GODZINA ROZPOCZĘCIA],10))*($B41<=Lista_zajęć[GODZINA ZAKOŃCZENIA]),Lista_zajęć[NIEPOWTARZALNE]),Lista_zajęć[NIEPOWTARZALNE],0),2),0)","v":0},{"$f":"IFERROR(INDEX(Lista_zajęć[],MATCH(SUMPRODUCT((Lista_zajęć[DZIEŃ]=Harmonogram_zajęć[[#Headers],[WTOREK]])*(ROUNDDOWN($B41,10)>=ROUNDDOWN(Lista_zajęć[GODZINA ROZPOCZĘCIA],10))*($B41<=Lista_zajęć[GODZINA ZAKOŃCZENIA]),Lista_zajęć[NIEPOWTARZALNE]),Lista_zajęć[NIEPOWTARZALNE],0),2),0)","v":0},{"$f":"IFERROR(INDEX(Lista_zajęć[],MATCH(SUMPRODUCT((Lista_zajęć[DZIEŃ]=Harmonogram_zajęć[[#Headers],[ŚRODA]])*(ROUNDDOWN($B41,10)>=ROUNDDOWN(Lista_zajęć[GODZINA ROZPOCZĘCIA],10))*($B41<=Lista_zajęć[GODZINA ZAKOŃCZENIA]),Lista_zajęć[NIEPOWTARZALNE]),Lista_zajęć[NIEPOWTARZALNE],0),2),0)","v":0},{"$f":"IFERROR(INDEX(Lista_zajęć[],MATCH(SUMPRODUCT((Lista_zajęć[DZIEŃ]=Harmonogram_zajęć[[#Headers],[CZWARTEK]])*(ROUNDDOWN($B41,10)>=ROUNDDOWN(Lista_zajęć[GODZINA ROZPOCZĘCIA],10))*($B41<=Lista_zajęć[GODZINA ZAKOŃCZENIA]),Lista_zajęć[NIEPOWTARZALNE]),Lista_zajęć[NIEPOWTARZALNE],0),2),0)","v":0},{"$f":"IFERROR(INDEX(Lista_zajęć[],MATCH(SUMPRODUCT((Lista_zajęć[DZIEŃ]=Harmonogram_zajęć[[#Headers],[PIĄTEK]])*(ROUNDDOWN($B41,10)>=ROUNDDOWN(Lista_zajęć[GODZINA ROZPOCZĘCIA],10))*($B41<=Lista_zajęć[GODZINA ZAKOŃCZENIA]),Lista_zajęć[NIEPOWTARZALNE]),Lista_zajęć[NIEPOWTARZALNE],0),2),0)","v":0},{"$f":"IFERROR(INDEX(Lista_zajęć[],MATCH(SUMPRODUCT((Lista_zajęć[DZIEŃ]=Harmonogram_zajęć[[#Headers],[SOBOTA]])*(ROUNDDOWN($B41,10)>=ROUNDDOWN(Lista_zajęć[GODZINA ROZPOCZĘCIA],10))*($B41<=Lista_zajęć[GODZINA ZAKOŃCZENIA]),Lista_zajęć[NIEPOWTARZALNE]),Lista_zajęć[NIEPOWTARZALNE],0),2),0)","v":0}]
[null,"17:30:00",{"$f":"IFERROR(INDEX(Lista_zajęć[],MATCH(SUMPRODUCT((Lista_zajęć[DZIEŃ]=Harmonogram_zajęć[[#Headers],[NIEDZIELA]])*(ROUNDDOWN($B42,10)>=ROUNDDOWN(Lista_zajęć[GODZINA ROZPOCZĘCIA],10))*($B42<=Lista_zajęć[GODZINA ZAKOŃCZENIA]),Lista_zajęć[NIEPOWTARZALNE]),Lista_zajęć[NIEPOWTARZALNE],0),2),0)","v":0},{"$f":"IFERROR(INDEX(Lista_zajęć[],MATCH(SUMPRODUCT((Lista_zajęć[DZIEŃ]=Harmonogram_zajęć[[#Headers],[PONIEDZIAŁEK]])*(ROUNDDOWN($B42,10)>=ROUNDDOWN(Lista_zajęć[GODZINA ROZPOCZĘCIA],10))*($B42<=Lista_zajęć[GODZINA ZAKOŃCZENIA]),Lista_zajęć[NIEPOWTARZALNE]),Lista_zajęć[NIEPOWTARZALNE],0),2),0)","v":0},{"$f":"IFERROR(INDEX(Lista_zajęć[],MATCH(SUMPRODUCT((Lista_zajęć[DZIEŃ]=Harmonogram_zajęć[[#Headers],[WTOREK]])*(ROUNDDOWN($B42,10)>=ROUNDDOWN(Lista_zajęć[GODZINA ROZPOCZĘCIA],10))*($B42<=Lista_zajęć[GODZINA ZAKOŃCZENIA]),Lista_zajęć[NIEPOWTARZALNE]),Lista_zajęć[NIEPOWTARZALNE],0),2),0)","v":0},{"$f":"IFERROR(INDEX(Lista_zajęć[],MATCH(SUMPRODUCT((Lista_zajęć[DZIEŃ]=Harmonogram_zajęć[[#Headers],[ŚRODA]])*(ROUNDDOWN($B42,10)>=ROUNDDOWN(Lista_zajęć[GODZINA ROZPOCZĘCIA],10))*($B42<=Lista_zajęć[GODZINA ZAKOŃCZENIA]),Lista_zajęć[NIEPOWTARZALNE]),Lista_zajęć[NIEPOWTARZALNE],0),2),0)","v":0},{"$f":"IFERROR(INDEX(Lista_zajęć[],MATCH(SUMPRODUCT((Lista_zajęć[DZIEŃ]=Harmonogram_zajęć[[#Headers],[CZWARTEK]])*(ROUNDDOWN($B42,10)>=ROUNDDOWN(Lista_zajęć[GODZINA ROZPOCZĘCIA],10))*($B42<=Lista_zajęć[GODZINA ZAKOŃCZENIA]),Lista_zajęć[NIEPOWTARZALNE]),Lista_zajęć[NIEPOWTARZALNE],0),2),0)","v":0},{"$f":"IFERROR(INDEX(Lista_zajęć[],MATCH(SUMPRODUCT((Lista_zajęć[DZIEŃ]=Harmonogram_zajęć[[#Headers],[PIĄTEK]])*(ROUNDDOWN($B42,10)>=ROUNDDOWN(Lista_zajęć[GODZINA ROZPOCZĘCIA],10))*($B42<=Lista_zajęć[GODZINA ZAKOŃCZENIA]),Lista_zajęć[NIEPOWTARZALNE]),Lista_zajęć[NIEPOWTARZALNE],0),2),0)","v":0},{"$f":"IFERROR(INDEX(Lista_zajęć[],MATCH(SUMPRODUCT((Lista_zajęć[DZIEŃ]=Harmonogram_zajęć[[#Headers],[SOBOTA]])*(ROUNDDOWN($B42,10)>=ROUNDDOWN(Lista_zajęć[GODZINA ROZPOCZĘCIA],10))*($B42<=Lista_zajęć[GODZINA ZAKOŃCZENIA]),Lista_zajęć[NIEPOWTARZALNE]),Lista_zajęć[NIEPOWTARZALNE],0),2),0)","v":0}]
[null,"17:45:00",{"$f":"IFERROR(INDEX(Lista_zajęć[],MATCH(SUMPRODUCT((Lista_zajęć[DZIEŃ]=Harmonogram_zajęć[[#Headers],[NIEDZIELA]])*(ROUNDDOWN($B43,10)>=ROUNDDOWN(Lista_zajęć[GODZINA ROZPOCZĘCIA],10))*($B43<=Lista_zajęć[GODZINA ZAKOŃCZENIA]),Lista_zajęć[NIEPOWTARZALNE]),Lista_zajęć[NIEPOWTARZALNE],0),2),0)","v":0},{"$f":"IFERROR(INDEX(Lista_zajęć[],MATCH(SUMPRODUCT((Lista_zajęć[DZIEŃ]=Harmonogram_zajęć[[#Headers],[PONIEDZIAŁEK]])*(ROUNDDOWN($B43,10)>=ROUNDDOWN(Lista_zajęć[GODZINA ROZPOCZĘCIA],10))*($B43<=Lista_zajęć[GODZINA ZAKOŃCZENIA]),Lista_zajęć[NIEPOWTARZALNE]),Lista_zajęć[NIEPOWTARZALNE],0),2),0)","v":0},{"$f":"IFERROR(INDEX(Lista_zajęć[],MATCH(SUMPRODUCT((Lista_zajęć[DZIEŃ]=Harmonogram_zajęć[[#Headers],[WTOREK]])*(ROUNDDOWN($B43,10)>=ROUNDDOWN(Lista_zajęć[GODZINA ROZPOCZĘCIA],10))*($B43<=Lista_zajęć[GODZINA ZAKOŃCZENIA]),Lista_zajęć[NIEPOWTARZALNE]),Lista_zajęć[NIEPOWTARZALNE],0),2),0)","v":0},{"$f":"IFERROR(INDEX(Lista_zajęć[],MATCH(SUMPRODUCT((Lista_zajęć[DZIEŃ]=Harmonogram_zajęć[[#Headers],[ŚRODA]])*(ROUNDDOWN($B43,10)>=ROUNDDOWN(Lista_zajęć[GODZINA ROZPOCZĘCIA],10))*($B43<=Lista_zajęć[GODZINA ZAKOŃCZENIA]),Lista_zajęć[NIEPOWTARZALNE]),Lista_zajęć[NIEPOWTARZALNE],0),2),0)","v":0},{"$f":"IFERROR(INDEX(Lista_zajęć[],MATCH(SUMPRODUCT((Lista_zajęć[DZIEŃ]=Harmonogram_zajęć[[#Headers],[CZWARTEK]])*(ROUNDDOWN($B43,10)>=ROUNDDOWN(Lista_zajęć[GODZINA ROZPOCZĘCIA],10))*($B43<=Lista_zajęć[GODZINA ZAKOŃCZENIA]),Lista_zajęć[NIEPOWTARZALNE]),Lista_zajęć[NIEPOWTARZALNE],0),2),0)","v":0},{"$f":"IFERROR(INDEX(Lista_zajęć[],MATCH(SUMPRODUCT((Lista_zajęć[DZIEŃ]=Harmonogram_zajęć[[#Headers],[PIĄTEK]])*(ROUNDDOWN($B43,10)>=ROUNDDOWN(Lista_zajęć[GODZINA ROZPOCZĘCIA],10))*($B43<=Lista_zajęć[GODZINA ZAKOŃCZENIA]),Lista_zajęć[NIEPOWTARZALNE]),Lista_zajęć[NIEPOWTARZALNE],0),2),0)","v":0},{"$f":"IFERROR(INDEX(Lista_zajęć[],MATCH(SUMPRODUCT((Lista_zajęć[DZIEŃ]=Harmonogram_zajęć[[#Headers],[SOBOTA]])*(ROUNDDOWN($B43,10)>=ROUNDDOWN(Lista_zajęć[GODZINA ROZPOCZĘCIA],10))*($B43<=Lista_zajęć[GODZINA ZAKOŃCZENIA]),Lista_zajęć[NIEPOWTARZALNE]),Lista_zajęć[NIEPOWTARZALNE],0),2),0)","v":0}]
[null,"18:00:00",{"$f":"IFERROR(INDEX(Lista_zajęć[],MATCH(SUMPRODUCT((Lista_zajęć[DZIEŃ]=Harmonogram_zajęć[[#Headers],[NIEDZIELA]])*(ROUNDDOWN($B44,10)>=ROUNDDOWN(Lista_zajęć[GODZINA ROZPOCZĘCIA],10))*($B44<=Lista_zajęć[GODZINA ZAKOŃCZENIA]),Lista_zajęć[NIEPOWTARZALNE]),Lista_zajęć[NIEPOWTARZALNE],0),2),0)","v":0},{"$f":"IFERROR(INDEX(Lista_zajęć[],MATCH(SUMPRODUCT((Lista_zajęć[DZIEŃ]=Harmonogram_zajęć[[#Headers],[PONIEDZIAŁEK]])*(ROUNDDOWN($B44,10)>=ROUNDDOWN(Lista_zajęć[GODZINA ROZPOCZĘCIA],10))*($B44<=Lista_zajęć[GODZINA ZAKOŃCZENIA]),Lista_zajęć[NIEPOWTARZALNE]),Lista_zajęć[NIEPOWTARZALNE],0),2),0)","v":0},{"$f":"IFERROR(INDEX(Lista_zajęć[],MATCH(SUMPRODUCT((Lista_zajęć[DZIEŃ]=Harmonogram_zajęć[[#Headers],[WTOREK]])*(ROUNDDOWN($B44,10)>=ROUNDDOWN(Lista_zajęć[GODZINA ROZPOCZĘCIA],10))*($B44<=Lista_zajęć[GODZINA ZAKOŃCZENIA]),Lista_zajęć[NIEPOWTARZALNE]),Lista_zajęć[NIEPOWTARZALNE],0),2),0)","v":0},{"$f":"IFERROR(INDEX(Lista_zajęć[],MATCH(SUMPRODUCT((Lista_zajęć[DZIEŃ]=Harmonogram_zajęć[[#Headers],[ŚRODA]])*(ROUNDDOWN($B44,10)>=ROUNDDOWN(Lista_zajęć[GODZINA ROZPOCZĘCIA],10))*($B44<=Lista_zajęć[GODZINA ZAKOŃCZENIA]),Lista_zajęć[NIEPOWTARZALNE]),Lista_zajęć[NIEPOWTARZALNE],0),2),0)","v":0},{"$f":"IFERROR(INDEX(Lista_zajęć[],MATCH(SUMPRODUCT((Lista_zajęć[DZIEŃ]=Harmonogram_zajęć[[#Headers],[CZWARTEK]])*(ROUNDDOWN($B44,10)>=ROUNDDOWN(Lista_zajęć[GODZINA ROZPOCZĘCIA],10))*($B44<=Lista_zajęć[GODZINA ZAKOŃCZENIA]),Lista_zajęć[NIEPOWTARZALNE]),Lista_zajęć[NIEPOWTARZALNE],0),2),0)","v":0},{"$f":"IFERROR(INDEX(Lista_zajęć[],MATCH(SUMPRODUCT((Lista_zajęć[DZIEŃ]=Harmonogram_zajęć[[#Headers],[PIĄTEK]])*(ROUNDDOWN($B44,10)>=ROUNDDOWN(Lista_zajęć[GODZINA ROZPOCZĘCIA],10))*($B44<=Lista_zajęć[GODZINA ZAKOŃCZENIA]),Lista_zajęć[NIEPOWTARZALNE]),Lista_zajęć[NIEPOWTARZALNE],0),2),0)","v":0},{"$f":"IFERROR(INDEX(Lista_zajęć[],MATCH(SUMPRODUCT((Lista_zajęć[DZIEŃ]=Harmonogram_zajęć[[#Headers],[SOBOTA]])*(ROUNDDOWN($B44,10)>=ROUNDDOWN(Lista_zajęć[GODZINA ROZPOCZĘCIA],10))*($B44<=Lista_zajęć[GODZINA ZAKOŃCZENIA]),Lista_zajęć[NIEPOWTARZALNE]),Lista_zajęć[NIEPOWTARZALNE],0),2),0)","v":0}]
[null,"18:15:00",{"$f":"IFERROR(INDEX(Lista_zajęć[],MATCH(SUMPRODUCT((Lista_zajęć[DZIEŃ]=Harmonogram_zajęć[[#Headers],[NIEDZIELA]])*(ROUNDDOWN($B45,10)>=ROUNDDOWN(Lista_zajęć[GODZINA ROZPOCZĘCIA],10))*($B45<=Lista_zajęć[GODZINA ZAKOŃCZENIA]),Lista_zajęć[NIEPOWTARZALNE]),Lista_zajęć[NIEPOWTARZALNE],0),2),0)","v":0},{"$f":"IFERROR(INDEX(Lista_zajęć[],MATCH(SUMPRODUCT((Lista_zajęć[DZIEŃ]=Harmonogram_zajęć[[#Headers],[PONIEDZIAŁEK]])*(ROUNDDOWN($B45,10)>=ROUNDDOWN(Lista_zajęć[GODZINA ROZPOCZĘCIA],10))*($B45<=Lista_zajęć[GODZINA ZAKOŃCZENIA]),Lista_zajęć[NIEPOWTARZALNE]),Lista_zajęć[NIEPOWTARZALNE],0),2),0)","v":0},{"$f":"IFERROR(INDEX(Lista_zajęć[],MATCH(SUMPRODUCT((Lista_zajęć[DZIEŃ]=Harmonogram_zajęć[[#Headers],[WTOREK]])*(ROUNDDOWN($B45,10)>=ROUNDDOWN(Lista_zajęć[GODZINA ROZPOCZĘCIA],10))*($B45<=Lista_zajęć[GODZINA ZAKOŃCZENIA]),Lista_zajęć[NIEPOWTARZALNE]),Lista_zajęć[NIEPOWTARZALNE],0),2),0)","v":0},{"$f":"IFERROR(INDEX(Lista_zajęć[],MATCH(SUMPRODUCT((Lista_zajęć[DZIEŃ]=Harmonogram_zajęć[[#Headers],[ŚRODA]])*(ROUNDDOWN($B45,10)>=ROUNDDOWN(Lista_zajęć[GODZINA ROZPOCZĘCIA],10))*($B45<=Lista_zajęć[GODZINA ZAKOŃCZENIA]),Lista_zajęć[NIEPOWTARZALNE]),Lista_zajęć[NIEPOWTARZALNE],0),2),0)","v":0},{"$f":"IFERROR(INDEX(Lista_zajęć[],MATCH(SUMPRODUCT((Lista_zajęć[DZIEŃ]=Harmonogram_zajęć[[#Headers],[CZWARTEK]])*(ROUNDDOWN($B45,10)>=ROUNDDOWN(Lista_zajęć[GODZINA ROZPOCZĘCIA],10))*($B45<=Lista_zajęć[GODZINA ZAKOŃCZENIA]),Lista_zajęć[NIEPOWTARZALNE]),Lista_zajęć[NIEPOWTARZALNE],0),2),0)","v":0},{"$f":"IFERROR(INDEX(Lista_zajęć[],MATCH(SUMPRODUCT((Lista_zajęć[DZIEŃ]=Harmonogram_zajęć[[#Headers],[PIĄTEK]])*(ROUNDDOWN($B45,10)>=ROUNDDOWN(Lista_zajęć[GODZINA ROZPOCZĘCIA],10))*($B45<=Lista_zajęć[GODZINA ZAKOŃCZENIA]),Lista_zajęć[NIEPOWTARZALNE]),Lista_zajęć[NIEPOWTARZALNE],0),2),0)","v":0},{"$f":"IFERROR(INDEX(Lista_zajęć[],MATCH(SUMPRODUCT((Lista_zajęć[DZIEŃ]=Harmonogram_zajęć[[#Headers],[SOBOTA]])*(ROUNDDOWN($B45,10)>=ROUNDDOWN(Lista_zajęć[GODZINA ROZPOCZĘCIA],10))*($B45<=Lista_zajęć[GODZINA ZAKOŃCZENIA]),Lista_zajęć[NIEPOWTARZALNE]),Lista_zajęć[NIEPOWTARZALNE],0),2),0)","v":0}]
[null,"18:30:00",{"$f":"IFERROR(INDEX(Lista_zajęć[],MATCH(SUMPRODUCT((Lista_zajęć[DZIEŃ]=Harmonogram_zajęć[[#Headers],[NIEDZIELA]])*(ROUNDDOWN($B46,10)>=ROUNDDOWN(Lista_zajęć[GODZINA ROZPOCZĘCIA],10))*($B46<=Lista_zajęć[GODZINA ZAKOŃCZENIA]),Lista_zajęć[NIEPOWTARZALNE]),Lista_zajęć[NIEPOWTARZALNE],0),2),0)","v":0},{"$f":"IFERROR(INDEX(Lista_zajęć[],MATCH(SUMPRODUCT((Lista_zajęć[DZIEŃ]=Harmonogram_zajęć[[#Headers],[PONIEDZIAŁEK]])*(ROUNDDOWN($B46,10)>=ROUNDDOWN(Lista_zajęć[GODZINA ROZPOCZĘCIA],10))*($B46<=Lista_zajęć[GODZINA ZAKOŃCZENIA]),Lista_zajęć[NIEPOWTARZALNE]),Lista_zajęć[NIEPOWTARZALNE],0),2),0)","v":0},{"$f":"IFERROR(INDEX(Lista_zajęć[],MATCH(SUMPRODUCT((Lista_zajęć[DZIEŃ]=Harmonogram_zajęć[[#Headers],[WTOREK]])*(ROUNDDOWN($B46,10)>=ROUNDDOWN(Lista_zajęć[GODZINA ROZPOCZĘCIA],10))*($B46<=Lista_zajęć[GODZINA ZAKOŃCZENIA]),Lista_zajęć[NIEPOWTARZALNE]),Lista_zajęć[NIEPOWTARZALNE],0),2),0)","v":0},{"$f":"IFERROR(INDEX(Lista_zajęć[],MATCH(SUMPRODUCT((Lista_zajęć[DZIEŃ]=Harmonogram_zajęć[[#Headers],[ŚRODA]])*(ROUNDDOWN($B46,10)>=ROUNDDOWN(Lista_zajęć[GODZINA ROZPOCZĘCIA],10))*($B46<=Lista_zajęć[GODZINA ZAKOŃCZENIA]),Lista_zajęć[NIEPOWTARZALNE]),Lista_zajęć[NIEPOWTARZALNE],0),2),0)","v":0},{"$f":"IFERROR(INDEX(Lista_zajęć[],MATCH(SUMPRODUCT((Lista_zajęć[DZIEŃ]=Harmonogram_zajęć[[#Headers],[CZWARTEK]])*(ROUNDDOWN($B46,10)>=ROUNDDOWN(Lista_zajęć[GODZINA ROZPOCZĘCIA],10))*($B46<=Lista_zajęć[GODZINA ZAKOŃCZENIA]),Lista_zajęć[NIEPOWTARZALNE]),Lista_zajęć[NIEPOWTARZALNE],0),2),0)","v":0},{"$f":"IFERROR(INDEX(Lista_zajęć[],MATCH(SUMPRODUCT((Lista_zajęć[DZIEŃ]=Harmonogram_zajęć[[#Headers],[PIĄTEK]])*(ROUNDDOWN($B46,10)>=ROUNDDOWN(Lista_zajęć[GODZINA ROZPOCZĘCIA],10))*($B46<=Lista_zajęć[GODZINA ZAKOŃCZENIA]),Lista_zajęć[NIEPOWTARZALNE]),Lista_zajęć[NIEPOWTARZALNE],0),2),0)","v":0},{"$f":"IFERROR(INDEX(Lista_zajęć[],MATCH(SUMPRODUCT((Lista_zajęć[DZIEŃ]=Harmonogram_zajęć[[#Headers],[SOBOTA]])*(ROUNDDOWN($B46,10)>=ROUNDDOWN(Lista_zajęć[GODZINA ROZPOCZĘCIA],10))*($B46<=Lista_zajęć[GODZINA ZAKOŃCZENIA]),Lista_zajęć[NIEPOWTARZALNE]),Lista_zajęć[NIEPOWTARZALNE],0),2),0)","v":0}]
[null,"18:45:00",{"$f":"IFERROR(INDEX(Lista_zajęć[],MATCH(SUMPRODUCT((Lista_zajęć[DZIEŃ]=Harmonogram_zajęć[[#Headers],[NIEDZIELA]])*(ROUNDDOWN($B47,10)>=ROUNDDOWN(Lista_zajęć[GODZINA ROZPOCZĘCIA],10))*($B47<=Lista_zajęć[GODZINA ZAKOŃCZENIA]),Lista_zajęć[NIEPOWTARZALNE]),Lista_zajęć[NIEPOWTARZALNE],0),2),0)","v":0},{"$f":"IFERROR(INDEX(Lista_zajęć[],MATCH(SUMPRODUCT((Lista_zajęć[DZIEŃ]=Harmonogram_zajęć[[#Headers],[PONIEDZIAŁEK]])*(ROUNDDOWN($B47,10)>=ROUNDDOWN(Lista_zajęć[GODZINA ROZPOCZĘCIA],10))*($B47<=Lista_zajęć[GODZINA ZAKOŃCZENIA]),Lista_zajęć[NIEPOWTARZALNE]),Lista_zajęć[NIEPOWTARZALNE],0),2),0)","v":0},{"$f":"IFERROR(INDEX(Lista_zajęć[],MATCH(SUMPRODUCT((Lista_zajęć[DZIEŃ]=Harmonogram_zajęć[[#Headers],[WTOREK]])*(ROUNDDOWN($B47,10)>=ROUNDDOWN(Lista_zajęć[GODZINA ROZPOCZĘCIA],10))*($B47<=Lista_zajęć[GODZINA ZAKOŃCZENIA]),Lista_zajęć[NIEPOWTARZALNE]),Lista_zajęć[NIEPOWTARZALNE],0),2),0)","v":0},{"$f":"IFERROR(INDEX(Lista_zajęć[],MATCH(SUMPRODUCT((Lista_zajęć[DZIEŃ]=Harmonogram_zajęć[[#Headers],[ŚRODA]])*(ROUNDDOWN($B47,10)>=ROUNDDOWN(Lista_zajęć[GODZINA ROZPOCZĘCIA],10))*($B47<=Lista_zajęć[GODZINA ZAKOŃCZENIA]),Lista_zajęć[NIEPOWTARZALNE]),Lista_zajęć[NIEPOWTARZALNE],0),2),0)","v":0},{"$f":"IFERROR(INDEX(Lista_zajęć[],MATCH(SUMPRODUCT((Lista_zajęć[DZIEŃ]=Harmonogram_zajęć[[#Headers],[CZWARTEK]])*(ROUNDDOWN($B47,10)>=ROUNDDOWN(Lista_zajęć[GODZINA ROZPOCZĘCIA],10))*($B47<=Lista_zajęć[GODZINA ZAKOŃCZENIA]),Lista_zajęć[NIEPOWTARZALNE]),Lista_zajęć[NIEPOWTARZALNE],0),2),0)","v":0},{"$f":"IFERROR(INDEX(Lista_zajęć[],MATCH(SUMPRODUCT((Lista_zajęć[DZIEŃ]=Harmonogram_zajęć[[#Headers],[PIĄTEK]])*(ROUNDDOWN($B47,10)>=ROUNDDOWN(Lista_zajęć[GODZINA ROZPOCZĘCIA],10))*($B47<=Lista_zajęć[GODZINA ZAKOŃCZENIA]),Lista_zajęć[NIEPOWTARZALNE]),Lista_zajęć[NIEPOWTARZALNE],0),2),0)","v":0},{"$f":"IFERROR(INDEX(Lista_zajęć[],MATCH(SUMPRODUCT((Lista_zajęć[DZIEŃ]=Harmonogram_zajęć[[#Headers],[SOBOTA]])*(ROUNDDOWN($B47,10)>=ROUNDDOWN(Lista_zajęć[GODZINA ROZPOCZĘCIA],10))*($B47<=Lista_zajęć[GODZINA ZAKOŃCZENIA]),Lista_zajęć[NIEPOWTARZALNE]),Lista_zajęć[NIEPOWTARZALNE],0),2),0)","v":0}]
[null,"19:00:00",{"$f":"IFERROR(INDEX(Lista_zajęć[],MATCH(SUMPRODUCT((Lista_zajęć[DZIEŃ]=Harmonogram_zajęć[[#Headers],[NIEDZIELA]])*(ROUNDDOWN($B48,10)>=ROUNDDOWN(Lista_zajęć[GODZINA ROZPOCZĘCIA],10))*($B48<=Lista_zajęć[GODZINA ZAKOŃCZENIA]),Lista_zajęć[NIEPOWTARZALNE]),Lista_zajęć[NIEPOWTARZALNE],0),2),0)","v":0},{"$f":"IFERROR(INDEX(Lista_zajęć[],MATCH(SUMPRODUCT((Lista_zajęć[DZIEŃ]=Harmonogram_zajęć[[#Headers],[PONIEDZIAŁEK]])*(ROUNDDOWN($B48,10)>=ROUNDDOWN(Lista_zajęć[GODZINA ROZPOCZĘCIA],10))*($B48<=Lista_zajęć[GODZINA ZAKOŃCZENIA]),Lista_zajęć[NIEPOWTARZALNE]),Lista_zajęć[NIEPOWTARZALNE],0),2),0)","v":0},{"$f":"IFERROR(INDEX(Lista_zajęć[],MATCH(SUMPRODUCT((Lista_zajęć[DZIEŃ]=Harmonogram_zajęć[[#Headers],[WTOREK]])*(ROUNDDOWN($B48,10)>=ROUNDDOWN(Lista_zajęć[GODZINA ROZPOCZĘCIA],10))*($B48<=Lista_zajęć[GODZINA ZAKOŃCZENIA]),Lista_zajęć[NIEPOWTARZALNE]),Lista_zajęć[NIEPOWTARZALNE],0),2),0)","v":0},{"$f":"IFERROR(INDEX(Lista_zajęć[],MATCH(SUMPRODUCT((Lista_zajęć[DZIEŃ]=Harmonogram_zajęć[[#Headers],[ŚRODA]])*(ROUNDDOWN($B48,10)>=ROUNDDOWN(Lista_zajęć[GODZINA ROZPOCZĘCIA],10))*($B48<=Lista_zajęć[GODZINA ZAKOŃCZENIA]),Lista_zajęć[NIEPOWTARZALNE]),Lista_zajęć[NIEPOWTARZALNE],0),2),0)","v":0},{"$f":"IFERROR(INDEX(Lista_zajęć[],MATCH(SUMPRODUCT((Lista_zajęć[DZIEŃ]=Harmonogram_zajęć[[#Headers],[CZWARTEK]])*(ROUNDDOWN($B48,10)>=ROUNDDOWN(Lista_zajęć[GODZINA ROZPOCZĘCIA],10))*($B48<=Lista_zajęć[GODZINA ZAKOŃCZENIA]),Lista_zajęć[NIEPOWTARZALNE]),Lista_zajęć[NIEPOWTARZALNE],0),2),0)","v":0},{"$f":"IFERROR(INDEX(Lista_zajęć[],MATCH(SUMPRODUCT((Lista_zajęć[DZIEŃ]=Harmonogram_zajęć[[#Headers],[PIĄTEK]])*(ROUNDDOWN($B48,10)>=ROUNDDOWN(Lista_zajęć[GODZINA ROZPOCZĘCIA],10))*($B48<=Lista_zajęć[GODZINA ZAKOŃCZENIA]),Lista_zajęć[NIEPOWTARZALNE]),Lista_zajęć[NIEPOWTARZALNE],0),2),0)","v":0},{"$f":"IFERROR(INDEX(Lista_zajęć[],MATCH(SUMPRODUCT((Lista_zajęć[DZIEŃ]=Harmonogram_zajęć[[#Headers],[SOBOTA]])*(ROUNDDOWN($B48,10)>=ROUNDDOWN(Lista_zajęć[GODZINA ROZPOCZĘCIA],10))*($B48<=Lista_zajęć[GODZINA ZAKOŃCZENIA]),Lista_zajęć[NIEPOWTARZALNE]),Lista_zajęć[NIEPOWTARZALNE],0),2),0)","v":0}]
[null,"19:15:00",{"$f":"IFERROR(INDEX(Lista_zajęć[],MATCH(SUMPRODUCT((Lista_zajęć[DZIEŃ]=Harmonogram_zajęć[[#Headers],[NIEDZIELA]])*(ROUNDDOWN($B49,10)>=ROUNDDOWN(Lista_zajęć[GODZINA ROZPOCZĘCIA],10))*($B49<=Lista_zajęć[GODZINA ZAKOŃCZENIA]),Lista_zajęć[NIEPOWTARZALNE]),Lista_zajęć[NIEPOWTARZALNE],0),2),0)","v":0},{"$f":"IFERROR(INDEX(Lista_zajęć[],MATCH(SUMPRODUCT((Lista_zajęć[DZIEŃ]=Harmonogram_zajęć[[#Headers],[PONIEDZIAŁEK]])*(ROUNDDOWN($B49,10)>=ROUNDDOWN(Lista_zajęć[GODZINA ROZPOCZĘCIA],10))*($B49<=Lista_zajęć[GODZINA ZAKOŃCZENIA]),Lista_zajęć[NIEPOWTARZALNE]),Lista_zajęć[NIEPOWTARZALNE],0),2),0)","v":0},{"$f":"IFERROR(INDEX(Lista_zajęć[],MATCH(SUMPRODUCT((Lista_zajęć[DZIEŃ]=Harmonogram_zajęć[[#Headers],[WTOREK]])*(ROUNDDOWN($B49,10)>=ROUNDDOWN(Lista_zajęć[GODZINA ROZPOCZĘCIA],10))*($B49<=Lista_zajęć[GODZINA ZAKOŃCZENIA]),Lista_zajęć[NIEPOWTARZALNE]),Lista_zajęć[NIEPOWTARZALNE],0),2),0)","v":0},{"$f":"IFERROR(INDEX(Lista_zajęć[],MATCH(SUMPRODUCT((Lista_zajęć[DZIEŃ]=Harmonogram_zajęć[[#Headers],[ŚRODA]])*(ROUNDDOWN($B49,10)>=ROUNDDOWN(Lista_zajęć[GODZINA ROZPOCZĘCIA],10))*($B49<=Lista_zajęć[GODZINA ZAKOŃCZENIA]),Lista_zajęć[NIEPOWTARZALNE]),Lista_zajęć[NIEPOWTARZALNE],0),2),0)","v":0},{"$f":"IFERROR(INDEX(Lista_zajęć[],MATCH(SUMPRODUCT((Lista_zajęć[DZIEŃ]=Harmonogram_zajęć[[#Headers],[CZWARTEK]])*(ROUNDDOWN($B49,10)>=ROUNDDOWN(Lista_zajęć[GODZINA ROZPOCZĘCIA],10))*($B49<=Lista_zajęć[GODZINA ZAKOŃCZENIA]),Lista_zajęć[NIEPOWTARZALNE]),Lista_zajęć[NIEPOWTARZALNE],0),2),0)","v":0},{"$f":"IFERROR(INDEX(Lista_zajęć[],MATCH(SUMPRODUCT((Lista_zajęć[DZIEŃ]=Harmonogram_zajęć[[#Headers],[PIĄTEK]])*(ROUNDDOWN($B49,10)>=ROUNDDOWN(Lista_zajęć[GODZINA ROZPOCZĘCIA],10))*($B49<=Lista_zajęć[GODZINA ZAKOŃCZENIA]),Lista_zajęć[NIEPOWTARZALNE]),Lista_zajęć[NIEPOWTARZALNE],0),2),0)","v":0},{"$f":"IFERROR(INDEX(Lista_zajęć[],MATCH(SUMPRODUCT((Lista_zajęć[DZIEŃ]=Harmonogram_zajęć[[#Headers],[SOBOTA]])*(ROUNDDOWN($B49,10)>=ROUNDDOWN(Lista_zajęć[GODZINA ROZPOCZĘCIA],10))*($B49<=Lista_zajęć[GODZINA ZAKOŃCZENIA]),Lista_zajęć[NIEPOWTARZALNE]),Lista_zajęć[NIEPOWTARZALNE],0),2),0)","v":0}]
[null,"19:30:00",{"$f":"IFERROR(INDEX(Lista_zajęć[],MATCH(SUMPRODUCT((Lista_zajęć[DZIEŃ]=Harmonogram_zajęć[[#Headers],[NIEDZIELA]])*(ROUNDDOWN($B50,10)>=ROUNDDOWN(Lista_zajęć[GODZINA ROZPOCZĘCIA],10))*($B50<=Lista_zajęć[GODZINA ZAKOŃCZENIA]),Lista_zajęć[NIEPOWTARZALNE]),Lista_zajęć[NIEPOWTARZALNE],0),2),0)","v":0},{"$f":"IFERROR(INDEX(Lista_zajęć[],MATCH(SUMPRODUCT((Lista_zajęć[DZIEŃ]=Harmonogram_zajęć[[#Headers],[PONIEDZIAŁEK]])*(ROUNDDOWN($B50,10)>=ROUNDDOWN(Lista_zajęć[GODZINA ROZPOCZĘCIA],10))*($B50<=Lista_zajęć[GODZINA ZAKOŃCZENIA]),Lista_zajęć[NIEPOWTARZALNE]),Lista_zajęć[NIEPOWTARZALNE],0),2),0)","v":0},{"$f":"IFERROR(INDEX(Lista_zajęć[],MATCH(SUMPRODUCT((Lista_zajęć[DZIEŃ]=Harmonogram_zajęć[[#Headers],[WTOREK]])*(ROUNDDOWN($B50,10)>=ROUNDDOWN(Lista_zajęć[GODZINA ROZPOCZĘCIA],10))*($B50<=Lista_zajęć[GODZINA ZAKOŃCZENIA]),Lista_zajęć[NIEPOWTARZALNE]),Lista_zajęć[NIEPOWTARZALNE],0),2),0)","v":0},{"$f":"IFERROR(INDEX(Lista_zajęć[],MATCH(SUMPRODUCT((Lista_zajęć[DZIEŃ]=Harmonogram_zajęć[[#Headers],[ŚRODA]])*(ROUNDDOWN($B50,10)>=ROUNDDOWN(Lista_zajęć[GODZINA ROZPOCZĘCIA],10))*($B50<=Lista_zajęć[GODZINA ZAKOŃCZENIA]),Lista_zajęć[NIEPOWTARZALNE]),Lista_zajęć[NIEPOWTARZALNE],0),2),0)","v":0},{"$f":"IFERROR(INDEX(Lista_zajęć[],MATCH(SUMPRODUCT((Lista_zajęć[DZIEŃ]=Harmonogram_zajęć[[#Headers],[CZWARTEK]])*(ROUNDDOWN($B50,10)>=ROUNDDOWN(Lista_zajęć[GODZINA ROZPOCZĘCIA],10))*($B50<=Lista_zajęć[GODZINA ZAKOŃCZENIA]),Lista_zajęć[NIEPOWTARZALNE]),Lista_zajęć[NIEPOWTARZALNE],0),2),0)","v":0},{"$f":"IFERROR(INDEX(Lista_zajęć[],MATCH(SUMPRODUCT((Lista_zajęć[DZIEŃ]=Harmonogram_zajęć[[#Headers],[PIĄTEK]])*(ROUNDDOWN($B50,10)>=ROUNDDOWN(Lista_zajęć[GODZINA ROZPOCZĘCIA],10))*($B50<=Lista_zajęć[GODZINA ZAKOŃCZENIA]),Lista_zajęć[NIEPOWTARZALNE]),Lista_zajęć[NIEPOWTARZALNE],0),2),0)","v":0},{"$f":"IFERROR(INDEX(Lista_zajęć[],MATCH(SUMPRODUCT((Lista_zajęć[DZIEŃ]=Harmonogram_zajęć[[#Headers],[SOBOTA]])*(ROUNDDOWN($B50,10)>=ROUNDDOWN(Lista_zajęć[GODZINA ROZPOCZĘCIA],10))*($B50<=Lista_zajęć[GODZINA ZAKOŃCZENIA]),Lista_zajęć[NIEPOWTARZALNE]),Lista_zajęć[NIEPOWTARZALNE],0),2),0)","v":0}]
[null,"19:45:00",{"$f":"IFERROR(INDEX(Lista_zajęć[],MATCH(SUMPRODUCT((Lista_zajęć[DZIEŃ]=Harmonogram_zajęć[[#Headers],[NIEDZIELA]])*(ROUNDDOWN($B51,10)>=ROUNDDOWN(Lista_zajęć[GODZINA ROZPOCZĘCIA],10))*($B51<=Lista_zajęć[GODZINA ZAKOŃCZENIA]),Lista_zajęć[NIEPOWTARZALNE]),Lista_zajęć[NIEPOWTARZALNE],0),2),0)","v":0},{"$f":"IFERROR(INDEX(Lista_zajęć[],MATCH(SUMPRODUCT((Lista_zajęć[DZIEŃ]=Harmonogram_zajęć[[#Headers],[PONIEDZIAŁEK]])*(ROUNDDOWN($B51,10)>=ROUNDDOWN(Lista_zajęć[GODZINA ROZPOCZĘCIA],10))*($B51<=Lista_zajęć[GODZINA ZAKOŃCZENIA]),Lista_zajęć[NIEPOWTARZALNE]),Lista_zajęć[NIEPOWTARZALNE],0),2),0)","v":0},{"$f":"IFERROR(INDEX(Lista_zajęć[],MATCH(SUMPRODUCT((Lista_zajęć[DZIEŃ]=Harmonogram_zajęć[[#Headers],[WTOREK]])*(ROUNDDOWN($B51,10)>=ROUNDDOWN(Lista_zajęć[GODZINA ROZPOCZĘCIA],10))*($B51<=Lista_zajęć[GODZINA ZAKOŃCZENIA]),Lista_zajęć[NIEPOWTARZALNE]),Lista_zajęć[NIEPOWTARZALNE],0),2),0)","v":0},{"$f":"IFERROR(INDEX(Lista_zajęć[],MATCH(SUMPRODUCT((Lista_zajęć[DZIEŃ]=Harmonogram_zajęć[[#Headers],[ŚRODA]])*(ROUNDDOWN($B51,10)>=ROUNDDOWN(Lista_zajęć[GODZINA ROZPOCZĘCIA],10))*($B51<=Lista_zajęć[GODZINA ZAKOŃCZENIA]),Lista_zajęć[NIEPOWTARZALNE]),Lista_zajęć[NIEPOWTARZALNE],0),2),0)","v":0},{"$f":"IFERROR(INDEX(Lista_zajęć[],MATCH(SUMPRODUCT((Lista_zajęć[DZIEŃ]=Harmonogram_zajęć[[#Headers],[CZWARTEK]])*(ROUNDDOWN($B51,10)>=ROUNDDOWN(Lista_zajęć[GODZINA ROZPOCZĘCIA],10))*($B51<=Lista_zajęć[GODZINA ZAKOŃCZENIA]),Lista_zajęć[NIEPOWTARZALNE]),Lista_zajęć[NIEPOWTARZALNE],0),2),0)","v":0},{"$f":"IFERROR(INDEX(Lista_zajęć[],MATCH(SUMPRODUCT((Lista_zajęć[DZIEŃ]=Harmonogram_zajęć[[#Headers],[PIĄTEK]])*(ROUNDDOWN($B51,10)>=ROUNDDOWN(Lista_zajęć[GODZINA ROZPOCZĘCIA],10))*($B51<=Lista_zajęć[GODZINA ZAKOŃCZENIA]),Lista_zajęć[NIEPOWTARZALNE]),Lista_zajęć[NIEPOWTARZALNE],0),2),0)","v":0},{"$f":"IFERROR(INDEX(Lista_zajęć[],MATCH(SUMPRODUCT((Lista_zajęć[DZIEŃ]=Harmonogram_zajęć[[#Headers],[SOBOTA]])*(ROUNDDOWN($B51,10)>=ROUNDDOWN(Lista_zajęć[GODZINA ROZPOCZĘCIA],10))*($B51<=Lista_zajęć[GODZINA ZAKOŃCZENIA]),Lista_zajęć[NIEPOWTARZALNE]),Lista_zajęć[NIEPOWTARZALNE],0),2),0)","v":0}]
[null,"20:00:00",{"$f":"IFERROR(INDEX(Lista_zajęć[],MATCH(SUMPRODUCT((Lista_zajęć[DZIEŃ]=Harmonogram_zajęć[[#Headers],[NIEDZIELA]])*(ROUNDDOWN($B52,10)>=ROUNDDOWN(Lista_zajęć[GODZINA ROZPOCZĘCIA],10))*($B52<=Lista_zajęć[GODZINA ZAKOŃCZENIA]),Lista_zajęć[NIEPOWTARZALNE]),Lista_zajęć[NIEPOWTARZALNE],0),2),0)","v":0},{"$f":"IFERROR(INDEX(Lista_zajęć[],MATCH(SUMPRODUCT((Lista_zajęć[DZIEŃ]=Harmonogram_zajęć[[#Headers],[PONIEDZIAŁEK]])*(ROUNDDOWN($B52,10)>=ROUNDDOWN(Lista_zajęć[GODZINA ROZPOCZĘCIA],10))*($B52<=Lista_zajęć[GODZINA ZAKOŃCZENIA]),Lista_zajęć[NIEPOWTARZALNE]),Lista_zajęć[NIEPOWTARZALNE],0),2),0)","v":0},{"$f":"IFERROR(INDEX(Lista_zajęć[],MATCH(SUMPRODUCT((Lista_zajęć[DZIEŃ]=Harmonogram_zajęć[[#Headers],[WTOREK]])*(ROUNDDOWN($B52,10)>=ROUNDDOWN(Lista_zajęć[GODZINA ROZPOCZĘCIA],10))*($B52<=Lista_zajęć[GODZINA ZAKOŃCZENIA]),Lista_zajęć[NIEPOWTARZALNE]),Lista_zajęć[NIEPOWTARZALNE],0),2),0)","v":0},{"$f":"IFERROR(INDEX(Lista_zajęć[],MATCH(SUMPRODUCT((Lista_zajęć[DZIEŃ]=Harmonogram_zajęć[[#Headers],[ŚRODA]])*(ROUNDDOWN($B52,10)>=ROUNDDOWN(Lista_zajęć[GODZINA ROZPOCZĘCIA],10))*($B52<=Lista_zajęć[GODZINA ZAKOŃCZENIA]),Lista_zajęć[NIEPOWTARZALNE]),Lista_zajęć[NIEPOWTARZALNE],0),2),0)","v":0},{"$f":"IFERROR(INDEX(Lista_zajęć[],MATCH(SUMPRODUCT((Lista_zajęć[DZIEŃ]=Harmonogram_zajęć[[#Headers],[CZWARTEK]])*(ROUNDDOWN($B52,10)>=ROUNDDOWN(Lista_zajęć[GODZINA ROZPOCZĘCIA],10))*($B52<=Lista_zajęć[GODZINA ZAKOŃCZENIA]),Lista_zajęć[NIEPOWTARZALNE]),Lista_zajęć[NIEPOWTARZALNE],0),2),0)","v":0},{"$f":"IFERROR(INDEX(Lista_zajęć[],MATCH(SUMPRODUCT((Lista_zajęć[DZIEŃ]=Harmonogram_zajęć[[#Headers],[PIĄTEK]])*(ROUNDDOWN($B52,10)>=ROUNDDOWN(Lista_zajęć[GODZINA ROZPOCZĘCIA],10))*($B52<=Lista_zajęć[GODZINA ZAKOŃCZENIA]),Lista_zajęć[NIEPOWTARZALNE]),Lista_zajęć[NIEPOWTARZALNE],0),2),0)","v":0},{"$f":"IFERROR(INDEX(Lista_zajęć[],MATCH(SUMPRODUCT((Lista_zajęć[DZIEŃ]=Harmonogram_zajęć[[#Headers],[SOBOTA]])*(ROUNDDOWN($B52,10)>=ROUNDDOWN(Lista_zajęć[GODZINA ROZPOCZĘCIA],10))*($B52<=Lista_zajęć[GODZINA ZAKOŃCZENIA]),Lista_zajęć[NIEPOWTARZALNE]),Lista_zajęć[NIEPOWTARZALNE],0),2),0)","v":0}]
[null,"20:15:00",{"$f":"IFERROR(INDEX(Lista_zajęć[],MATCH(SUMPRODUCT((Lista_zajęć[DZIEŃ]=Harmonogram_zajęć[[#Headers],[NIEDZIELA]])*(ROUNDDOWN($B53,10)>=ROUNDDOWN(Lista_zajęć[GODZINA ROZPOCZĘCIA],10))*($B53<=Lista_zajęć[GODZINA ZAKOŃCZENIA]),Lista_zajęć[NIEPOWTARZALNE]),Lista_zajęć[NIEPOWTARZALNE],0),2),0)","v":0},{"$f":"IFERROR(INDEX(Lista_zajęć[],MATCH(SUMPRODUCT((Lista_zajęć[DZIEŃ]=Harmonogram_zajęć[[#Headers],[PONIEDZIAŁEK]])*(ROUNDDOWN($B53,10)>=ROUNDDOWN(Lista_zajęć[GODZINA ROZPOCZĘCIA],10))*($B53<=Lista_zajęć[GODZINA ZAKOŃCZENIA]),Lista_zajęć[NIEPOWTARZALNE]),Lista_zajęć[NIEPOWTARZALNE],0),2),0)","v":0},{"$f":"IFERROR(INDEX(Lista_zajęć[],MATCH(SUMPRODUCT((Lista_zajęć[DZIEŃ]=Harmonogram_zajęć[[#Headers],[WTOREK]])*(ROUNDDOWN($B53,10)>=ROUNDDOWN(Lista_zajęć[GODZINA ROZPOCZĘCIA],10))*($B53<=Lista_zajęć[GODZINA ZAKOŃCZENIA]),Lista_zajęć[NIEPOWTARZALNE]),Lista_zajęć[NIEPOWTARZALNE],0),2),0)","v":0},{"$f":"IFERROR(INDEX(Lista_zajęć[],MATCH(SUMPRODUCT((Lista_zajęć[DZIEŃ]=Harmonogram_zajęć[[#Headers],[ŚRODA]])*(ROUNDDOWN($B53,10)>=ROUNDDOWN(Lista_zajęć[GODZINA ROZPOCZĘCIA],10))*($B53<=Lista_zajęć[GODZINA ZAKOŃCZENIA]),Lista_zajęć[NIEPOWTARZALNE]),Lista_zajęć[NIEPOWTARZALNE],0),2),0)","v":0},{"$f":"IFERROR(INDEX(Lista_zajęć[],MATCH(SUMPRODUCT((Lista_zajęć[DZIEŃ]=Harmonogram_zajęć[[#Headers],[CZWARTEK]])*(ROUNDDOWN($B53,10)>=ROUNDDOWN(Lista_zajęć[GODZINA ROZPOCZĘCIA],10))*($B53<=Lista_zajęć[GODZINA ZAKOŃCZENIA]),Lista_zajęć[NIEPOWTARZALNE]),Lista_zajęć[NIEPOWTARZALNE],0),2),0)","v":0},{"$f":"IFERROR(INDEX(Lista_zajęć[],MATCH(SUMPRODUCT((Lista_zajęć[DZIEŃ]=Harmonogram_zajęć[[#Headers],[PIĄTEK]])*(ROUNDDOWN($B53,10)>=ROUNDDOWN(Lista_zajęć[GODZINA ROZPOCZĘCIA],10))*($B53<=Lista_zajęć[GODZINA ZAKOŃCZENIA]),Lista_zajęć[NIEPOWTARZALNE]),Lista_zajęć[NIEPOWTARZALNE],0),2),0)","v":0},{"$f":"IFERROR(INDEX(Lista_zajęć[],MATCH(SUMPRODUCT((Lista_zajęć[DZIEŃ]=Harmonogram_zajęć[[#Headers],[SOBOTA]])*(ROUNDDOWN($B53,10)>=ROUNDDOWN(Lista_zajęć[GODZINA ROZPOCZĘCIA],10))*($B53<=Lista_zajęć[GODZINA ZAKOŃCZENIA]),Lista_zajęć[NIEPOWTARZALNE]),Lista_zajęć[NIEPOWTARZALNE],0),2),0)","v":0}]
[null,"20:30:00",{"$f":"IFERROR(INDEX(Lista_zajęć[],MATCH(SUMPRODUCT((Lista_zajęć[DZIEŃ]=Harmonogram_zajęć[[#Headers],[NIEDZIELA]])*(ROUNDDOWN($B54,10)>=ROUNDDOWN(Lista_zajęć[GODZINA ROZPOCZĘCIA],10))*($B54<=Lista_zajęć[GODZINA ZAKOŃCZENIA]),Lista_zajęć[NIEPOWTARZALNE]),Lista_zajęć[NIEPOWTARZALNE],0),2),0)","v":0},{"$f":"IFERROR(INDEX(Lista_zajęć[],MATCH(SUMPRODUCT((Lista_zajęć[DZIEŃ]=Harmonogram_zajęć[[#Headers],[PONIEDZIAŁEK]])*(ROUNDDOWN($B54,10)>=ROUNDDOWN(Lista_zajęć[GODZINA ROZPOCZĘCIA],10))*($B54<=Lista_zajęć[GODZINA ZAKOŃCZENIA]),Lista_zajęć[NIEPOWTARZALNE]),Lista_zajęć[NIEPOWTARZALNE],0),2),0)","v":0},{"$f":"IFERROR(INDEX(Lista_zajęć[],MATCH(SUMPRODUCT((Lista_zajęć[DZIEŃ]=Harmonogram_zajęć[[#Headers],[WTOREK]])*(ROUNDDOWN($B54,10)>=ROUNDDOWN(Lista_zajęć[GODZINA ROZPOCZĘCIA],10))*($B54<=Lista_zajęć[GODZINA ZAKOŃCZENIA]),Lista_zajęć[NIEPOWTARZALNE]),Lista_zajęć[NIEPOWTARZALNE],0),2),0)","v":0},{"$f":"IFERROR(INDEX(Lista_zajęć[],MATCH(SUMPRODUCT((Lista_zajęć[DZIEŃ]=Harmonogram_zajęć[[#Headers],[ŚRODA]])*(ROUNDDOWN($B54,10)>=ROUNDDOWN(Lista_zajęć[GODZINA ROZPOCZĘCIA],10))*($B54<=Lista_zajęć[GODZINA ZAKOŃCZENIA]),Lista_zajęć[NIEPOWTARZALNE]),Lista_zajęć[NIEPOWTARZALNE],0),2),0)","v":0},{"$f":"IFERROR(INDEX(Lista_zajęć[],MATCH(SUMPRODUCT((Lista_zajęć[DZIEŃ]=Harmonogram_zajęć[[#Headers],[CZWARTEK]])*(ROUNDDOWN($B54,10)>=ROUNDDOWN(Lista_zajęć[GODZINA ROZPOCZĘCIA],10))*($B54<=Lista_zajęć[GODZINA ZAKOŃCZENIA]),Lista_zajęć[NIEPOWTARZALNE]),Lista_zajęć[NIEPOWTARZALNE],0),2),0)","v":0},{"$f":"IFERROR(INDEX(Lista_zajęć[],MATCH(SUMPRODUCT((Lista_zajęć[DZIEŃ]=Harmonogram_zajęć[[#Headers],[PIĄTEK]])*(ROUNDDOWN($B54,10)>=ROUNDDOWN(Lista_zajęć[GODZINA ROZPOCZĘCIA],10))*($B54<=Lista_zajęć[GODZINA ZAKOŃCZENIA]),Lista_zajęć[NIEPOWTARZALNE]),Lista_zajęć[NIEPOWTARZALNE],0),2),0)","v":0},{"$f":"IFERROR(INDEX(Lista_zajęć[],MATCH(SUMPRODUCT((Lista_zajęć[DZIEŃ]=Harmonogram_zajęć[[#Headers],[SOBOTA]])*(ROUNDDOWN($B54,10)>=ROUNDDOWN(Lista_zajęć[GODZINA ROZPOCZĘCIA],10))*($B54<=Lista_zajęć[GODZINA ZAKOŃCZENIA]),Lista_zajęć[NIEPOWTARZALNE]),Lista_zajęć[NIEPOWTARZALNE],0),2),0)","v":0}]
[null,"20:45:00",{"$f":"IFERROR(INDEX(Lista_zajęć[],MATCH(SUMPRODUCT((Lista_zajęć[DZIEŃ]=Harmonogram_zajęć[[#Headers],[NIEDZIELA]])*(ROUNDDOWN($B55,10)>=ROUNDDOWN(Lista_zajęć[GODZINA ROZPOCZĘCIA],10))*($B55<=Lista_zajęć[GODZINA ZAKOŃCZENIA]),Lista_zajęć[NIEPOWTARZALNE]),Lista_zajęć[NIEPOWTARZALNE],0),2),0)","v":0},{"$f":"IFERROR(INDEX(Lista_zajęć[],MATCH(SUMPRODUCT((Lista_zajęć[DZIEŃ]=Harmonogram_zajęć[[#Headers],[PONIEDZIAŁEK]])*(ROUNDDOWN($B55,10)>=ROUNDDOWN(Lista_zajęć[GODZINA ROZPOCZĘCIA],10))*($B55<=Lista_zajęć[GODZINA ZAKOŃCZENIA]),Lista_zajęć[NIEPOWTARZALNE]),Lista_zajęć[NIEPOWTARZALNE],0),2),0)","v":0},{"$f":"IFERROR(INDEX(Lista_zajęć[],MATCH(SUMPRODUCT((Lista_zajęć[DZIEŃ]=Harmonogram_zajęć[[#Headers],[WTOREK]])*(ROUNDDOWN($B55,10)>=ROUNDDOWN(Lista_zajęć[GODZINA ROZPOCZĘCIA],10))*($B55<=Lista_zajęć[GODZINA ZAKOŃCZENIA]),Lista_zajęć[NIEPOWTARZALNE]),Lista_zajęć[NIEPOWTARZALNE],0),2),0)","v":0},{"$f":"IFERROR(INDEX(Lista_zajęć[],MATCH(SUMPRODUCT((Lista_zajęć[DZIEŃ]=Harmonogram_zajęć[[#Headers],[ŚRODA]])*(ROUNDDOWN($B55,10)>=ROUNDDOWN(Lista_zajęć[GODZINA ROZPOCZĘCIA],10))*($B55<=Lista_zajęć[GODZINA ZAKOŃCZENIA]),Lista_zajęć[NIEPOWTARZALNE]),Lista_zajęć[NIEPOWTARZALNE],0),2),0)","v":0},{"$f":"IFERROR(INDEX(Lista_zajęć[],MATCH(SUMPRODUCT((Lista_zajęć[DZIEŃ]=Harmonogram_zajęć[[#Headers],[CZWARTEK]])*(ROUNDDOWN($B55,10)>=ROUNDDOWN(Lista_zajęć[GODZINA ROZPOCZĘCIA],10))*($B55<=Lista_zajęć[GODZINA ZAKOŃCZENIA]),Lista_zajęć[NIEPOWTARZALNE]),Lista_zajęć[NIEPOWTARZALNE],0),2),0)","v":0},{"$f":"IFERROR(INDEX(Lista_zajęć[],MATCH(SUMPRODUCT((Lista_zajęć[DZIEŃ]=Harmonogram_zajęć[[#Headers],[PIĄTEK]])*(ROUNDDOWN($B55,10)>=ROUNDDOWN(Lista_zajęć[GODZINA ROZPOCZĘCIA],10))*($B55<=Lista_zajęć[GODZINA ZAKOŃCZENIA]),Lista_zajęć[NIEPOWTARZALNE]),Lista_zajęć[NIEPOWTARZALNE],0),2),0)","v":0},{"$f":"IFERROR(INDEX(Lista_zajęć[],MATCH(SUMPRODUCT((Lista_zajęć[DZIEŃ]=Harmonogram_zajęć[[#Headers],[SOBOTA]])*(ROUNDDOWN($B55,10)>=ROUNDDOWN(Lista_zajęć[GODZINA ROZPOCZĘCIA],10))*($B55<=Lista_zajęć[GODZINA ZAKOŃCZENIA]),Lista_zajęć[NIEPOWTARZALNE]),Lista_zajęć[NIEPOWTARZALNE],0),2),0)","v":0}]
[null,"21:00:00",{"$f":"IFERROR(INDEX(Lista_zajęć[],MATCH(SUMPRODUCT((Lista_zajęć[DZIEŃ]=Harmonogram_zajęć[[#Headers],[NIEDZIELA]])*(ROUNDDOWN($B56,10)>=ROUNDDOWN(Lista_zajęć[GODZINA ROZPOCZĘCIA],10))*($B56<=Lista_zajęć[GODZINA ZAKOŃCZENIA]),Lista_zajęć[NIEPOWTARZALNE]),Lista_zajęć[NIEPOWTARZALNE],0),2),0)","v":0},{"$f":"IFERROR(INDEX(Lista_zajęć[],MATCH(SUMPRODUCT((Lista_zajęć[DZIEŃ]=Harmonogram_zajęć[[#Headers],[PONIEDZIAŁEK]])*(ROUNDDOWN($B56,10)>=ROUNDDOWN(Lista_zajęć[GODZINA ROZPOCZĘCIA],10))*($B56<=Lista_zajęć[GODZINA ZAKOŃCZENIA]),Lista_zajęć[NIEPOWTARZALNE]),Lista_zajęć[NIEPOWTARZALNE],0),2),0)","v":0},{"$f":"IFERROR(INDEX(Lista_zajęć[],MATCH(SUMPRODUCT((Lista_zajęć[DZIEŃ]=Harmonogram_zajęć[[#Headers],[WTOREK]])*(ROUNDDOWN($B56,10)>=ROUNDDOWN(Lista_zajęć[GODZINA ROZPOCZĘCIA],10))*($B56<=Lista_zajęć[GODZINA ZAKOŃCZENIA]),Lista_zajęć[NIEPOWTARZALNE]),Lista_zajęć[NIEPOWTARZALNE],0),2),0)","v":0},{"$f":"IFERROR(INDEX(Lista_zajęć[],MATCH(SUMPRODUCT((Lista_zajęć[DZIEŃ]=Harmonogram_zajęć[[#Headers],[ŚRODA]])*(ROUNDDOWN($B56,10)>=ROUNDDOWN(Lista_zajęć[GODZINA ROZPOCZĘCIA],10))*($B56<=Lista_zajęć[GODZINA ZAKOŃCZENIA]),Lista_zajęć[NIEPOWTARZALNE]),Lista_zajęć[NIEPOWTARZALNE],0),2),0)","v":0},{"$f":"IFERROR(INDEX(Lista_zajęć[],MATCH(SUMPRODUCT((Lista_zajęć[DZIEŃ]=Harmonogram_zajęć[[#Headers],[CZWARTEK]])*(ROUNDDOWN($B56,10)>=ROUNDDOWN(Lista_zajęć[GODZINA ROZPOCZĘCIA],10))*($B56<=Lista_zajęć[GODZINA ZAKOŃCZENIA]),Lista_zajęć[NIEPOWTARZALNE]),Lista_zajęć[NIEPOWTARZALNE],0),2),0)","v":0},{"$f":"IFERROR(INDEX(Lista_zajęć[],MATCH(SUMPRODUCT((Lista_zajęć[DZIEŃ]=Harmonogram_zajęć[[#Headers],[PIĄTEK]])*(ROUNDDOWN($B56,10)>=ROUNDDOWN(Lista_zajęć[GODZINA ROZPOCZĘCIA],10))*($B56<=Lista_zajęć[GODZINA ZAKOŃCZENIA]),Lista_zajęć[NIEPOWTARZALNE]),Lista_zajęć[NIEPOWTARZALNE],0),2),0)","v":0},{"$f":"IFERROR(INDEX(Lista_zajęć[],MATCH(SUMPRODUCT((Lista_zajęć[DZIEŃ]=Harmonogram_zajęć[[#Headers],[SOBOTA]])*(ROUNDDOWN($B56,10)>=ROUNDDOWN(Lista_zajęć[GODZINA ROZPOCZĘCIA],10))*($B56<=Lista_zajęć[GODZINA ZAKOŃCZENIA]),Lista_zajęć[NIEPOWTARZALNE]),Lista_zajęć[NIEPOWTARZALNE],0),2),0)","v":0}]

{"sheet":"Lista zajęć","index":1,"n_rows":10,"n_cols":8,"rows_kept":10,"merged":[[0,1,0,5],[0,6,0,7]]}
[null,"LISTA ZAJĘĆ",{"$nulls":4},"Harmonogram zajęć"]
[null,"ZAJĘCIA","IDENTYFIKATOR","DZIEŃ","LOKALIZACJA","GODZINA ROZPOCZĘCIA","GODZINA ZAKOŃCZENIA","NIEPOWTARZALNE"]
[null,"Pismo techniczne","TE-121","PONIEDZIAŁEK","Budynek A","13:00:00","14:00:00",{"$f":"ROW()-ROW(Lista_zajęć[[#Headers],[NIEPOWTARZALNE]])","v":1}]
[null,"Pismo techniczne","TE-121","ŚRODA","Budynek A","13:00:00","14:00:00",{"$f":"ROW()-ROW(Lista_zajęć[[#Headers],[NIEPOWTARZALNE]])","v":2}]
[null,"Wystąpienia publiczne","PU-111","PONIEDZIAŁEK","Budynek B","16:00:00","17:00:00",{"$f":"ROW()-ROW(Lista_zajęć[[#Headers],[NIEPOWTARZALNE]])","v":3}]
[null,"Wychowanie fizyczne","WF-295","WTOREK","Budynek B","11:00:00","12:00:00",{"$f":"ROW()-ROW(Lista_zajęć[[#Headers],[NIEPOWTARZALNE]])","v":4}]
[null,"Wychowanie fizyczne","WF-295","CZWARTEK","Budynek B","11:00:00","12:00:00",{"$f":"ROW()-ROW(Lista_zajęć[[#Headers],[NIEPOWTARZALNE]])","v":5}]
[null,"Algebra","MAT-113","PONIEDZIAŁEK","Budynek C","08:10:00","09:15:00",{"$f":"ROW()-ROW(Lista_zajęć[[#Headers],[NIEPOWTARZALNE]])","v":6}]
[null,"Algebra","MAT-113","ŚRODA","Budynek C","08:10:00","09:15:00",{"$f":"ROW()-ROW(Lista_zajęć[[#Headers],[NIEPOWTARZALNE]])","v":7}]
[null,"Algebra","MAT-113","PIĄTEK","Budynek C","08:10:00","09:15:00",{"$f":"ROW()-ROW(Lista_zajęć[[#Headers],[NIEPOWTARZALNE]])","v":8}]